,,Body Name,Organisation Code,Service Label,Service Code,Organisation Unit,Expenditure Category,Expenditure Code,Narrative,Date,Transaction No,Net Amount,Supplier ID,Amended Supplier Name
INSERTED DETAIL,,Ealing Council,http://opendatacommunities.org/id/london-borough-council/ealing,PLACE,6,STREET SERVICES,MINOR EQUIP PURCHASE,3320,,22/09/2022,41031774,7037,28889,UK CONTAINER MAINTENANCE LTD
INSERTED DETAIL,,Ealing Council,http://opendatacommunities.org/id/london-borough-council/ealing,PLACE,6,STREET SERVICES,MINOR EQUIP PURCHASE,3320,,22/08/2022,41027389,10217,28889,UK CONTAINER MAINTENANCE LTD
INSERTED DETAIL,,Ealing Council,http://opendatacommunities.org/id/london-borough-council/ealing,PLACE,6,STREET SERVICES,PAYMENTS TO CONTRACTORS,4000,,28/10/2022,41032925,781464.32,28826,GREENER EALING LIMITED
INSERTED DETAIL,,Ealing Council,http://opendatacommunities.org/id/london-borough-council/ealing,CHILDREN & ADULTS,1,DISABILITIES,SOCIAL SERVICES CONTRACTUAL CARERS ALLOWANCES,4380,,19/10/2022,41033178,707.19,29826,REDACTED SENSITIVE SUPPLIER
INSERTED DETAIL,,Ealing Council,http://opendatacommunities.org/id/london-borough-council/ealing,CHILDREN & ADULTS,1,DISABILITIES,SOCIAL SERVICES CONTRACTUAL CARERS ALLOWANCES,4380,,05/10/2022,41031240,1771.42,16941,REDACTED SENSITIVE SUPPLIER
INSERTED DETAIL,,Ealing Council,http://opendatacommunities.org/id/london-borough-council/ealing,CHILDREN & ADULTS,1,DISABILITIES,SOCIAL SERVICES CONTRACTUAL CARERS ALLOWANCES,4380,,05/10/2022,41031329,1042.14,26991,REDACTED SENSITIVE SUPPLIER
INSERTED DETAIL,,Ealing Council,http://opendatacommunities.org/id/london-borough-council/ealing,CHILDREN & ADULTS,1,DISABILITIES,SOCIAL SERVICES CONTRACTUAL CARERS ALLOWANCES,4380,,05/10/2022,41031242,3764.29,22385,REDACTED SENSITIVE SUPPLIER
INSERTED DETAIL,,Ealing Council,http://opendatacommunities.org/id/london-borough-council/ealing,CHILDREN & ADULTS,1,DISABILITIES,SOCIAL SERVICES CONTRACTUAL CARERS ALLOWANCES,4380,,05/10/2022,41031244,1328.74,200134,REDACTED SENSITIVE SUPPLIER
INSERTED DETAIL,,Ealing Council,http://opendatacommunities.org/id/london-borough-council/ealing,CHILDREN & ADULTS,1,DISABILITIES,SOCIAL SERVICES CONTRACTUAL CARERS ALLOWANCES,4380,,05/10/2022,41031239,1328.74,20075,REDACTED SENSITIVE SUPPLIER
INSERTED DETAIL,,Ealing Council,http://opendatacommunities.org/id/london-borough-council/ealing,CHILDREN & ADULTS,1,DISABILITIES,SOCIAL SERVICES CONTRACTUAL CARERS ALLOWANCES,4380,,05/10/2022,41031243,1550.19,23161,REDACTED SENSITIVE SUPPLIER
INSERTED DETAIL,,Ealing Council,http://opendatacommunities.org/id/london-borough-council/ealing,CHILDREN & ADULTS,1,DISABILITIES,SOCIAL SERVICES CONTRACTUAL CARERS ALLOWANCES,4380,,05/10/2022,41031241,1369.6,27515,REDACTED SENSITIVE SUPPLIER
INSERTED DETAIL,,Ealing Council,http://opendatacommunities.org/id/london-borough-council/ealing,CHILDREN & ADULTS,1,DISABILITIES,SOCIAL SERVICES CONTRACTUAL CARERS ALLOWANCES,4380,,05/10/2022,41031330,459,20166,REDACTED SENSITIVE SUPPLIER
INSERTED DETAIL,,Ealing Council,http://opendatacommunities.org/id/london-borough-council/ealing,CHILDREN & ADULTS,1,SAFEGUARDING & SUPP - BS &A&F,SPECIAL GUARDIANSHIP OTHER PAYMENTS,4664,,26/10/2022,23237388,666.75,200313,REDACTED SENSITIVE SUPPLIER
INSERTED DETAIL,,Ealing Council,http://opendatacommunities.org/id/london-borough-council/ealing,CHILDREN & ADULTS,1,SAFEGUARDING & SUPP - BS &A&F,SPECIAL GUARDIANSHIP ALLOWANCE (SOC SERV),4663,,04/10/2022,23224857,492.66,200619,REDACTED SENSITIVE SUPPLIER
INSERTED DETAIL,,Ealing Council,http://opendatacommunities.org/id/london-borough-council/ealing,CHILDREN & ADULTS,1,SAFEGUARDING & SUPP - BS &A&F,SPECIAL GUARDIANSHIP ALLOWANCE (SOC SERV),4663,,11/10/2022,23227547,492.66,200619,REDACTED SENSITIVE SUPPLIER
INSERTED DETAIL,,Ealing Council,http://opendatacommunities.org/id/london-borough-council/ealing,CHILDREN & ADULTS,1,SAFEGUARDING & SUPP - BS &A&F,SPECIAL GUARDIANSHIP ALLOWANCE (SOC SERV),4663,,18/10/2022,23229677,492.66,200619,REDACTED SENSITIVE SUPPLIER
INSERTED DETAIL,,Ealing Council,http://opendatacommunities.org/id/london-borough-council/ealing,CHILDREN & ADULTS,1,SAFEGUARDING & SUPP - BS &A&F,SPECIAL GUARDIANSHIP ALLOWANCE (SOC SERV),4663,,25/10/2022,23237181,492.66,200619,REDACTED SENSITIVE SUPPLIER
INSERTED DETAIL,,Ealing Council,http://opendatacommunities.org/id/london-borough-council/ealing,CHILDREN & ADULTS,1,SAFEGUARDING & SUPP - BS &A&F,SPECIAL GUARDIANSHIP ALLOWANCE (SOC SERV),4663,,18/10/2022,23229750,360,200869,REDACTED SENSITIVE SUPPLIER
INSERTED DETAIL,,Ealing Council,http://opendatacommunities.org/id/london-borough-council/ealing,CHILDREN & ADULTS,1,SAFEGUARDING & SUPP - BS &A&F,SPECIAL GUARDIANSHIP ALLOWANCE (SOC SERV),4663,,04/10/2022,23224931,360,200869,REDACTED SENSITIVE SUPPLIER
INSERTED DETAIL,,Ealing Council,http://opendatacommunities.org/id/london-borough-council/ealing,CHILDREN & ADULTS,1,SAFEGUARDING & SUPP - BS &A&F,SPECIAL GUARDIANSHIP ALLOWANCE (SOC SERV),4663,,11/10/2022,23227623,360,200869,REDACTED SENSITIVE SUPPLIER
INSERTED DETAIL,,Ealing Council,http://opendatacommunities.org/id/london-borough-council/ealing,CHILDREN & ADULTS,1,SAFEGUARDING & SUPP - BS &A&F,SPECIAL GUARDIANSHIP ALLOWANCE (SOC SERV),4663,,25/10/2022,23237259,360,200869,REDACTED SENSITIVE SUPPLIER
INSERTED DETAIL,,Ealing Council,http://opendatacommunities.org/id/london-borough-council/ealing,CHILDREN & ADULTS,1,SAFEGUARDING & SUPP - BS &A&F,CHILDRENS SERVICES ADOPTION ALLOWANCE,4387,,11/10/2022,23227517,284.69,200127,REDACTED SENSITIVE SUPPLIER
INSERTED DETAIL,,Ealing Council,http://opendatacommunities.org/id/london-borough-council/ealing,CHILDREN & ADULTS,1,SAFEGUARDING & SUPP - BS &A&F,CHILDRENS SERVICES ADOPTION ALLOWANCE,4387,,18/10/2022,23229647,284.69,200127,REDACTED SENSITIVE SUPPLIER
INSERTED DETAIL,,Ealing Council,http://opendatacommunities.org/id/london-borough-council/ealing,CHILDREN & ADULTS,1,SAFEGUARDING & SUPP - BS &A&F,CHILDRENS SERVICES ADOPTION ALLOWANCE,4387,,25/10/2022,23237150,284.69,200127,REDACTED SENSITIVE SUPPLIER
INSERTED DETAIL,,Ealing Council,http://opendatacommunities.org/id/london-borough-council/ealing,CHILDREN & ADULTS,1,SAFEGUARDING & SUPP - BS &A&F,SPECIAL GUARDIANSHIP ALLOWANCE (SOC SERV),4663,,04/10/2022,23224779,314.21,200049,REDACTED SENSITIVE SUPPLIER
INSERTED DETAIL,,Ealing Council,http://opendatacommunities.org/id/london-borough-council/ealing,PLACE,6,STREET SERVICES,PAYMENTS TO CONTRACTORS,4000,,30/09/2022,41032835,325.7,14514,WERNICK HIRE LTD
INSERTED DETAIL,,Ealing Council,http://opendatacommunities.org/id/london-borough-council/ealing,PLACE,6,STREET SERVICES,CONTRACT PAYMENTS -CLEAN & GREEN,4010,,30/09/2022,41033036,2760.48,16351,MPM GRAFFITI SOLUTIONS
INSERTED DETAIL,,Ealing Council,http://opendatacommunities.org/id/london-borough-council/ealing,PLACE,6,LEISURE,PAYMENTS TO CONTRACTORS,4000,,31/08/2022,41034398,400,29406,PROFESSIONAL SPORTSTURF DESIGN (NORTH WEST) LTD
INSERTED DETAIL,,Ealing Council,http://opendatacommunities.org/id/london-borough-council/ealing,PLACE,6,LEISURE,PAYMENTS TO CONTRACTORS,4000,,03/10/2022,41032823,2000,9900018,REDACTED SENSITIVE SUPPLIER
INSERTED DETAIL,,Ealing Council,http://opendatacommunities.org/id/london-borough-council/ealing,PLACE,6,LEISURE,PAYMENTS TO CONTRACTORS,4000,,16/09/2022,41031750,45300.5,28826,GREENER EALING LIMITED
INSERTED DETAIL,,Ealing Council,http://opendatacommunities.org/id/london-borough-council/ealing,PLACE,6,LEISURE,WATER,1140,,03/10/2022,41033504,7120,25715,THAMES WATER UTILITIES LTD (PROPERTY SEARCHES)
INSERTED DETAIL,,Ealing Council,http://opendatacommunities.org/id/london-borough-council/ealing,PLACE,6,LEISURE,GROUNDS MAINTENANCE,1470,,25/08/2022,41026608,1720,28808,J S AGRICULTURE LTD
INSERTED DETAIL,,Ealing Council,http://opendatacommunities.org/id/london-borough-council/ealing,PLACE,6,LEISURE,GROUNDS MAINTENANCE,1470,,12/09/2022,41030083,298.65,11538,DRAYTON FENCING COMPANY
INSERTED DETAIL,,Ealing Council,http://opendatacommunities.org/id/london-borough-council/ealing,CHILDREN & ADULTS,1,SAFEGUARDING & SUPP - BS &A&F,SOCIAL SERVICES -INTER AGENCY BUDGETS,3563,,09/08/2022,41030776,37258.1,26107,DIAGRAMA CHILDREN SERVICES LIMITED
INSERTED DETAIL,,Ealing Council,http://opendatacommunities.org/id/london-borough-council/ealing,CHILDREN & ADULTS,1,EALING SERVICE FOR CHILDREN WITH ADDITIONAL NEEDS,DOMICILIARY CARE - BLOCK,4240,,10/10/2022,23227360,315,28300,BLISS CARE AND TRAINING LTD
INSERTED DETAIL,,Ealing Council,http://opendatacommunities.org/id/london-borough-council/ealing,CHILDREN & ADULTS,1,EALING SERVICE FOR CHILDREN WITH ADDITIONAL NEEDS,DAY ACTIVITY,4666,,10/10/2022,23227338,466.92,15191,THE LOG CABIN CHARITY
INSERTED DETAIL,,Ealing Council,http://opendatacommunities.org/id/london-borough-council/ealing,CHILDREN & ADULTS,1,EALING SERVICE FOR CHILDREN WITH ADDITIONAL NEEDS,DAY ACTIVITY,4666,,10/10/2022,23227338,398.48,15191,THE LOG CABIN CHARITY
INSERTED DETAIL,,Ealing Council,http://opendatacommunities.org/id/london-borough-council/ealing,CHILDREN & ADULTS,1,EALING SERVICE FOR CHILDREN WITH ADDITIONAL NEEDS,DAY ACTIVITY,4666,,10/10/2022,23227338,466.92,15191,THE LOG CABIN CHARITY
INSERTED DETAIL,,Ealing Council,http://opendatacommunities.org/id/london-borough-council/ealing,CHILDREN & ADULTS,1,EALING SERVICE FOR CHILDREN WITH ADDITIONAL NEEDS,DAY ACTIVITY,4666,,10/10/2022,23227338,265.68,15191,THE LOG CABIN CHARITY
INSERTED DETAIL,,Ealing Council,http://opendatacommunities.org/id/london-borough-council/ealing,CHILDREN & ADULTS,1,EALING SERVICE FOR CHILDREN WITH ADDITIONAL NEEDS,DAY ACTIVITY,4666,,10/10/2022,23227338,700.36,15191,THE LOG CABIN CHARITY
INSERTED DETAIL,,Ealing Council,http://opendatacommunities.org/id/london-borough-council/ealing,CHILDREN & ADULTS,1,EALING SERVICE FOR CHILDREN WITH ADDITIONAL NEEDS,DAY ACTIVITY,4666,,10/10/2022,23227338,265.68,15191,THE LOG CABIN CHARITY
INSERTED DETAIL,,Ealing Council,http://opendatacommunities.org/id/london-borough-council/ealing,CHILDREN & ADULTS,1,EALING SERVICE FOR CHILDREN WITH ADDITIONAL NEEDS,DAY ACTIVITY,4666,,10/10/2022,23227338,265.68,15191,THE LOG CABIN CHARITY
INSERTED DETAIL,,Ealing Council,http://opendatacommunities.org/id/london-borough-council/ealing,CHILDREN & ADULTS,1,EALING SERVICE FOR CHILDREN WITH ADDITIONAL NEEDS,DAY ACTIVITY,4666,,10/10/2022,23227338,265.68,15191,THE LOG CABIN CHARITY
INSERTED DETAIL,,Ealing Council,http://opendatacommunities.org/id/london-borough-council/ealing,CHILDREN & ADULTS,1,EALING SERVICE FOR CHILDREN WITH ADDITIONAL NEEDS,DAY ACTIVITY,4666,,10/10/2022,23227338,314.6,15191,THE LOG CABIN CHARITY
INSERTED DETAIL,,Ealing Council,http://opendatacommunities.org/id/london-borough-council/ealing,CHILDREN & ADULTS,1,EALING SERVICE FOR CHILDREN WITH ADDITIONAL NEEDS,DAY ACTIVITY,4666,,10/10/2022,23227338,933.8,15191,THE LOG CABIN CHARITY
INSERTED DETAIL,,Ealing Council,http://opendatacommunities.org/id/london-borough-council/ealing,CHILDREN & ADULTS,1,EALING SERVICE FOR CHILDREN WITH ADDITIONAL NEEDS,DOMICILIARY CARE - BLOCK,4240,,10/10/2022,23227363,311.28,29518,INTEGRATED FAMILY SUPPORT LTD
INSERTED DETAIL,,Ealing Council,http://opendatacommunities.org/id/london-borough-council/ealing,CHILDREN & ADULTS,1,EALING SERVICE FOR CHILDREN WITH ADDITIONAL NEEDS,CHILDRENS SERVICES -ELIGIBLE CHILDREN OTHER COSTS,4282,,10/10/2022,23227232,3814.86,15604,WANDSWORTH BOROUGH COUNCIL
INSERTED DETAIL,,Ealing Council,http://opendatacommunities.org/id/london-borough-council/ealing,CHILDREN & ADULTS,1,EALING SERVICE FOR CHILDREN WITH ADDITIONAL NEEDS,DAY CARE CENTRES,4250,,13/10/2022,23228712,-640,12493,IMPACT OUTREACH NETWORK LTD
INSERTED DETAIL,,Ealing Council,http://opendatacommunities.org/id/london-borough-council/ealing,CHILDREN & ADULTS,1,EALING SERVICE FOR CHILDREN WITH ADDITIONAL NEEDS,SOCIAL SERVICES DIRECT PAYMENTS,4231,,05/10/2022,23225217,1047.12,81023,REDACTED SENSITIVE SUPPLIER
INSERTED DETAIL,,Ealing Council,http://opendatacommunities.org/id/london-borough-council/ealing,CHILDREN & ADULTS,1,EALING SERVICE FOR CHILDREN WITH ADDITIONAL NEEDS,VEHICLE HIRE,2010,,31/07/2022,41029965,304,26869,REDACTED SENSITIVE SUPPLIER
INSERTED DETAIL,,Ealing Council,http://opendatacommunities.org/id/london-borough-council/ealing,CHILDREN & ADULTS,1,EALING SERVICE FOR CHILDREN WITH ADDITIONAL NEEDS,DOMICILIARY CARE - BLOCK,4240,,10/10/2022,23227356,764.64,27070,YOUTH ENGAGEMENT PROGRAMME CIC
INSERTED DETAIL,,Ealing Council,http://opendatacommunities.org/id/london-borough-council/ealing,CHILDREN & ADULTS,1,EALING SERVICE FOR CHILDREN WITH ADDITIONAL NEEDS,DOMICILIARY CARE - BLOCK,4240,,10/10/2022,23227356,422.64,27070,YOUTH ENGAGEMENT PROGRAMME CIC
INSERTED DETAIL,,Ealing Council,http://opendatacommunities.org/id/london-borough-council/ealing,CHILDREN & ADULTS,1,EALING SERVICE FOR CHILDREN WITH ADDITIONAL NEEDS,DOMICILIARY CARE - BLOCK,4240,,10/10/2022,23227356,349.6,27070,YOUTH ENGAGEMENT PROGRAMME CIC
INSERTED DETAIL,,Ealing Council,http://opendatacommunities.org/id/london-borough-council/ealing,CHILDREN & ADULTS,1,EALING SERVICE FOR CHILDREN WITH ADDITIONAL NEEDS,DOMICILIARY CARE - BLOCK,4240,,10/10/2022,23227356,1048.8,27070,YOUTH ENGAGEMENT PROGRAMME CIC
INSERTED DETAIL,,Ealing Council,http://opendatacommunities.org/id/london-borough-council/ealing,CHILDREN & ADULTS,1,EALING SERVICE FOR CHILDREN WITH ADDITIONAL NEEDS,DOMICILIARY CARE - BLOCK,4240,,10/10/2022,23227356,281.76,27070,YOUTH ENGAGEMENT PROGRAMME CIC
INSERTED DETAIL,,Ealing Council,http://opendatacommunities.org/id/london-borough-council/ealing,CHILDREN & ADULTS,1,EALING SERVICE FOR CHILDREN WITH ADDITIONAL NEEDS,CHILDRENS SERVICE -RESPITE CARE SCHEME,4661,,10/10/2022,23227359,1314.24,27850,CHILDREN'S COMPLEX CARE LTD
INSERTED DETAIL,,Ealing Council,http://opendatacommunities.org/id/london-borough-council/ealing,PLACE,6,CAPITAL DELIVERY,EXTERNAL TECHNICAL ADVICE,4060,,28/09/2022,41032272,9910,29774,MIKHAIL RICHES LTD
INSERTED DETAIL,,Ealing Council,http://opendatacommunities.org/id/london-borough-council/ealing,PLACE,6,CAPITAL DELIVERY,EXTERNAL TECHNICAL ADVICE,4060,,07/09/2022,41030515,15625,29774,MIKHAIL RICHES LTD
INSERTED DETAIL,,Ealing Council,http://opendatacommunities.org/id/london-borough-council/ealing,PLACE,6,LEISURE,FUEL COSTS,2020,,02/10/2022,41032173,382.92,26032,SHELL U.K. LIMITED
INSERTED DETAIL,,Ealing Council,http://opendatacommunities.org/id/london-borough-council/ealing,PLACE,6,LEISURE,DIRECT TRANSPORT COSTS,2000,,02/10/2022,41032728,847.86,13007,LLOYDS TSB AUTOLEASE LTD
INSERTED DETAIL,,Ealing Council,http://opendatacommunities.org/id/london-borough-council/ealing,PLACE,6,LEISURE,REPAIR AND MAINTENANCE,1410,,30/09/2022,41032934,380,20981,CLEARWAY ENVIRONMENTAL SERVICES (UK) LTD
INSERTED DETAIL,,Ealing Council,http://opendatacommunities.org/id/london-borough-council/ealing,CHILDREN & ADULTS,1,OLDER PEOPLE,NURSING HOMES EXTERNAL,4230,,13/10/2022,23228633,2708,14499,RUISLIP NURSING HOME
INSERTED DETAIL,,Ealing Council,http://opendatacommunities.org/id/london-borough-council/ealing,CHILDREN & ADULTS,1,OLDER PEOPLE,RESIDENTIAL HOMES EXTERNAL,4220,,13/10/2022,23228633,2621.76,14499,RUISLIP NURSING HOME
INSERTED DETAIL,,Ealing Council,http://opendatacommunities.org/id/london-borough-council/ealing,CHILDREN & ADULTS,1,OLDER PEOPLE,RESIDENTIAL HOMES EXTERNAL,4220,,13/10/2022,23228642,4668.4,15202,A & I CARE HOME LTD T/A THE MEADOWS RES CARE HOME
INSERTED DETAIL,,Ealing Council,http://opendatacommunities.org/id/london-borough-council/ealing,CHILDREN & ADULTS,1,OLDER PEOPLE,EMI RESIDENTIAL,4227,,13/10/2022,23228642,2754.28,15202,A & I CARE HOME LTD T/A THE MEADOWS RES CARE HOME
INSERTED DETAIL,,Ealing Council,http://opendatacommunities.org/id/london-borough-council/ealing,CHILDREN & ADULTS,1,OLDER PEOPLE,EMI RESIDENTIAL,4227,,13/10/2022,23228642,5092.8,15202,A & I CARE HOME LTD T/A THE MEADOWS RES CARE HOME
INSERTED DETAIL,,Ealing Council,http://opendatacommunities.org/id/london-borough-council/ealing,CHILDREN & ADULTS,1,OLDER PEOPLE,EMI RESIDENTIAL,4227,,13/10/2022,23228642,5200,15202,A & I CARE HOME LTD T/A THE MEADOWS RES CARE HOME
INSERTED DETAIL,,Ealing Council,http://opendatacommunities.org/id/london-borough-council/ealing,CHILDREN & ADULTS,1,OLDER PEOPLE,RESIDENTIAL HOMES EXTERNAL,4220,,13/10/2022,23228625,78336,13286,MD HOMES
INSERTED DETAIL,,Ealing Council,http://opendatacommunities.org/id/london-borough-council/ealing,CHILDREN & ADULTS,1,OLDER PEOPLE,EMI NURSING,4237,,13/10/2022,23228625,5480.6,13286,MD HOMES
INSERTED DETAIL,,Ealing Council,http://opendatacommunities.org/id/london-borough-council/ealing,CHILDREN & ADULTS,1,OLDER PEOPLE,EMI NURSING,4237,,13/10/2022,23228698,6264,13286,MD HOMES
INSERTED DETAIL,,Ealing Council,http://opendatacommunities.org/id/london-borough-council/ealing,CHILDREN & ADULTS,1,OLDER PEOPLE,RESIDENTIAL HOMES EXTERNAL,4220,,13/10/2022,23228789,2133.36,13672,NAZARETH CARE CHARITABLE TRUST FINCHLEY
INSERTED DETAIL,,Ealing Council,http://opendatacommunities.org/id/london-borough-council/ealing,CHILDREN & ADULTS,1,OLDER PEOPLE,RESIDENTIAL HOMES EXTERNAL,4220,,13/10/2022,23228666,2898.72,11876,FARRINGTON CARE HMS LTD T/A MAYFIELD RES CARE HOME
INSERTED DETAIL,,Ealing Council,http://opendatacommunities.org/id/london-borough-council/ealing,CHILDREN & ADULTS,1,OLDER PEOPLE,EMI NURSING,4237,,13/10/2022,23228608,2660,12285,HAYES COTTAGE NURSING HOME
INSERTED DETAIL,,Ealing Council,http://opendatacommunities.org/id/london-borough-council/ealing,CHILDREN & ADULTS,1,OLDER PEOPLE,DOMICILIARY CARE - BLOCK,4240,,29/09/2022,23224374,450.85,27982,SIHARA CARE LIMITED
INSERTED DETAIL,,Ealing Council,http://opendatacommunities.org/id/london-borough-council/ealing,CHILDREN & ADULTS,1,OLDER PEOPLE,DOMICILIARY CARE - BLOCK,4240,,29/09/2022,23224374,703.92,27982,SIHARA CARE LIMITED
INSERTED DETAIL,,Ealing Council,http://opendatacommunities.org/id/london-borough-council/ealing,CHILDREN & ADULTS,1,OLDER PEOPLE,DOMICILIARY CARE - BLOCK,4240,,29/09/2022,23224374,432.01,27982,SIHARA CARE LIMITED
INSERTED DETAIL,,Ealing Council,http://opendatacommunities.org/id/london-borough-council/ealing,CHILDREN & ADULTS,1,OLDER PEOPLE,DOMICILIARY CARE - BLOCK,4240,,27/09/2022,23224364,420,24418,SIGNET HEALTHCARE LTD
INSERTED DETAIL,,Ealing Council,http://opendatacommunities.org/id/london-borough-council/ealing,CHILDREN & ADULTS,1,OLDER PEOPLE,DOMICILIARY CARE - BLOCK,4240,,27/09/2022,23224364,1053.92,24418,SIGNET HEALTHCARE LTD
INSERTED DETAIL,,Ealing Council,http://opendatacommunities.org/id/london-borough-council/ealing,CHILDREN & ADULTS,1,OLDER PEOPLE,DOMICILIARY CARE - BLOCK,4240,,27/09/2022,23224364,420,24418,SIGNET HEALTHCARE LTD
INSERTED DETAIL,,Ealing Council,http://opendatacommunities.org/id/london-borough-council/ealing,CHILDREN & ADULTS,1,OLDER PEOPLE,DOMICILIARY CARE - BLOCK,4240,,27/09/2022,23224364,315,24418,SIGNET HEALTHCARE LTD
INSERTED DETAIL,,Ealing Council,http://opendatacommunities.org/id/london-borough-council/ealing,CHILDREN & ADULTS,1,OLDER PEOPLE,DOMICILIARY CARE - BLOCK,4240,,05/07/2022,23227366,2595,24418,SIGNET HEALTHCARE LTD
INSERTED DETAIL,,Ealing Council,http://opendatacommunities.org/id/london-borough-council/ealing,CHILDREN & ADULTS,1,OLDER PEOPLE,DOMICILIARY CARE - BLOCK,4240,,05/07/2022,23227366,1890,24418,SIGNET HEALTHCARE LTD
INSERTED DETAIL,,Ealing Council,http://opendatacommunities.org/id/london-borough-council/ealing,CHILDREN & ADULTS,1,OLDER PEOPLE,DOMICILIARY CARE - BLOCK,4240,,27/07/2022,23227366,1890,24418,SIGNET HEALTHCARE LTD
INSERTED DETAIL,,Ealing Council,http://opendatacommunities.org/id/london-borough-council/ealing,CHILDREN & ADULTS,1,OLDER PEOPLE,DOMICILIARY CARE - BLOCK,4240,,06/09/2022,23227366,1890,24418,SIGNET HEALTHCARE LTD
INSERTED DETAIL,,Ealing Council,http://opendatacommunities.org/id/london-borough-council/ealing,CHILDREN & ADULTS,1,OLDER PEOPLE,DOMICILIARY CARE - BLOCK,4240,,27/09/2022,23227366,1890,24418,SIGNET HEALTHCARE LTD
INSERTED DETAIL,,Ealing Council,http://opendatacommunities.org/id/london-borough-council/ealing,CHILDREN & ADULTS,1,OLDER PEOPLE,DOMICILIARY CARE - BLOCK,4240,,11/10/2022,23227366,975,24418,SIGNET HEALTHCARE LTD
INSERTED DETAIL,,Ealing Council,http://opendatacommunities.org/id/london-borough-council/ealing,CHILDREN & ADULTS,1,OLDER PEOPLE,DOMICILIARY CARE - BLOCK,4240,,11/10/2022,23227366,-10192.5,24418,SIGNET HEALTHCARE LTD
INSERTED DETAIL,,Ealing Council,http://opendatacommunities.org/id/london-borough-council/ealing,CHILDREN & ADULTS,1,OLDER PEOPLE,DOMICILIARY CARE - BLOCK,4240,,11/10/2022,23227366,-622.5,24418,SIGNET HEALTHCARE LTD
INSERTED DETAIL,,Ealing Council,http://opendatacommunities.org/id/london-borough-council/ealing,CHILDREN & ADULTS,1,OLDER PEOPLE,RESIDENTIAL HOMES EXTERNAL,4220,,13/10/2022,23228777,2414.84,26315,WOODHOUSE CARE HOMES LTD T/A PRANAM CARE CENTRE
INSERTED DETAIL,,Ealing Council,http://opendatacommunities.org/id/london-borough-council/ealing,CHILDREN & ADULTS,1,OLDER PEOPLE,RESIDENTIAL HOMES EXTERNAL,4220,,13/10/2022,23228777,2758.6,26315,WOODHOUSE CARE HOMES LTD T/A PRANAM CARE CENTRE
INSERTED DETAIL,,Ealing Council,http://opendatacommunities.org/id/london-borough-council/ealing,CHILDREN & ADULTS,1,OLDER PEOPLE,RESIDENTIAL HOMES EXTERNAL,4220,,13/10/2022,23228777,2436,26315,WOODHOUSE CARE HOMES LTD T/A PRANAM CARE CENTRE
INSERTED DETAIL,,Ealing Council,http://opendatacommunities.org/id/london-borough-council/ealing,CHILDREN & ADULTS,1,OLDER PEOPLE,RESIDENTIAL HOMES EXTERNAL,4220,,13/10/2022,23228777,2436,26315,WOODHOUSE CARE HOMES LTD T/A PRANAM CARE CENTRE
INSERTED DETAIL,,Ealing Council,http://opendatacommunities.org/id/london-borough-council/ealing,PLACE,6,STREET SERVICES,PAYMENTS TO CONTRACTORS,4000,,28/10/2022,41032925,83452.85,28826,GREENER EALING LIMITED
INSERTED DETAIL,,Ealing Council,http://opendatacommunities.org/id/london-borough-council/ealing,PLACE,6,HIGHWAYS,PAYMENTS TO CONTRACTORS,4000,,30/09/2022,41032605,10260,19125,PROJECT CENTRE LIMITED
INSERTED DETAIL,,Ealing Council,http://opendatacommunities.org/id/london-borough-council/ealing,PLACE,6,HIGHWAYS,SPECIALIST TECHNICAL CONTRACTORS,4050,,22/08/2022,41031909,63441.25,26979,XAIS ASSET MANAGEMENT LTD
INSERTED DETAIL,,Ealing Council,http://opendatacommunities.org/id/london-borough-council/ealing,PLACE,6,LEISURE,FENCING,1472,,09/08/2022,41025635,4307.54,11538,DRAYTON FENCING COMPANY
INSERTED DETAIL,,Ealing Council,http://opendatacommunities.org/id/london-borough-council/ealing,CHILDREN & ADULTS,1,OLDER PEOPLE,SPECIALIST TECHNICAL CONTRACTORS,4050,,30/09/2022,41031965,1162.5,28927,LIBRA PARTNERSHIP LTD
INSERTED DETAIL,,Ealing Council,http://opendatacommunities.org/id/london-borough-council/ealing,CHILDREN & ADULTS,1,OLDER PEOPLE,MEDICAL REPORTS,2560,,28/09/2022,41032241,-1650,26801,HOJONA LTD
INSERTED DETAIL,,Ealing Council,http://opendatacommunities.org/id/london-borough-council/ealing,CHILDREN & ADULTS,1,OLDER PEOPLE,MEDICAL REPORTS,2560,,07/09/2022,41029698,4675,26801,HOJONA LTD
INSERTED DETAIL,,Ealing Council,http://opendatacommunities.org/id/london-borough-council/ealing,CHILDREN & ADULTS,1,OLDER PEOPLE,MEDICAL REPORTS,2560,,14/10/2022,41030351,2750,26801,HOJONA LTD
INSERTED DETAIL,,Ealing Council,http://opendatacommunities.org/id/london-borough-council/ealing,CHILDREN & ADULTS,1,OLDER PEOPLE,MEDICAL REPORTS,2560,,21/09/2022,41031022,6600,26801,HOJONA LTD
INSERTED DETAIL,,Ealing Council,http://opendatacommunities.org/id/london-borough-council/ealing,CHILDREN & ADULTS,1,OLDER PEOPLE,MEDICAL REPORTS,2560,,28/09/2022,41032006,275,26801,HOJONA LTD
INSERTED DETAIL,,Ealing Council,http://opendatacommunities.org/id/london-borough-council/ealing,CHILDREN & ADULTS,1,OLDER PEOPLE,MEDICAL REPORTS,2560,,05/10/2022,41033408,3850,26801,HOJONA LTD
INSERTED DETAIL,,Ealing Council,http://opendatacommunities.org/id/london-borough-council/ealing,CHILDREN & ADULTS,1,OLDER PEOPLE,PAYMENTS TO HEALTH AUTHS.,4360,,28/09/2022,41032007,275,26801,HOJONA LTD
INSERTED DETAIL,,Ealing Council,http://opendatacommunities.org/id/london-borough-council/ealing,CHILDREN & ADULTS,1,OLDER PEOPLE,PAYMENTS TO HEALTH AUTHS.,4360,,28/09/2022,41032242,-1650,26801,HOJONA LTD
INSERTED DETAIL,,Ealing Council,http://opendatacommunities.org/id/london-borough-council/ealing,CHILDREN & ADULTS,1,OLDER PEOPLE,PAYMENTS TO HEALTH AUTHS.,4360,,21/09/2022,41031018,4675,26801,HOJONA LTD
INSERTED DETAIL,,Ealing Council,http://opendatacommunities.org/id/london-borough-council/ealing,CHILDREN & ADULTS,1,OLDER PEOPLE,PAYMENTS TO HEALTH AUTHS.,4360,,07/09/2022,41029697,5225,26801,HOJONA LTD
INSERTED DETAIL,,Ealing Council,http://opendatacommunities.org/id/london-borough-council/ealing,CHILDREN & ADULTS,1,OLDER PEOPLE,PAYMENTS TO HEALTH AUTHS.,4360,,14/09/2022,41030349,2475,26801,HOJONA LTD
INSERTED DETAIL,,Ealing Council,http://opendatacommunities.org/id/london-borough-council/ealing,CHILDREN & ADULTS,1,OLDER PEOPLE,PAYMENTS TO HEALTH AUTHS.,4360,,05/10/2022,41033407,3850,26801,HOJONA LTD
INSERTED DETAIL,,Ealing Council,http://opendatacommunities.org/id/london-borough-council/ealing,CHILDREN & ADULTS,1,OLDER PEOPLE,PAYMENTS TO HEALTH AUTHS.,4360,,31/08/2022,41028405,4750,28801,ACTION FIRST ASSESSMENTS LTD
INSERTED DETAIL,,Ealing Council,http://opendatacommunities.org/id/london-borough-council/ealing,CHILDREN & ADULTS,1,OLDER PEOPLE,PAYMENTS TO HEALTH AUTHS.,4360,,05/10/2022,41033261,3000,28801,ACTION FIRST ASSESSMENTS LTD
INSERTED DETAIL,,Ealing Council,http://opendatacommunities.org/id/london-borough-council/ealing,CHILDREN & ADULTS,1,OLDER PEOPLE,MEDICAL REPORTS,2560,,31/08/2022,41028407,5700,28801,ACTION FIRST ASSESSMENTS LTD
INSERTED DETAIL,,Ealing Council,http://opendatacommunities.org/id/london-borough-council/ealing,CHILDREN & ADULTS,1,OLDER PEOPLE,MEDICAL REPORTS,2560,,05/10/2022,41033263,2700,28801,ACTION FIRST ASSESSMENTS LTD
INSERTED DETAIL,,Ealing Council,http://opendatacommunities.org/id/london-borough-council/ealing,CHILDREN & ADULTS,1,OLDER PEOPLE,SPECIALIST TECHNICAL CONTRACTORS,4050,,04/10/2022,41032923,23925,26782,THE ADVOCACY PROJECT
INSERTED DETAIL,,Ealing Council,http://opendatacommunities.org/id/london-borough-council/ealing,CHILDREN & ADULTS,1,SAFEGUARDING & SUPPORT - CIN,SECTION 17 INTENTIONALLY HOMELESS FROM HOUSING,4299,,31/07/2022,41032113,1176,15489,CENTREMARK PROPERTIES LIMITED
INSERTED DETAIL,,Ealing Council,http://opendatacommunities.org/id/london-borough-council/ealing,CHILDREN & ADULTS,1,SAFEGUARDING & SUPPORT - CIN,SECTION 17 INTENTIONALLY HOMELESS FROM HOUSING,4299,,31/07/2022,41032114,2944,15489,CENTREMARK PROPERTIES LIMITED
INSERTED DETAIL,,Ealing Council,http://opendatacommunities.org/id/london-borough-council/ealing,CHILDREN & ADULTS,1,SAFEGUARDING & SUPPORT - CIN,SECTION 17 INTENTIONALLY HOMELESS FROM HOUSING,4299,,30/09/2022,41032115,2048,15489,CENTREMARK PROPERTIES LIMITED
INSERTED DETAIL,,Ealing Council,http://opendatacommunities.org/id/london-borough-council/ealing,CHILDREN & ADULTS,1,SAFEGUARDING & SUPPORT - CIN,SECTION 17 INTENTIONALLY HOMELESS FROM HOUSING,4299,,30/09/2022,41032116,4355,15489,CENTREMARK PROPERTIES LIMITED
INSERTED DETAIL,,Ealing Council,http://opendatacommunities.org/id/london-borough-council/ealing,CHILDREN & ADULTS,1,SAFEGUARDING & SUPPORT - CIN,SECTION 17 INTENTIONALLY HOMELESS FROM HOUSING,4299,,30/09/2022,41032118,748,15489,CENTREMARK PROPERTIES LIMITED
INSERTED DETAIL,,Ealing Council,http://opendatacommunities.org/id/london-borough-council/ealing,CHILDREN & ADULTS,1,SAFEGUARDING & SUPPORT - CIN,SECTION 17 INTENTIONALLY HOMELESS FROM HOUSING,4299,,30/09/2022,41032119,540,15489,CENTREMARK PROPERTIES LIMITED
INSERTED DETAIL,,Ealing Council,http://opendatacommunities.org/id/london-borough-council/ealing,CHILDREN & ADULTS,1,SAFEGUARDING & SUPPORT - CIN,SECTION 17 INTENTIONALLY HOMELESS FROM HOUSING,4299,,25/10/2022,41034025,1984,15489,CENTREMARK PROPERTIES LIMITED
INSERTED DETAIL,,Ealing Council,http://opendatacommunities.org/id/london-borough-council/ealing,CHILDREN & ADULTS,1,EALING SERVICE FOR CHILDREN WITH ADDITIONAL NEEDS,RESIDENTIAL HOMES EXTERNAL,4220,,10/10/2022,23227195,21598.25,24301,THE CHILDRENS TRUST
INSERTED DETAIL,,Ealing Council,http://opendatacommunities.org/id/london-borough-council/ealing,CHILDREN & ADULTS,1,SAFEGUARDING & SUPPORT - CIN,SECTION 17,4290,,13/08/2022,41030888,1050,15489,CENTREMARK PROPERTIES LIMITED
INSERTED DETAIL,,Ealing Council,http://opendatacommunities.org/id/london-borough-council/ealing,CHILDREN & ADULTS,1,SAFEGUARDING & SUPPORT - CIN,SECTION 17 NRPF,4297,,31/08/2022,41028253,1025.79,15654,WEST LONDON YMCA
INSERTED DETAIL,,Ealing Council,http://opendatacommunities.org/id/london-borough-council/ealing,PLACE,6,HIGHWAYS,PAYMENTS TO CONTRACTORS,4000,,30/09/2022,41032452,3560.48,26979,XAIS ASSET MANAGEMENT LTD
INSERTED DETAIL,,Ealing Council,http://opendatacommunities.org/id/london-borough-council/ealing,PLACE,6,HIGHWAYS,CONTRACT PAYMENTS -HIGHWAYS,4005,,15/07/2022,41032721,1380,28919,DRAINCARE LTD
INSERTED DETAIL,,Ealing Council,http://opendatacommunities.org/id/london-borough-council/ealing,PLACE,6,HIGHWAYS,CONTRACT PAYMENTS -HIGHWAYS,4005,,21/06/2022,41032723,579,28919,DRAINCARE LTD
INSERTED DETAIL,,Ealing Council,http://opendatacommunities.org/id/london-borough-council/ealing,PLACE,6,HIGHWAYS,PAYMENTS TO CONTRACTORS,4000,,06/10/2022,41031649,6523.44,26979,XAIS ASSET MANAGEMENT LTD
INSERTED DETAIL,,Ealing Council,http://opendatacommunities.org/id/london-borough-council/ealing,CHILDREN & ADULTS,1,SAFEGUARDING & SUPP - BS &A&F,SPECIAL GUARDIANSHIP ALLOWANCE (SOC SERV),4663,,11/10/2022,23227469,314.21,200049,REDACTED SENSITIVE SUPPLIER
INSERTED DETAIL,,Ealing Council,http://opendatacommunities.org/id/london-borough-council/ealing,CHILDREN & ADULTS,1,SAFEGUARDING & SUPP - BS &A&F,SPECIAL GUARDIANSHIP ALLOWANCE (SOC SERV),4663,,18/10/2022,23229601,314.21,200049,REDACTED SENSITIVE SUPPLIER
INSERTED DETAIL,,Ealing Council,http://opendatacommunities.org/id/london-borough-council/ealing,CHILDREN & ADULTS,1,SAFEGUARDING & SUPP - BS &A&F,SPECIAL GUARDIANSHIP ALLOWANCE (SOC SERV),4663,,25/10/2022,23237103,314.21,200049,REDACTED SENSITIVE SUPPLIER
INSERTED DETAIL,,Ealing Council,http://opendatacommunities.org/id/london-borough-council/ealing,CHILDREN & ADULTS,1,SAFEGUARDING & SUPP - BS &A&F,CHILDRENS SERVICES ADOPTION ALLOWANCE,4387,,04/10/2022,23224721,308.95,200296,REDACTED SENSITIVE SUPPLIER
INSERTED DETAIL,,Ealing Council,http://opendatacommunities.org/id/london-borough-council/ealing,CHILDREN & ADULTS,1,SAFEGUARDING & SUPP - BS &A&F,CHILDRENS SERVICES ADOPTION ALLOWANCE,4387,,11/10/2022,23227411,308.95,200296,REDACTED SENSITIVE SUPPLIER
INSERTED DETAIL,,Ealing Council,http://opendatacommunities.org/id/london-borough-council/ealing,CHILDREN & ADULTS,1,SAFEGUARDING & SUPP - BS &A&F,CHILDRENS SERVICES ADOPTION ALLOWANCE,4387,,18/10/2022,23229544,308.95,200296,REDACTED SENSITIVE SUPPLIER
INSERTED DETAIL,,Ealing Council,http://opendatacommunities.org/id/london-borough-council/ealing,CHILDREN & ADULTS,1,SAFEGUARDING & SUPP - BS &A&F,CHILDRENS SERVICES ADOPTION ALLOWANCE,4387,,25/10/2022,23237047,308.95,200296,REDACTED SENSITIVE SUPPLIER
INSERTED DETAIL,,Ealing Council,http://opendatacommunities.org/id/london-borough-council/ealing,CHILDREN & ADULTS,1,SAFEGUARDING & SUPP - BS &A&F,SPECIAL GUARDIANSHIP ALLOWANCE (SOC SERV),4663,,04/10/2022,23224730,255.95,200312,REDACTED SENSITIVE SUPPLIER
INSERTED DETAIL,,Ealing Council,http://opendatacommunities.org/id/london-borough-council/ealing,CHILDREN & ADULTS,1,SAFEGUARDING & SUPP - BS &A&F,SPECIAL GUARDIANSHIP ALLOWANCE (SOC SERV),4663,,11/10/2022,23227421,255.95,200312,REDACTED SENSITIVE SUPPLIER
INSERTED DETAIL,,Ealing Council,http://opendatacommunities.org/id/london-borough-council/ealing,CHILDREN & ADULTS,1,SAFEGUARDING & SUPP - BS &A&F,SPECIAL GUARDIANSHIP ALLOWANCE (SOC SERV),4663,,18/10/2022,23229553,255.95,200312,REDACTED SENSITIVE SUPPLIER
INSERTED DETAIL,,Ealing Council,http://opendatacommunities.org/id/london-borough-council/ealing,CHILDREN & ADULTS,1,SAFEGUARDING & SUPP - BS &A&F,SPECIAL GUARDIANSHIP ALLOWANCE (SOC SERV),4663,,25/10/2022,23237056,255.95,200312,REDACTED SENSITIVE SUPPLIER
INSERTED DETAIL,,Ealing Council,http://opendatacommunities.org/id/london-borough-council/ealing,CHILDREN & ADULTS,1,SAFEGUARDING & SUPP - BS &A&F,CHILDRENS SERVICES ADOPTION ALLOWANCE,4387,,25/10/2022,23237200,287.67,200411,REDACTED SENSITIVE SUPPLIER
INSERTED DETAIL,,Ealing Council,http://opendatacommunities.org/id/london-borough-council/ealing,CHILDREN & ADULTS,1,SAFEGUARDING & SUPP - BS &A&F,CHILDRENS SERVICES ADOPTION ALLOWANCE,4387,,18/10/2022,23229695,287.67,200411,REDACTED SENSITIVE SUPPLIER
INSERTED DETAIL,,Ealing Council,http://opendatacommunities.org/id/london-borough-council/ealing,CHILDREN & ADULTS,1,SAFEGUARDING & SUPP - BS &A&F,CHILDRENS SERVICES ADOPTION ALLOWANCE,4387,,11/10/2022,23227566,287.67,200411,REDACTED SENSITIVE SUPPLIER
INSERTED DETAIL,,Ealing Council,http://opendatacommunities.org/id/london-borough-council/ealing,CHILDREN & ADULTS,1,SAFEGUARDING & SUPP - BS &A&F,CHILDRENS SERVICES ADOPTION ALLOWANCE,4387,,04/10/2022,23224876,287.67,200411,REDACTED SENSITIVE SUPPLIER
INSERTED DETAIL,,Ealing Council,http://opendatacommunities.org/id/london-borough-council/ealing,CHILDREN & ADULTS,1,SAFEGUARDING & SUPP - BS &A&F,CHILDRENS SERVICES ADOPTION ALLOWANCE,4387,,04/10/2022,23224943,356.05,200820,REDACTED SENSITIVE SUPPLIER
INSERTED DETAIL,,Ealing Council,http://opendatacommunities.org/id/london-borough-council/ealing,CHILDREN & ADULTS,1,SAFEGUARDING & SUPP - BS &A&F,CHILDRENS SERVICES ADOPTION ALLOWANCE,4387,,04/10/2022,23224943,348.95,200820,REDACTED SENSITIVE SUPPLIER
INSERTED DETAIL,,Ealing Council,http://opendatacommunities.org/id/london-borough-council/ealing,CHILDREN & ADULTS,1,SAFEGUARDING & SUPP - BS &A&F,CHILDRENS SERVICES ADOPTION ALLOWANCE,4387,,04/10/2022,23224943,356.05,200820,REDACTED SENSITIVE SUPPLIER
INSERTED DETAIL,,Ealing Council,http://opendatacommunities.org/id/london-borough-council/ealing,CHILDREN & ADULTS,1,SAFEGUARDING & SUPP - BS &A&F,CHILDRENS SERVICES ADOPTION ALLOWANCE,4387,,11/10/2022,23227635,356.05,200820,REDACTED SENSITIVE SUPPLIER
INSERTED DETAIL,,Ealing Council,http://opendatacommunities.org/id/london-borough-council/ealing,CHILDREN & ADULTS,1,EALING SERVICE FOR CHILDREN WITH ADDITIONAL NEEDS,DOMICILIARY CARE - BLOCK,4240,,10/10/2022,23227358,262.32,27926,INFINITY CARE SERVICES LIMITED
INSERTED DETAIL,,Ealing Council,http://opendatacommunities.org/id/london-borough-council/ealing,CHILDREN & ADULTS,1,EALING SERVICE FOR CHILDREN WITH ADDITIONAL NEEDS,DOMICILIARY CARE - BLOCK,4240,,10/10/2022,23227358,338.52,27926,INFINITY CARE SERVICES LIMITED
INSERTED DETAIL,,Ealing Council,http://opendatacommunities.org/id/london-borough-council/ealing,CHILDREN & ADULTS,1,EALING SERVICE FOR CHILDREN WITH ADDITIONAL NEEDS,DOMICILIARY CARE - BLOCK,4240,,10/10/2022,23227358,262.32,27926,INFINITY CARE SERVICES LIMITED
INSERTED DETAIL,,Ealing Council,http://opendatacommunities.org/id/london-borough-council/ealing,CHILDREN & ADULTS,1,EALING SERVICE FOR CHILDREN WITH ADDITIONAL NEEDS,DOMICILIARY CARE - BLOCK,4240,,10/10/2022,23227358,262.32,27926,INFINITY CARE SERVICES LIMITED
INSERTED DETAIL,,Ealing Council,http://opendatacommunities.org/id/london-borough-council/ealing,CHILDREN & ADULTS,1,EALING SERVICE FOR CHILDREN WITH ADDITIONAL NEEDS,DOMICILIARY CARE - BLOCK,4240,,10/10/2022,23227358,344,27926,INFINITY CARE SERVICES LIMITED
INSERTED DETAIL,,Ealing Council,http://opendatacommunities.org/id/london-borough-council/ealing,CHILDREN & ADULTS,1,EALING SERVICE FOR CHILDREN WITH ADDITIONAL NEEDS,DOMICILIARY CARE - BLOCK,4240,,10/10/2022,23227358,338.52,27926,INFINITY CARE SERVICES LIMITED
INSERTED DETAIL,,Ealing Council,http://opendatacommunities.org/id/london-borough-council/ealing,CHILDREN & ADULTS,1,EALING SERVICE FOR CHILDREN WITH ADDITIONAL NEEDS,DOMICILIARY CARE - BLOCK,4240,,10/10/2022,23227358,262.32,27926,INFINITY CARE SERVICES LIMITED
INSERTED DETAIL,,Ealing Council,http://opendatacommunities.org/id/london-borough-council/ealing,CHILDREN & ADULTS,1,EALING SERVICE FOR CHILDREN WITH ADDITIONAL NEEDS,DOMICILIARY CARE - BLOCK,4240,,10/10/2022,23227358,262.32,27926,INFINITY CARE SERVICES LIMITED
INSERTED DETAIL,,Ealing Council,http://opendatacommunities.org/id/london-borough-council/ealing,CHILDREN & ADULTS,1,EALING SERVICE FOR CHILDREN WITH ADDITIONAL NEEDS,DOMICILIARY CARE - BLOCK,4240,,10/10/2022,23227358,1680,27926,INFINITY CARE SERVICES LIMITED
INSERTED DETAIL,,Ealing Council,http://opendatacommunities.org/id/london-borough-council/ealing,CHILDREN & ADULTS,1,EALING SERVICE FOR CHILDREN WITH ADDITIONAL NEEDS,DOMICILIARY CARE - BLOCK,4240,,10/10/2022,23227358,524.64,27926,INFINITY CARE SERVICES LIMITED
INSERTED DETAIL,,Ealing Council,http://opendatacommunities.org/id/london-borough-council/ealing,CHILDREN & ADULTS,1,EALING SERVICE FOR CHILDREN WITH ADDITIONAL NEEDS,DOMICILIARY CARE - BLOCK,4240,,10/10/2022,23227358,-912,27926,INFINITY CARE SERVICES LIMITED
INSERTED DETAIL,,Ealing Council,http://opendatacommunities.org/id/london-borough-council/ealing,CHILDREN & ADULTS,1,EALING SERVICE FOR CHILDREN WITH ADDITIONAL NEEDS,DOMICILIARY CARE - BLOCK,4240,,10/10/2022,23227358,524.72,27926,INFINITY CARE SERVICES LIMITED
INSERTED DETAIL,,Ealing Council,http://opendatacommunities.org/id/london-borough-council/ealing,CHILDREN & ADULTS,1,EALING SERVICE FOR CHILDREN WITH ADDITIONAL NEEDS,DOMICILIARY CARE - BLOCK,4240,,10/10/2022,23227358,640,27926,INFINITY CARE SERVICES LIMITED
INSERTED DETAIL,,Ealing Council,http://opendatacommunities.org/id/london-borough-council/ealing,CHILDREN & ADULTS,1,EALING SERVICE FOR CHILDREN WITH ADDITIONAL NEEDS,DOMICILIARY CARE - BLOCK,4240,,10/10/2022,23227358,960,27926,INFINITY CARE SERVICES LIMITED
INSERTED DETAIL,,Ealing Council,http://opendatacommunities.org/id/london-borough-council/ealing,CHILDREN & ADULTS,1,EALING SERVICE FOR CHILDREN WITH ADDITIONAL NEEDS,DOMICILIARY CARE - BLOCK,4240,,10/10/2022,23227358,338.52,27926,INFINITY CARE SERVICES LIMITED
INSERTED DETAIL,,Ealing Council,http://opendatacommunities.org/id/london-borough-council/ealing,CHILDREN & ADULTS,1,EALING SERVICE FOR CHILDREN WITH ADDITIONAL NEEDS,DOMICILIARY CARE - BLOCK,4240,,10/10/2022,23227358,524.64,27926,INFINITY CARE SERVICES LIMITED
INSERTED DETAIL,,Ealing Council,http://opendatacommunities.org/id/london-borough-council/ealing,CHILDREN & ADULTS,1,EALING SERVICE FOR CHILDREN WITH ADDITIONAL NEEDS,DAY ACTIVITY,4666,,10/10/2022,23227341,-4905.6,28004,Q +
INSERTED DETAIL,,Ealing Council,http://opendatacommunities.org/id/london-borough-council/ealing,CHILDREN & ADULTS,1,EALING SERVICE FOR CHILDREN WITH ADDITIONAL NEEDS,VEHICLE HIRE,2010,,01/09/2022,41031990,5110,28982,TATA MINI CAB LTD
INSERTED DETAIL,,Ealing Council,http://opendatacommunities.org/id/london-borough-council/ealing,CHILDREN & ADULTS,1,EALING SERVICE FOR CHILDREN WITH ADDITIONAL NEEDS,VEHICLE HIRE,2010,,01/09/2022,41031991,1930,28982,TATA MINI CAB LTD
INSERTED DETAIL,,Ealing Council,http://opendatacommunities.org/id/london-borough-council/ealing,CHILDREN & ADULTS,1,EALING SERVICE FOR CHILDREN WITH ADDITIONAL NEEDS,VEHICLE HIRE,2010,,01/08/2022,41030763,8220,28982,TATA MINI CAB LTD
INSERTED DETAIL,,Ealing Council,http://opendatacommunities.org/id/london-borough-council/ealing,CHILDREN & ADULTS,1,EALING SERVICE FOR CHILDREN WITH ADDITIONAL NEEDS,VEHICLE HIRE,2010,,01/08/2022,41030759,2945,28982,TATA MINI CAB LTD
INSERTED DETAIL,,Ealing Council,http://opendatacommunities.org/id/london-borough-council/ealing,CHILDREN & ADULTS,1,EALING SERVICE FOR CHILDREN WITH ADDITIONAL NEEDS,SOCIAL SERVICES DIRECT PAYMENTS,4231,,05/10/2022,23225219,520.56,80764,CARE IN FINANCE LTD
INSERTED DETAIL,,Ealing Council,http://opendatacommunities.org/id/london-borough-council/ealing,CHILDREN & ADULTS,1,EALING SERVICE FOR CHILDREN WITH ADDITIONAL NEEDS,SOCIAL SERVICES DIRECT PAYMENTS,4231,,05/10/2022,23225219,1044,80764,CARE IN FINANCE LTD
INSERTED DETAIL,,Ealing Council,http://opendatacommunities.org/id/london-borough-council/ealing,CHILDREN & ADULTS,1,EALING SERVICE FOR CHILDREN WITH ADDITIONAL NEEDS,SOCIAL SERVICES DIRECT PAYMENTS,4231,,05/10/2022,23225219,876.68,80764,CARE IN FINANCE LTD
INSERTED DETAIL,,Ealing Council,http://opendatacommunities.org/id/london-borough-council/ealing,CHILDREN & ADULTS,1,EALING SERVICE FOR CHILDREN WITH ADDITIONAL NEEDS,SOCIAL SERVICES DIRECT PAYMENTS,4231,,05/10/2022,23225219,2060,80764,CARE IN FINANCE LTD
INSERTED DETAIL,,Ealing Council,http://opendatacommunities.org/id/london-borough-council/ealing,CHILDREN & ADULTS,1,EALING SERVICE FOR CHILDREN WITH ADDITIONAL NEEDS,SOCIAL SERVICES DIRECT PAYMENTS,4231,,05/10/2022,23225219,516.36,80764,CARE IN FINANCE LTD
INSERTED DETAIL,,Ealing Council,http://opendatacommunities.org/id/london-borough-council/ealing,CHILDREN & ADULTS,1,EALING SERVICE FOR CHILDREN WITH ADDITIONAL NEEDS,SOCIAL SERVICES DIRECT PAYMENTS,4231,,05/10/2022,23225219,373.68,80764,CARE IN FINANCE LTD
INSERTED DETAIL,,Ealing Council,http://opendatacommunities.org/id/london-borough-council/ealing,CHILDREN & ADULTS,1,EALING SERVICE FOR CHILDREN WITH ADDITIONAL NEEDS,SOCIAL SERVICES DIRECT PAYMENTS,4231,,05/10/2022,23225219,325.2,80764,CARE IN FINANCE LTD
INSERTED DETAIL,,Ealing Council,http://opendatacommunities.org/id/london-borough-council/ealing,CHILDREN & ADULTS,1,EALING SERVICE FOR CHILDREN WITH ADDITIONAL NEEDS,SOCIAL SERVICES DIRECT PAYMENTS,4231,,05/10/2022,23225219,450.87,80764,CARE IN FINANCE LTD
INSERTED DETAIL,,Ealing Council,http://opendatacommunities.org/id/london-borough-council/ealing,CHILDREN & ADULTS,1,EALING SERVICE FOR CHILDREN WITH ADDITIONAL NEEDS,SOCIAL SERVICES DIRECT PAYMENTS,4231,,05/10/2022,23225219,463.76,80764,CARE IN FINANCE LTD
INSERTED DETAIL,,Ealing Council,http://opendatacommunities.org/id/london-borough-council/ealing,CHILDREN & ADULTS,1,OLDER PEOPLE,RESIDENTIAL HOMES EXTERNAL,4220,,13/10/2022,23228777,369.23,26315,WOODHOUSE CARE HOMES LTD T/A PRANAM CARE CENTRE
INSERTED DETAIL,,Ealing Council,http://opendatacommunities.org/id/london-borough-council/ealing,CHILDREN & ADULTS,1,OLDER PEOPLE,RESIDENTIAL HOMES EXTERNAL,4220,,13/10/2022,23228777,2584.6,26315,WOODHOUSE CARE HOMES LTD T/A PRANAM CARE CENTRE
INSERTED DETAIL,,Ealing Council,http://opendatacommunities.org/id/london-borough-council/ealing,CHILDREN & ADULTS,1,OLDER PEOPLE,EMI RESIDENTIAL,4227,,13/10/2022,23228777,2800,26315,WOODHOUSE CARE HOMES LTD T/A PRANAM CARE CENTRE
INSERTED DETAIL,,Ealing Council,http://opendatacommunities.org/id/london-borough-council/ealing,CHILDREN & ADULTS,1,OLDER PEOPLE,EMI RESIDENTIAL,4227,,13/10/2022,23228777,2546.4,26315,WOODHOUSE CARE HOMES LTD T/A PRANAM CARE CENTRE
INSERTED DETAIL,,Ealing Council,http://opendatacommunities.org/id/london-borough-council/ealing,CHILDREN & ADULTS,1,OLDER PEOPLE,EMI RESIDENTIAL,4227,,13/10/2022,23228777,917.14,26315,WOODHOUSE CARE HOMES LTD T/A PRANAM CARE CENTRE
INSERTED DETAIL,,Ealing Council,http://opendatacommunities.org/id/london-borough-council/ealing,CHILDREN & ADULTS,1,OLDER PEOPLE,EMI RESIDENTIAL,4227,,13/10/2022,23228777,2600,26315,WOODHOUSE CARE HOMES LTD T/A PRANAM CARE CENTRE
INSERTED DETAIL,,Ealing Council,http://opendatacommunities.org/id/london-borough-council/ealing,CHILDREN & ADULTS,1,OLDER PEOPLE,EMI RESIDENTIAL,4227,,13/10/2022,23228777,2597.32,26315,WOODHOUSE CARE HOMES LTD T/A PRANAM CARE CENTRE
INSERTED DETAIL,,Ealing Council,http://opendatacommunities.org/id/london-borough-council/ealing,CHILDREN & ADULTS,1,OLDER PEOPLE,EMI RESIDENTIAL,4227,,13/10/2022,23228777,818.49,26315,WOODHOUSE CARE HOMES LTD T/A PRANAM CARE CENTRE
INSERTED DETAIL,,Ealing Council,http://opendatacommunities.org/id/london-borough-council/ealing,CHILDREN & ADULTS,1,OLDER PEOPLE,EMI RESIDENTIAL,4227,,13/10/2022,23228777,2800,26315,WOODHOUSE CARE HOMES LTD T/A PRANAM CARE CENTRE
INSERTED DETAIL,,Ealing Council,http://opendatacommunities.org/id/london-borough-council/ealing,CHILDREN & ADULTS,1,OLDER PEOPLE,EMI RESIDENTIAL,4227,,13/10/2022,23228777,2680,26315,WOODHOUSE CARE HOMES LTD T/A PRANAM CARE CENTRE
INSERTED DETAIL,,Ealing Council,http://opendatacommunities.org/id/london-borough-council/ealing,CHILDREN & ADULTS,1,OLDER PEOPLE,EMI RESIDENTIAL,4227,,13/10/2022,23228777,2795.52,26315,WOODHOUSE CARE HOMES LTD T/A PRANAM CARE CENTRE
INSERTED DETAIL,,Ealing Council,http://opendatacommunities.org/id/london-borough-council/ealing,CHILDREN & ADULTS,1,OLDER PEOPLE,EMI RESIDENTIAL,4227,,13/10/2022,23228777,2597.32,26315,WOODHOUSE CARE HOMES LTD T/A PRANAM CARE CENTRE
INSERTED DETAIL,,Ealing Council,http://opendatacommunities.org/id/london-borough-council/ealing,CHILDREN & ADULTS,1,OLDER PEOPLE,EMI RESIDENTIAL,4227,,13/10/2022,23228777,2593.08,26315,WOODHOUSE CARE HOMES LTD T/A PRANAM CARE CENTRE
INSERTED DETAIL,,Ealing Council,http://opendatacommunities.org/id/london-borough-council/ealing,CHILDREN & ADULTS,1,OLDER PEOPLE,EMI RESIDENTIAL,4227,,13/10/2022,23228777,2597.32,26315,WOODHOUSE CARE HOMES LTD T/A PRANAM CARE CENTRE
INSERTED DETAIL,,Ealing Council,http://opendatacommunities.org/id/london-borough-council/ealing,CHILDREN & ADULTS,1,OLDER PEOPLE,EMI RESIDENTIAL,4227,,13/10/2022,23228777,2758.6,26315,WOODHOUSE CARE HOMES LTD T/A PRANAM CARE CENTRE
INSERTED DETAIL,,Ealing Council,http://opendatacommunities.org/id/london-borough-council/ealing,CHILDREN & ADULTS,1,OLDER PEOPLE,EMI RESIDENTIAL,4227,,13/10/2022,23228777,2600,26315,WOODHOUSE CARE HOMES LTD T/A PRANAM CARE CENTRE
INSERTED DETAIL,,Ealing Council,http://opendatacommunities.org/id/london-borough-council/ealing,CHILDREN & ADULTS,1,OLDER PEOPLE,EMI RESIDENTIAL,4227,,13/10/2022,23228777,2546.4,26315,WOODHOUSE CARE HOMES LTD T/A PRANAM CARE CENTRE
INSERTED DETAIL,,Ealing Council,http://opendatacommunities.org/id/london-borough-council/ealing,CHILDREN & ADULTS,1,OLDER PEOPLE,EMI RESIDENTIAL,4227,,13/10/2022,23228777,2380.88,26315,WOODHOUSE CARE HOMES LTD T/A PRANAM CARE CENTRE
INSERTED DETAIL,,Ealing Council,http://opendatacommunities.org/id/london-borough-council/ealing,CHILDREN & ADULTS,1,OLDER PEOPLE,EMI RESIDENTIAL,4227,,13/10/2022,23228777,2597.32,26315,WOODHOUSE CARE HOMES LTD T/A PRANAM CARE CENTRE
INSERTED DETAIL,,Ealing Council,http://opendatacommunities.org/id/london-borough-council/ealing,CHILDREN & ADULTS,1,OLDER PEOPLE,EMI RESIDENTIAL,4227,,13/10/2022,23228777,2597.32,26315,WOODHOUSE CARE HOMES LTD T/A PRANAM CARE CENTRE
INSERTED DETAIL,,Ealing Council,http://opendatacommunities.org/id/london-borough-council/ealing,CHILDREN & ADULTS,1,OLDER PEOPLE,EMI RESIDENTIAL,4227,,13/10/2022,23228777,2489.12,26315,WOODHOUSE CARE HOMES LTD T/A PRANAM CARE CENTRE
INSERTED DETAIL,,Ealing Council,http://opendatacommunities.org/id/london-borough-council/ealing,CHILDREN & ADULTS,1,OLDER PEOPLE,EMI RESIDENTIAL,4227,,20/10/2022,23235550,-917.14,26315,WOODHOUSE CARE HOMES LTD T/A PRANAM CARE CENTRE
INSERTED DETAIL,,Ealing Council,http://opendatacommunities.org/id/london-borough-council/ealing,CHILDREN & ADULTS,1,OLDER PEOPLE,EMI RESIDENTIAL,4227,,20/10/2022,23235550,1200,26315,WOODHOUSE CARE HOMES LTD T/A PRANAM CARE CENTRE
INSERTED DETAIL,,Ealing Council,http://opendatacommunities.org/id/london-borough-council/ealing,CHILDREN & ADULTS,1,OLDER PEOPLE,DOMICILIARY CARE - BLOCK,4240,,29/09/2022,23224372,525,24470,OHIO HOME CARE LTD
INSERTED DETAIL,,Ealing Council,http://opendatacommunities.org/id/london-borough-council/ealing,CHILDREN & ADULTS,1,OLDER PEOPLE,DOMICILIARY CARE - BLOCK,4240,,29/09/2022,23224372,319.48,24470,OHIO HOME CARE LTD
INSERTED DETAIL,,Ealing Council,http://opendatacommunities.org/id/london-borough-council/ealing,CHILDREN & ADULTS,1,OLDER PEOPLE,DOMICILIARY CARE - BLOCK,4240,,29/09/2022,23224372,779.24,24470,OHIO HOME CARE LTD
INSERTED DETAIL,,Ealing Council,http://opendatacommunities.org/id/london-borough-council/ealing,CHILDREN & ADULTS,1,OLDER PEOPLE,DOMICILIARY CARE - BLOCK,4240,,29/09/2022,23224372,753.48,24470,OHIO HOME CARE LTD
INSERTED DETAIL,,Ealing Council,http://opendatacommunities.org/id/london-borough-council/ealing,CHILDREN & ADULTS,1,OLDER PEOPLE,DOMICILIARY CARE - BLOCK,4240,,29/09/2022,23224372,779.24,24470,OHIO HOME CARE LTD
INSERTED DETAIL,,Ealing Council,http://opendatacommunities.org/id/london-borough-council/ealing,CHILDREN & ADULTS,1,OLDER PEOPLE,DOMICILIARY CARE - BLOCK,4240,,29/09/2022,23224372,322.84,24470,OHIO HOME CARE LTD
INSERTED DETAIL,,Ealing Council,http://opendatacommunities.org/id/london-borough-council/ealing,CHILDREN & ADULTS,1,OLDER PEOPLE,DOMICILIARY CARE - BLOCK,4240,,29/09/2022,23224372,1132.88,24470,OHIO HOME CARE LTD
INSERTED DETAIL,,Ealing Council,http://opendatacommunities.org/id/london-borough-council/ealing,CHILDREN & ADULTS,1,OLDER PEOPLE,DOMICILIARY CARE - BLOCK,4240,,29/09/2022,23224372,958.72,24470,OHIO HOME CARE LTD
INSERTED DETAIL,,Ealing Council,http://opendatacommunities.org/id/london-borough-council/ealing,CHILDREN & ADULTS,1,OLDER PEOPLE,DOMICILIARY CARE - BLOCK,4240,,06/10/2022,23226699,903.84,25974,SAHAN CARES CIC
INSERTED DETAIL,,Ealing Council,http://opendatacommunities.org/id/london-borough-council/ealing,CHILDREN & ADULTS,1,OLDER PEOPLE,DOMICILIARY CARE - BLOCK,4240,,06/10/2022,23226699,2403.62,25974,SAHAN CARES CIC
INSERTED DETAIL,,Ealing Council,http://opendatacommunities.org/id/london-borough-council/ealing,CHILDREN & ADULTS,1,OLDER PEOPLE,DOMICILIARY CARE - BLOCK,4240,,06/10/2022,23226699,433.72,25974,SAHAN CARES CIC
INSERTED DETAIL,,Ealing Council,http://opendatacommunities.org/id/london-borough-council/ealing,CHILDREN & ADULTS,1,SAFEGUARDING & SUPP - BS &A&F,CHILDRENS SERVICES ADOPTION ALLOWANCE,4387,,11/10/2022,23227635,356.05,200820,REDACTED SENSITIVE SUPPLIER
INSERTED DETAIL,,Ealing Council,http://opendatacommunities.org/id/london-borough-council/ealing,CHILDREN & ADULTS,1,SAFEGUARDING & SUPP - BS &A&F,CHILDRENS SERVICES ADOPTION ALLOWANCE,4387,,11/10/2022,23227635,348.95,200820,REDACTED SENSITIVE SUPPLIER
INSERTED DETAIL,,Ealing Council,http://opendatacommunities.org/id/london-borough-council/ealing,CHILDREN & ADULTS,1,SAFEGUARDING & SUPP - BS &A&F,CHILDRENS SERVICES ADOPTION ALLOWANCE,4387,,18/10/2022,23229762,356.05,200820,REDACTED SENSITIVE SUPPLIER
INSERTED DETAIL,,Ealing Council,http://opendatacommunities.org/id/london-borough-council/ealing,CHILDREN & ADULTS,1,SAFEGUARDING & SUPP - BS &A&F,SPECIAL GUARDIANSHIP ALLOWANCE (SOC SERV),4663,,18/10/2022,23229628,366,200093,REDACTED SENSITIVE SUPPLIER
INSERTED DETAIL,,Ealing Council,http://opendatacommunities.org/id/london-borough-council/ealing,CHILDREN & ADULTS,1,SAFEGUARDING & SUPP - BS &A&F,SPECIAL GUARDIANSHIP ALLOWANCE (SOC SERV),4663,,11/10/2022,23227497,366,200093,REDACTED SENSITIVE SUPPLIER
INSERTED DETAIL,,Ealing Council,http://opendatacommunities.org/id/london-borough-council/ealing,CHILDREN & ADULTS,1,SAFEGUARDING & SUPP - BS &A&F,SPECIAL GUARDIANSHIP ALLOWANCE (SOC SERV),4663,,04/10/2022,23224807,366,200093,REDACTED SENSITIVE SUPPLIER
INSERTED DETAIL,,Ealing Council,http://opendatacommunities.org/id/london-borough-council/ealing,CHILDREN & ADULTS,1,SAFEGUARDING & SUPP - BS &A&F,SPECIAL GUARDIANSHIP ALLOWANCE (SOC SERV),4663,,26/10/2022,23237385,21325.24,200790,REDACTED SENSITIVE SUPPLIER
INSERTED DETAIL,,Ealing Council,http://opendatacommunities.org/id/london-borough-council/ealing,CHILDREN & ADULTS,1,SAFEGUARDING & SUPP - BS &A&F,SPECIAL GUARDIANSHIP ALLOWANCE (SOC SERV),4663,,18/10/2022,23229717,426.3,200871,REDACTED SENSITIVE SUPPLIER
INSERTED DETAIL,,Ealing Council,http://opendatacommunities.org/id/london-borough-council/ealing,CHILDREN & ADULTS,1,SAFEGUARDING & SUPP - BS &A&F,SPECIAL GUARDIANSHIP ALLOWANCE (SOC SERV),4663,,18/10/2022,23229717,426.3,200871,REDACTED SENSITIVE SUPPLIER
INSERTED DETAIL,,Ealing Council,http://opendatacommunities.org/id/london-borough-council/ealing,CHILDREN & ADULTS,1,SAFEGUARDING & SUPP - BS &A&F,SPECIAL GUARDIANSHIP ALLOWANCE (SOC SERV),4663,,04/10/2022,23224896,426.3,200871,REDACTED SENSITIVE SUPPLIER
INSERTED DETAIL,,Ealing Council,http://opendatacommunities.org/id/london-borough-council/ealing,CHILDREN & ADULTS,1,SAFEGUARDING & SUPP - BS &A&F,SPECIAL GUARDIANSHIP ALLOWANCE (SOC SERV),4663,,04/10/2022,23224896,426.3,200871,REDACTED SENSITIVE SUPPLIER
INSERTED DETAIL,,Ealing Council,http://opendatacommunities.org/id/london-borough-council/ealing,CHILDREN & ADULTS,1,SAFEGUARDING & SUPP - BS &A&F,SPECIAL GUARDIANSHIP ALLOWANCE (SOC SERV),4663,,11/10/2022,23227587,426.3,200871,REDACTED SENSITIVE SUPPLIER
INSERTED DETAIL,,Ealing Council,http://opendatacommunities.org/id/london-borough-council/ealing,CHILDREN & ADULTS,1,SAFEGUARDING & SUPP - BS &A&F,SPECIAL GUARDIANSHIP ALLOWANCE (SOC SERV),4663,,11/10/2022,23227587,426.3,200871,REDACTED SENSITIVE SUPPLIER
INSERTED DETAIL,,Ealing Council,http://opendatacommunities.org/id/london-borough-council/ealing,CHILDREN & ADULTS,1,SAFEGUARDING & SUPP - BS &A&F,SPECIAL GUARDIANSHIP ALLOWANCE (SOC SERV),4663,,25/10/2022,23237221,426.3,200871,REDACTED SENSITIVE SUPPLIER
INSERTED DETAIL,,Ealing Council,http://opendatacommunities.org/id/london-borough-council/ealing,CHILDREN & ADULTS,1,SAFEGUARDING & SUPP - BS &A&F,SPECIAL GUARDIANSHIP ALLOWANCE (SOC SERV),4663,,25/10/2022,23237221,426.3,200871,REDACTED SENSITIVE SUPPLIER
INSERTED DETAIL,,Ealing Council,http://opendatacommunities.org/id/london-borough-council/ealing,CHILDREN & ADULTS,1,SAFEGUARDING & SUPP - BS &A&F,SPECIAL GUARDIANSHIP ALLOWANCE (SOC SERV),4663,,11/10/2022,23227385,350,200012,REDACTED SENSITIVE SUPPLIER
INSERTED DETAIL,,Ealing Council,http://opendatacommunities.org/id/london-borough-council/ealing,CHILDREN & ADULTS,1,SAFEGUARDING & SUPP - BS &A&F,SPECIAL GUARDIANSHIP ALLOWANCE (SOC SERV),4663,,11/10/2022,23227385,350,200012,REDACTED SENSITIVE SUPPLIER
INSERTED DETAIL,,Ealing Council,http://opendatacommunities.org/id/london-borough-council/ealing,CHILDREN & ADULTS,1,SAFEGUARDING & SUPP - BS &A&F,SPECIAL GUARDIANSHIP ALLOWANCE (SOC SERV),4663,,04/10/2022,23224698,350,200012,REDACTED SENSITIVE SUPPLIER
INSERTED DETAIL,,Ealing Council,http://opendatacommunities.org/id/london-borough-council/ealing,CHILDREN & ADULTS,1,SAFEGUARDING & SUPP - BS &A&F,SPECIAL GUARDIANSHIP ALLOWANCE (SOC SERV),4663,,04/10/2022,23224698,350,200012,REDACTED SENSITIVE SUPPLIER
INSERTED DETAIL,,Ealing Council,http://opendatacommunities.org/id/london-borough-council/ealing,CHILDREN & ADULTS,1,SAFEGUARDING & SUPP - BS &A&F,SPECIAL GUARDIANSHIP ALLOWANCE (SOC SERV),4663,,18/10/2022,23229521,350,200012,REDACTED SENSITIVE SUPPLIER
INSERTED DETAIL,,Ealing Council,http://opendatacommunities.org/id/london-borough-council/ealing,CHILDREN & ADULTS,1,SAFEGUARDING & SUPP - BS &A&F,SPECIAL GUARDIANSHIP ALLOWANCE (SOC SERV),4663,,18/10/2022,23229521,350,200012,REDACTED SENSITIVE SUPPLIER
INSERTED DETAIL,,Ealing Council,http://opendatacommunities.org/id/london-borough-council/ealing,PLACE,6,STREET SERVICES,PAYMENTS TO CONTRACTORS,4000,,28/10/2022,41032925,426026.41,28826,GREENER EALING LIMITED
INSERTED DETAIL,,Ealing Council,http://opendatacommunities.org/id/london-borough-council/ealing,PLACE,6,STREET SERVICES,PAYMENTS TO CONTRACTORS,4000,,11/10/2022,41034419,643.25,28826,GREENER EALING LIMITED
INSERTED DETAIL,,Ealing Council,http://opendatacommunities.org/id/london-borough-council/ealing,PLACE,6,STREET SERVICES,PAYMENTS TO CONTRACTORS,4000,,10/10/2022,41034420,2223.64,28826,GREENER EALING LIMITED
INSERTED DETAIL,,Ealing Council,http://opendatacommunities.org/id/london-borough-council/ealing,PLACE,6,STREET SERVICES,PAYMENTS TO CONTRACTORS,4000,,13/09/2022,41030324,2223.64,28826,GREENER EALING LIMITED
INSERTED DETAIL,,Ealing Council,http://opendatacommunities.org/id/london-borough-council/ealing,PLACE,6,LEISURE,GROUNDS MAINTENANCE,1470,,15/09/2022,41030568,392.68,11538,DRAYTON FENCING COMPANY
INSERTED DETAIL,,Ealing Council,http://opendatacommunities.org/id/london-borough-council/ealing,CHILDREN & ADULTS,1,SAFEGUARDING & SUPPORT - SM,Services Contracts Agency Interim Consultants,2970,,14/09/2022,41031487,4620,23024,VENN GROUP LTD
INSERTED DETAIL,,Ealing Council,http://opendatacommunities.org/id/london-borough-council/ealing,CHILDREN & ADULTS,1,ILT,AGENCY,70,,11/10/2022,41033897,4275,28602,1 TO 1 HEALTHCARE LTD
INSERTED DETAIL,,Ealing Council,http://opendatacommunities.org/id/london-borough-council/ealing,CHILDREN & ADULTS,1,ILT,AGENCY,70,,03/10/2022,41032580,1575,28602,1 TO 1 HEALTHCARE LTD
INSERTED DETAIL,,Ealing Council,http://opendatacommunities.org/id/london-borough-council/ealing,CHILDREN & ADULTS,1,ILT,AGENCY,70,,03/10/2022,41032581,2250,28602,1 TO 1 HEALTHCARE LTD
INSERTED DETAIL,,Ealing Council,http://opendatacommunities.org/id/london-borough-council/ealing,CHILDREN & ADULTS,1,ILT,AGENCY,70,,03/10/2022,41032582,1125,28602,1 TO 1 HEALTHCARE LTD
INSERTED DETAIL,,Ealing Council,http://opendatacommunities.org/id/london-borough-council/ealing,CHILDREN & ADULTS,1,ILT,AGENCY,70,,26/09/2022,41031832,3600,28602,1 TO 1 HEALTHCARE LTD
INSERTED DETAIL,,Ealing Council,http://opendatacommunities.org/id/london-borough-council/ealing,CHILDREN & ADULTS,1,ILT,AGENCY,70,,26/09/2022,41031833,2700,28602,1 TO 1 HEALTHCARE LTD
INSERTED DETAIL,,Ealing Council,http://opendatacommunities.org/id/london-borough-council/ealing,CHILDREN & ADULTS,1,SAFEGUARDING & SUPPORT - CIC,CHILDRENS SERVICES -ELIGIBLE CHILDREN ACCOMMODATIO,4281,,25/10/2022,23237340,269.95,200270,REDACTED SENSITIVE SUPPLIER
INSERTED DETAIL,,Ealing Council,http://opendatacommunities.org/id/london-borough-council/ealing,CHILDREN & ADULTS,1,SAFEGUARDING & SUPPORT - CIC,CHILDRENS SERVICES -ELIGIBLE CHILDREN ACCOMMODATIO,4281,,10/10/2022,23227334,392.86,24903,PURPLE PEBBLES (CHILDCARE SERVICES) LTD
INSERTED DETAIL,,Ealing Council,http://opendatacommunities.org/id/london-borough-council/ealing,CHILDREN & ADULTS,1,SAFEGUARDING & SUPPORT - CIC,CHILDRENS SERVICES -ELIGIBLE CHILDREN ACCOMMODATIO,4281,,10/10/2022,23227334,1021.43,24903,PURPLE PEBBLES (CHILDCARE SERVICES) LTD
INSERTED DETAIL,,Ealing Council,http://opendatacommunities.org/id/london-borough-council/ealing,CHILDREN & ADULTS,1,SAFEGUARDING & SUPPORT - CIC,CHILDRENS SERVICES -ELIGIBLE CHILDREN ACCOMMODATIO,4281,,04/10/2022,23224997,269.95,200226,REDACTED SENSITIVE SUPPLIER
INSERTED DETAIL,,Ealing Council,http://opendatacommunities.org/id/london-borough-council/ealing,CHILDREN & ADULTS,1,SAFEGUARDING & SUPPORT - CIC,CHILDRENS SERVICES -ELIGIBLE CHILDREN ACCOMMODATIO,4281,,04/10/2022,23224997,269.95,200226,REDACTED SENSITIVE SUPPLIER
INSERTED DETAIL,,Ealing Council,http://opendatacommunities.org/id/london-borough-council/ealing,CHILDREN & ADULTS,1,SAFEGUARDING & SUPPORT - CIC,CHILDRENS SERVICES -ELIGIBLE CHILDREN ACCOMMODATIO,4281,,11/10/2022,23227691,269.95,200226,REDACTED SENSITIVE SUPPLIER
INSERTED DETAIL,,Ealing Council,http://opendatacommunities.org/id/london-borough-council/ealing,CHILDREN & ADULTS,1,SAFEGUARDING & SUPPORT - CIC,CHILDRENS SERVICES -ELIGIBLE CHILDREN ACCOMMODATIO,4281,,11/10/2022,23227691,269.95,200226,REDACTED SENSITIVE SUPPLIER
INSERTED DETAIL,,Ealing Council,http://opendatacommunities.org/id/london-borough-council/ealing,CHILDREN & ADULTS,1,SAFEGUARDING & SUPPORT - CIC,CHILDRENS SERVICES -ELIGIBLE CHILDREN ACCOMMODATIO,4281,,18/10/2022,23229819,269.95,200226,REDACTED SENSITIVE SUPPLIER
INSERTED DETAIL,,Ealing Council,http://opendatacommunities.org/id/london-borough-council/ealing,CHILDREN & ADULTS,1,SAFEGUARDING & SUPPORT - CIC,CHILDRENS SERVICES -ELIGIBLE CHILDREN ACCOMMODATIO,4281,,18/10/2022,23229819,269.95,200226,REDACTED SENSITIVE SUPPLIER
INSERTED DETAIL,,Ealing Council,http://opendatacommunities.org/id/london-borough-council/ealing,CHILDREN & ADULTS,1,SAFEGUARDING & SUPPORT - CIC,CHILDRENS SERVICES -ELIGIBLE CHILDREN ACCOMMODATIO,4281,,25/10/2022,23237327,269.95,200226,REDACTED SENSITIVE SUPPLIER
INSERTED DETAIL,,Ealing Council,http://opendatacommunities.org/id/london-borough-council/ealing,CHILDREN & ADULTS,1,SAFEGUARDING & SUPPORT - CIC,CHILDRENS SERVICES -ELIGIBLE CHILDREN ACCOMMODATIO,4281,,25/10/2022,23237327,269.95,200226,REDACTED SENSITIVE SUPPLIER
INSERTED DETAIL,,Ealing Council,http://opendatacommunities.org/id/london-borough-council/ealing,CHILDREN & ADULTS,1,SAFEGUARDING & SUPP - BS &A&F,SPECIAL GUARDIANSHIP ALLOWANCE (SOC SERV),4663,,25/10/2022,23237022,350,200012,REDACTED SENSITIVE SUPPLIER
INSERTED DETAIL,,Ealing Council,http://opendatacommunities.org/id/london-borough-council/ealing,CHILDREN & ADULTS,1,SAFEGUARDING & SUPP - BS &A&F,SPECIAL GUARDIANSHIP ALLOWANCE (SOC SERV),4663,,25/10/2022,23237022,350,200012,REDACTED SENSITIVE SUPPLIER
INSERTED DETAIL,,Ealing Council,http://opendatacommunities.org/id/london-borough-council/ealing,CHILDREN & ADULTS,1,SAFEGUARDING & SUPP - BS &A&F,CHILDRENS SERVICES ADOPTION ALLOWANCE,4387,,04/10/2022,23224826,284.69,200127,REDACTED SENSITIVE SUPPLIER
INSERTED DETAIL,,Ealing Council,http://opendatacommunities.org/id/london-borough-council/ealing,CHILDREN & ADULTS,1,SAFEGUARDING & SUPP - BS &A&F,CHILDRENS SERVICES ADOPTION ALLOWANCE,4387,,04/10/2022,23224818,308.5,200117,REDACTED SENSITIVE SUPPLIER
INSERTED DETAIL,,Ealing Council,http://opendatacommunities.org/id/london-borough-council/ealing,CHILDREN & ADULTS,1,SAFEGUARDING & SUPP - BS &A&F,CHILDRENS SERVICES ADOPTION ALLOWANCE,4387,,18/10/2022,23229639,308.5,200117,REDACTED SENSITIVE SUPPLIER
INSERTED DETAIL,,Ealing Council,http://opendatacommunities.org/id/london-borough-council/ealing,CHILDREN & ADULTS,1,SAFEGUARDING & SUPP - BS &A&F,CHILDRENS SERVICES ADOPTION ALLOWANCE,4387,,11/10/2022,23227508,308.5,200117,REDACTED SENSITIVE SUPPLIER
INSERTED DETAIL,,Ealing Council,http://opendatacommunities.org/id/london-borough-council/ealing,CHILDREN & ADULTS,1,SAFEGUARDING & SUPP - BS &A&F,CHILDRENS SERVICES ADOPTION ALLOWANCE,4387,,25/10/2022,23237142,308.5,200117,REDACTED SENSITIVE SUPPLIER
INSERTED DETAIL,,Ealing Council,http://opendatacommunities.org/id/london-borough-council/ealing,CHILDREN & ADULTS,1,SAFEGUARDING & SUPP - BS &A&F,CHILDRENS SERVICES ADOPTION ALLOWANCE,4387,,11/10/2022,23227394,298.39,200134,REDACTED SENSITIVE SUPPLIER
INSERTED DETAIL,,Ealing Council,http://opendatacommunities.org/id/london-borough-council/ealing,CHILDREN & ADULTS,1,SAFEGUARDING & SUPP - BS &A&F,CHILDRENS SERVICES ADOPTION ALLOWANCE,4387,,04/10/2022,23224707,298.39,200134,REDACTED SENSITIVE SUPPLIER
INSERTED DETAIL,,Ealing Council,http://opendatacommunities.org/id/london-borough-council/ealing,CHILDREN & ADULTS,1,SAFEGUARDING & SUPP - BS &A&F,CHILDRENS SERVICES ADOPTION ALLOWANCE,4387,,25/10/2022,23237031,298.39,200134,REDACTED SENSITIVE SUPPLIER
INSERTED DETAIL,,Ealing Council,http://opendatacommunities.org/id/london-borough-council/ealing,CHILDREN & ADULTS,1,SAFEGUARDING & SUPP - BS &A&F,CHILDRENS SERVICES ADOPTION ALLOWANCE,4387,,18/10/2022,23229530,298.39,200134,REDACTED SENSITIVE SUPPLIER
INSERTED DETAIL,,Ealing Council,http://opendatacommunities.org/id/london-borough-council/ealing,CHILDREN & ADULTS,1,SAFEGUARDING & SUPP - BS &A&F,SPECIAL GUARDIANSHIP ALLOWANCE (SOC SERV),4663,,04/10/2022,23224770,410,200735,REDACTED SENSITIVE SUPPLIER
INSERTED DETAIL,,Ealing Council,http://opendatacommunities.org/id/london-borough-council/ealing,CHILDREN & ADULTS,1,SAFEGUARDING & SUPP - BS &A&F,SPECIAL GUARDIANSHIP ALLOWANCE (SOC SERV),4663,,04/10/2022,23224770,410,200735,REDACTED SENSITIVE SUPPLIER
INSERTED DETAIL,,Ealing Council,http://opendatacommunities.org/id/london-borough-council/ealing,CHILDREN & ADULTS,1,SAFEGUARDING & SUPP - BS &A&F,SPECIAL GUARDIANSHIP ALLOWANCE (SOC SERV),4663,,11/10/2022,23227460,410,200735,REDACTED SENSITIVE SUPPLIER
INSERTED DETAIL,,Ealing Council,http://opendatacommunities.org/id/london-borough-council/ealing,CHILDREN & ADULTS,1,SAFEGUARDING & SUPP - BS &A&F,SPECIAL GUARDIANSHIP ALLOWANCE (SOC SERV),4663,,11/10/2022,23227460,410,200735,REDACTED SENSITIVE SUPPLIER
INSERTED DETAIL,,Ealing Council,http://opendatacommunities.org/id/london-borough-council/ealing,CHILDREN & ADULTS,1,SAFEGUARDING & SUPP - BS &A&F,SPECIAL GUARDIANSHIP ALLOWANCE (SOC SERV),4663,,18/10/2022,23229592,410,200735,REDACTED SENSITIVE SUPPLIER
INSERTED DETAIL,,Ealing Council,http://opendatacommunities.org/id/london-borough-council/ealing,CHILDREN & ADULTS,1,SAFEGUARDING & SUPP - BS &A&F,SPECIAL GUARDIANSHIP ALLOWANCE (SOC SERV),4663,,18/10/2022,23229592,410,200735,REDACTED SENSITIVE SUPPLIER
INSERTED DETAIL,,Ealing Council,http://opendatacommunities.org/id/london-borough-council/ealing,CHILDREN & ADULTS,1,SAFEGUARDING & SUPP - BS &A&F,SPECIAL GUARDIANSHIP ALLOWANCE (SOC SERV),4663,,25/10/2022,23237094,410,200735,REDACTED SENSITIVE SUPPLIER
INSERTED DETAIL,,Ealing Council,http://opendatacommunities.org/id/london-borough-council/ealing,CHILDREN & ADULTS,1,SAFEGUARDING & SUPP - BS &A&F,SPECIAL GUARDIANSHIP ALLOWANCE (SOC SERV),4663,,25/10/2022,23237094,410,200735,REDACTED SENSITIVE SUPPLIER
INSERTED DETAIL,,Ealing Council,http://opendatacommunities.org/id/london-borough-council/ealing,CHILDREN & ADULTS,1,EALING SERVICE FOR CHILDREN WITH ADDITIONAL NEEDS,SOCIAL SERVICES DIRECT PAYMENTS,4231,,05/10/2022,23225219,-434.08,80764,CARE IN FINANCE LTD
INSERTED DETAIL,,Ealing Council,http://opendatacommunities.org/id/london-borough-council/ealing,CHILDREN & ADULTS,1,EALING SERVICE FOR CHILDREN WITH ADDITIONAL NEEDS,SOCIAL SERVICES DIRECT PAYMENTS,4231,,05/10/2022,23225219,5120,80764,CARE IN FINANCE LTD
INSERTED DETAIL,,Ealing Council,http://opendatacommunities.org/id/london-borough-council/ealing,CHILDREN & ADULTS,1,EALING SERVICE FOR CHILDREN WITH ADDITIONAL NEEDS,SOCIAL SERVICES DIRECT PAYMENTS,4231,,05/10/2022,23225219,534,80764,CARE IN FINANCE LTD
INSERTED DETAIL,,Ealing Council,http://opendatacommunities.org/id/london-borough-council/ealing,CHILDREN & ADULTS,1,EALING SERVICE FOR CHILDREN WITH ADDITIONAL NEEDS,SOCIAL SERVICES DIRECT PAYMENTS,4231,,05/10/2022,23225219,2769.18,80764,CARE IN FINANCE LTD
INSERTED DETAIL,,Ealing Council,http://opendatacommunities.org/id/london-borough-council/ealing,CHILDREN & ADULTS,1,EALING SERVICE FOR CHILDREN WITH ADDITIONAL NEEDS,SOCIAL SERVICES DIRECT PAYMENTS,4231,,05/10/2022,23225219,604.28,80764,CARE IN FINANCE LTD
INSERTED DETAIL,,Ealing Council,http://opendatacommunities.org/id/london-borough-council/ealing,CHILDREN & ADULTS,1,EALING SERVICE FOR CHILDREN WITH ADDITIONAL NEEDS,SOCIAL SERVICES DIRECT PAYMENTS,4231,,05/10/2022,23225219,406.4,80764,CARE IN FINANCE LTD
INSERTED DETAIL,,Ealing Council,http://opendatacommunities.org/id/london-borough-council/ealing,CHILDREN & ADULTS,1,EALING SERVICE FOR CHILDREN WITH ADDITIONAL NEEDS,SOCIAL SERVICES DIRECT PAYMENTS,4231,,05/10/2022,23225219,406.4,80764,CARE IN FINANCE LTD
INSERTED DETAIL,,Ealing Council,http://opendatacommunities.org/id/london-borough-council/ealing,CHILDREN & ADULTS,1,EALING SERVICE FOR CHILDREN WITH ADDITIONAL NEEDS,SOCIAL SERVICES DIRECT PAYMENTS,4231,,05/10/2022,23225219,1192.4,80764,CARE IN FINANCE LTD
INSERTED DETAIL,,Ealing Council,http://opendatacommunities.org/id/london-borough-council/ealing,CHILDREN & ADULTS,1,EALING SERVICE FOR CHILDREN WITH ADDITIONAL NEEDS,SOCIAL SERVICES DIRECT PAYMENTS,4231,,05/10/2022,23225219,495.04,80764,CARE IN FINANCE LTD
INSERTED DETAIL,,Ealing Council,http://opendatacommunities.org/id/london-borough-council/ealing,CHILDREN & ADULTS,1,EALING SERVICE FOR CHILDREN WITH ADDITIONAL NEEDS,SOCIAL SERVICES DIRECT PAYMENTS,4231,,05/10/2022,23225219,-533.91,80764,CARE IN FINANCE LTD
INSERTED DETAIL,,Ealing Council,http://opendatacommunities.org/id/london-borough-council/ealing,CHILDREN & ADULTS,1,EALING SERVICE FOR CHILDREN WITH ADDITIONAL NEEDS,SOCIAL SERVICES DIRECT PAYMENTS,4231,,05/10/2022,23225219,511.84,80764,CARE IN FINANCE LTD
INSERTED DETAIL,,Ealing Council,http://opendatacommunities.org/id/london-borough-council/ealing,CHILDREN & ADULTS,1,EALING SERVICE FOR CHILDREN WITH ADDITIONAL NEEDS,SOCIAL SERVICES DIRECT PAYMENTS,4231,,05/10/2022,23225219,2505.6,80764,CARE IN FINANCE LTD
INSERTED DETAIL,,Ealing Council,http://opendatacommunities.org/id/london-borough-council/ealing,CHILDREN & ADULTS,1,EALING SERVICE FOR CHILDREN WITH ADDITIONAL NEEDS,SOCIAL SERVICES DIRECT PAYMENTS,4231,,05/10/2022,23225219,320.4,80764,CARE IN FINANCE LTD
INSERTED DETAIL,,Ealing Council,http://opendatacommunities.org/id/london-borough-council/ealing,CHILDREN & ADULTS,1,EALING SERVICE FOR CHILDREN WITH ADDITIONAL NEEDS,SOCIAL SERVICES DIRECT PAYMENTS,4231,,05/10/2022,23225219,701.44,80764,CARE IN FINANCE LTD
INSERTED DETAIL,,Ealing Council,http://opendatacommunities.org/id/london-borough-council/ealing,CHILDREN & ADULTS,1,EALING SERVICE FOR CHILDREN WITH ADDITIONAL NEEDS,SOCIAL SERVICES DIRECT PAYMENTS,4231,,05/10/2022,23225219,2401.84,80764,CARE IN FINANCE LTD
INSERTED DETAIL,,Ealing Council,http://opendatacommunities.org/id/london-borough-council/ealing,CHILDREN & ADULTS,1,EALING SERVICE FOR CHILDREN WITH ADDITIONAL NEEDS,SOCIAL SERVICES DIRECT PAYMENTS,4231,,05/10/2022,23225219,-1718.2,80764,CARE IN FINANCE LTD
INSERTED DETAIL,,Ealing Council,http://opendatacommunities.org/id/london-borough-council/ealing,CHILDREN & ADULTS,1,EALING SERVICE FOR CHILDREN WITH ADDITIONAL NEEDS,SOCIAL SERVICES DIRECT PAYMENTS,4231,,05/10/2022,23225219,464.24,80764,CARE IN FINANCE LTD
INSERTED DETAIL,,Ealing Council,http://opendatacommunities.org/id/london-borough-council/ealing,CHILDREN & ADULTS,1,EALING SERVICE FOR CHILDREN WITH ADDITIONAL NEEDS,SOCIAL SERVICES DIRECT PAYMENTS,4231,,04/10/2022,23224678,287.72,80764,CARE IN FINANCE LTD
INSERTED DETAIL,,Ealing Council,http://opendatacommunities.org/id/london-borough-council/ealing,CHILDREN & ADULTS,1,EALING SERVICE FOR CHILDREN WITH ADDITIONAL NEEDS,SOCIAL SERVICES DIRECT PAYMENTS,4231,,04/10/2022,23224678,901,80764,CARE IN FINANCE LTD
INSERTED DETAIL,,Ealing Council,http://opendatacommunities.org/id/london-borough-council/ealing,CHILDREN & ADULTS,1,EALING SERVICE FOR CHILDREN WITH ADDITIONAL NEEDS,SOCIAL SERVICES DIRECT PAYMENTS,4231,,05/10/2022,23225215,278.32,80918,REDACTED SENSITIVE SUPPLIER
INSERTED DETAIL,,Ealing Council,http://opendatacommunities.org/id/london-borough-council/ealing,CHILDREN & ADULTS,1,EALING SERVICE FOR CHILDREN WITH ADDITIONAL NEEDS,DOMICILIARY CARE - BLOCK,4240,,10/10/2022,23227362,328,29634,INTEGRATED KARE SOLUTIONS LTD
INSERTED DETAIL,,Ealing Council,http://opendatacommunities.org/id/london-borough-council/ealing,CHILDREN & ADULTS,1,EALING SERVICE FOR CHILDREN WITH ADDITIONAL NEEDS,DOMICILIARY CARE - BLOCK,4240,,10/10/2022,23227362,720,29634,INTEGRATED KARE SOLUTIONS LTD
INSERTED DETAIL,,Ealing Council,http://opendatacommunities.org/id/london-borough-council/ealing,CHILDREN & ADULTS,1,EALING SERVICE FOR CHILDREN WITH ADDITIONAL NEEDS,DOMICILIARY CARE - BLOCK,4240,,10/10/2022,23227362,484,29634,INTEGRATED KARE SOLUTIONS LTD
INSERTED DETAIL,,Ealing Council,http://opendatacommunities.org/id/london-borough-council/ealing,CHILDREN & ADULTS,1,EALING SERVICE FOR CHILDREN WITH ADDITIONAL NEEDS,DOMICILIARY CARE - BLOCK,4240,,10/10/2022,23227362,358.56,29634,INTEGRATED KARE SOLUTIONS LTD
INSERTED DETAIL,,Ealing Council,http://opendatacommunities.org/id/london-borough-council/ealing,CHILDREN & ADULTS,1,EALING SERVICE FOR CHILDREN WITH ADDITIONAL NEEDS,DOMICILIARY CARE - BLOCK,4240,,10/10/2022,23227362,542.4,29634,INTEGRATED KARE SOLUTIONS LTD
INSERTED DETAIL,,Ealing Council,http://opendatacommunities.org/id/london-borough-council/ealing,CHILDREN & ADULTS,1,EALING SERVICE FOR CHILDREN WITH ADDITIONAL NEEDS,DOMICILIARY CARE - BLOCK,4240,,10/10/2022,23227362,360,29634,INTEGRATED KARE SOLUTIONS LTD
INSERTED DETAIL,,Ealing Council,http://opendatacommunities.org/id/london-borough-council/ealing,CHILDREN & ADULTS,1,EALING SERVICE FOR CHILDREN WITH ADDITIONAL NEEDS,DOMICILIARY CARE - BLOCK,4240,,10/10/2022,23227362,298.8,29634,INTEGRATED KARE SOLUTIONS LTD
INSERTED DETAIL,,Ealing Council,http://opendatacommunities.org/id/london-borough-council/ealing,CHILDREN & ADULTS,1,EALING SERVICE FOR CHILDREN WITH ADDITIONAL NEEDS,DOMICILIARY CARE - BLOCK,4240,,10/10/2022,23227362,331.44,29634,INTEGRATED KARE SOLUTIONS LTD
INSERTED DETAIL,,Ealing Council,http://opendatacommunities.org/id/london-borough-council/ealing,CHILDREN & ADULTS,1,EALING SERVICE FOR CHILDREN WITH ADDITIONAL NEEDS,DOMICILIARY CARE - BLOCK,4240,,10/10/2022,23227362,657.36,29634,INTEGRATED KARE SOLUTIONS LTD
INSERTED DETAIL,,Ealing Council,http://opendatacommunities.org/id/london-borough-council/ealing,PLACE,6,STREET SERVICES,PAYMENTS TO CONTRACTORS,4000,,28/10/2022,41032925,408326.25,28826,GREENER EALING LIMITED
INSERTED DETAIL,,Ealing Council,http://opendatacommunities.org/id/london-borough-council/ealing,PLACE,6,LEISURE,PAYMENTS TO CONTRACTORS -ARBORICULTURAL WORKS,4041,,12/10/2022,41034324,16661.17,29597,A CUT ABOVE (SURREY) LIMITED
INSERTED DETAIL,,Ealing Council,http://opendatacommunities.org/id/london-borough-council/ealing,PLACE,6,LEISURE,PAYMENTS TO CONTRACTORS -ARBORICULTURAL WORKS,4041,,19/08/2022,41030753,26251.5,9900018,COMPLETE TREE CARE LIMITED
INSERTED DETAIL,,Ealing Council,http://opendatacommunities.org/id/london-borough-council/ealing,PLACE,6,LEISURE,PAYMENTS TO CONTRACTORS -ARBORICULTURAL WORKS,4041,,09/09/2022,41032122,21382.08,9900018,GLENDALE COUNTRYSIDE LTD
INSERTED DETAIL,,Ealing Council,http://opendatacommunities.org/id/london-borough-council/ealing,PLACE,6,LEISURE,PAYMENTS TO CONTRACTORS -ARBORICULTURAL WORKS,4041,,23/09/2022,41032008,22450,9900018,THE TREE CO (LONDON) LTD
INSERTED DETAIL,,Ealing Council,http://opendatacommunities.org/id/london-borough-council/ealing,PLACE,6,LEISURE,PAYMENTS TO CONTRACTORS -ARBORICULTURAL WORKS,4041,,17/10/2022,41034646,10822.5,9900018,RED SQUIRREL TREE SURGERY
INSERTED DETAIL,,Ealing Council,http://opendatacommunities.org/id/london-borough-council/ealing,PLACE,6,LEISURE,PAYMENTS TO CONTRACTORS -ARBORICULTURAL WORKS,4041,,20/10/2022,41033586,23338,23417,TRANSFORM LANDSCAPE DESIGN & CONS LTD
INSERTED DETAIL,,Ealing Council,http://opendatacommunities.org/id/london-borough-council/ealing,PLACE,6,LEISURE,PAYMENTS TO CONTRACTORS -ARBORICULTURAL WORKS,4041,,01/09/2022,41031044,43854.36,25486,BARBER ENVIRONMENTAL LIMITED
INSERTED DETAIL,,Ealing Council,http://opendatacommunities.org/id/london-borough-council/ealing,PLACE,6,LEISURE,PAYMENTS TO CONTRACTORS -ARBORICULTURAL WORKS,4041,,01/10/2022,41034409,43556.42,25486,BARBER ENVIRONMENTAL LIMITED
INSERTED DETAIL,,Ealing Council,http://opendatacommunities.org/id/london-borough-council/ealing,PLACE,6,LEISURE,PAYMENTS TO CONTRACTORS -ARBORICULTURAL WORKS,4041,,22/09/2022,41031101,3130,25765,ADVANCED TREE SERVICES LTD
INSERTED DETAIL,,Ealing Council,http://opendatacommunities.org/id/london-borough-council/ealing,PLACE,6,LEISURE,CONTRACT PAYMENTS -PARKS GROUNDS MAINTENANCE,4040,,30/09/2022,41032854,514.28,27422,EUROLOOS LIMITED
INSERTED DETAIL,,Ealing Council,http://opendatacommunities.org/id/london-borough-council/ealing,PLACE,6,LEISURE,PAYMENTS TO CONTRACTORS,4000,,11/08/2022,41030364,4000,25399,EVOLVE ARCHITECTURE LTD
INSERTED DETAIL,,Ealing Council,http://opendatacommunities.org/id/london-borough-council/ealing,PLACE,6,LEISURE,CONTRACT PAYMENTS -PARKS GROUNDS MAINTENANCE,4040,,12/09/2022,41030081,318.65,11538,DRAYTON FENCING COMPANY
INSERTED DETAIL,,Ealing Council,http://opendatacommunities.org/id/london-borough-council/ealing,PLACE,6,LEISURE,CONTRACT PAYMENTS -PARKS GROUNDS MAINTENANCE,4040,,16/09/2022,41031749,9277.1,28826,GREENER EALING LIMITED
INSERTED DETAIL,,Ealing Council,http://opendatacommunities.org/id/london-borough-council/ealing,PLACE,6,LEISURE,CONTRACT PAYMENTS -PARKS GROUNDS MAINTENANCE,4040,,06/10/2022,41031274,1000,28953,MY LOCAL PITCH LTD T/A PLAYFINDER
INSERTED DETAIL,,Ealing Council,http://opendatacommunities.org/id/london-borough-council/ealing,PLACE,6,LEISURE,CONTRACT PAYMENTS -PARKS GROUNDS MAINTENANCE,4040,,04/10/2022,41033516,270,9900017,REDACTED SENSITIVE SUPPLIER
INSERTED DETAIL,,Ealing Council,http://opendatacommunities.org/id/london-borough-council/ealing,CHILDREN & ADULTS,1,DISABILITIES,PEST CONTROL SERVICES,1310,,29/09/2022,41034081,250,15791,YORKE PEST CONTROL LTD
INSERTED DETAIL,,Ealing Council,http://opendatacommunities.org/id/london-borough-council/ealing,CHILDREN & ADULTS,1,DISABILITIES,STATION. & CONSUMABLE EQUIP.,3820,,18/10/2022,41034503,590.29,10774,BUNZL CLEANING & HYGIENE SUPPLIES
INSERTED DETAIL,,Ealing Council,http://opendatacommunities.org/id/london-borough-council/ealing,CHILDREN & ADULTS,1,"PLANNING, COMMISSIONING & PARTNERSHIPS",AUDIT FEES,2870,,06/10/2022,41033155,2400,19150,WARDELL ASSOCIATES LIMITED
INSERTED DETAIL,,Ealing Council,http://opendatacommunities.org/id/london-borough-council/ealing,CHILDREN & ADULTS,1,"PLANNING, COMMISSIONING & PARTNERSHIPS",ACTIVITIES,4196,,01/09/2022,41029647,1075,23684,REDACTED SENSITIVE SUPPLIER
INSERTED DETAIL,,Ealing Council,http://opendatacommunities.org/id/london-borough-council/ealing,CHILDREN & ADULTS,1,"PLANNING, COMMISSIONING & PARTNERSHIPS",PAYMENTS OTHER VOL. BODIES,4420,,13/10/2022,41034139,4594,23428,THE APPROPRIATE ADULT SERVICE LTD
INSERTED DETAIL,,Ealing Council,http://opendatacommunities.org/id/london-borough-council/ealing,CHILDREN & ADULTS,1,SAFEGUARDING & SUPP - BS &A&F,PAYMENTS TO CONTRACTORS,4000,,31/08/2022,41028704,300,26424,PLAY THERAPY SERVICES LTD
INSERTED DETAIL,,Ealing Council,http://opendatacommunities.org/id/london-borough-council/ealing,CHILDREN & ADULTS,1,SAFEGUARDING & SUPP - BS &A&F,PAYMENTS TO CONTRACTORS,4000,,31/08/2022,41030088,463,18297,ADOPTION MATTERS
INSERTED DETAIL,,Ealing Council,http://opendatacommunities.org/id/london-borough-council/ealing,CHILDREN & ADULTS,1,SAFEGUARDING & SUPP - BS &A&F,PAYMENTS TO CONTRACTORS,4000,,31/08/2022,41028726,6160,23809,FAMILY FUTURES CIC
INSERTED DETAIL,,Ealing Council,http://opendatacommunities.org/id/london-borough-council/ealing,CHILDREN & ADULTS,1,SAFEGUARDING & SUPP - BS &A&F,PAYMENTS TO CONTRACTORS,4000,,15/09/2022,41030454,2440,23809,FAMILY FUTURES CIC
INSERTED DETAIL,,Ealing Council,http://opendatacommunities.org/id/london-borough-council/ealing,CHILDREN & ADULTS,1,SAFEGUARDING & SUPP - BS &A&F,PAYMENTS TO CONTRACTORS,4000,,25/08/2022,41028291,480,25902,REDACTED SENSITIVE SUPPLIER
INSERTED DETAIL,,Ealing Council,http://opendatacommunities.org/id/london-borough-council/ealing,CHILDREN & ADULTS,1,SAFEGUARDING & SUPP - BS &A&F,PAYMENTS TO CONTRACTORS,4000,,25/08/2022,41028295,480,25902,REDACTED SENSITIVE SUPPLIER
INSERTED DETAIL,,Ealing Council,http://opendatacommunities.org/id/london-borough-council/ealing,CHILDREN & ADULTS,1,SAFEGUARDING & SUPP - BS &A&F,PAYMENTS TO CONTRACTORS,4000,,14/09/2022,41030266,790,27703,MAXIMUM POTENTIAL VENTURES LTD
INSERTED DETAIL,,Ealing Council,http://opendatacommunities.org/id/london-borough-council/ealing,CHILDREN & ADULTS,1,SAFEGUARDING & SUPP - BS &A&F,PAYMENTS TO CONTRACTORS,4000,,23/09/2022,41031423,720,27703,MAXIMUM POTENTIAL VENTURES LTD
INSERTED DETAIL,,Ealing Council,http://opendatacommunities.org/id/london-borough-council/ealing,CHILDREN & ADULTS,1,SAFEGUARDING & SUPP - BS &A&F,PAYMENTS TO CONTRACTORS,4000,,23/09/2022,41031635,990,27703,MAXIMUM POTENTIAL VENTURES LTD
INSERTED DETAIL,,Ealing Council,http://opendatacommunities.org/id/london-borough-council/ealing,CHILDREN & ADULTS,1,SAFEGUARDING & SUPP - BS &A&F,PAYMENTS TO CONTRACTORS,4000,,23/09/2022,41031636,1260,27703,MAXIMUM POTENTIAL VENTURES LTD
INSERTED DETAIL,,Ealing Council,http://opendatacommunities.org/id/london-borough-council/ealing,CHILDREN & ADULTS,1,SAFEGUARDING & SUPP - BS &A&F,PAYMENTS TO CONTRACTORS,4000,,02/10/2022,41030475,280,28459,THE PARENT CHILD CLINIC
INSERTED DETAIL,,Ealing Council,http://opendatacommunities.org/id/london-borough-council/ealing,CHILDREN & ADULTS,1,SAFEGUARDING & SUPP - BS &A&F,PAYMENTS TO CONTRACTORS,4000,,02/10/2022,41030476,480,28459,THE PARENT CHILD CLINIC
INSERTED DETAIL,,Ealing Council,http://opendatacommunities.org/id/london-borough-council/ealing,PLACE,6,STREET SERVICES,PAYMENTS TO CONTRACTORS,4000,,22/08/2022,41027433,11700,28826,GREENER EALING LIMITED
INSERTED DETAIL,,Ealing Council,http://opendatacommunities.org/id/london-borough-council/ealing,PLACE,6,STREET SERVICES,PAYMENTS TO CONTRACTORS,4000,,11/10/2022,41034421,8572.5,28826,GREENER EALING LIMITED
INSERTED DETAIL,,Ealing Council,http://opendatacommunities.org/id/london-borough-council/ealing,PLACE,6,LEISURE,HEALTH & SAFETY,2880,,27/09/2022,41033726,806.26,15735,LBS (SERVING BIOTECHNOLGY) LTD
INSERTED DETAIL,,Ealing Council,http://opendatacommunities.org/id/london-borough-council/ealing,PLACE,6,LEISURE,HEALTH & SAFETY,2880,,22/09/2022,41031108,637.12,11538,DRAYTON FENCING COMPANY
INSERTED DETAIL,,Ealing Council,http://opendatacommunities.org/id/london-borough-council/ealing,PLACE,6,LEISURE,HEALTH & SAFETY,2880,,22/09/2022,41031110,657.08,11538,DRAYTON FENCING COMPANY
INSERTED DETAIL,,Ealing Council,http://opendatacommunities.org/id/london-borough-council/ealing,PLACE,6,LEISURE,HEALTH & SAFETY,2880,,22/09/2022,41031111,1028.61,11538,DRAYTON FENCING COMPANY
INSERTED DETAIL,,Ealing Council,http://opendatacommunities.org/id/london-borough-council/ealing,PLACE,6,LEISURE,HEALTH & SAFETY,2880,,22/09/2022,41031112,894.28,11538,DRAYTON FENCING COMPANY
INSERTED DETAIL,,Ealing Council,http://opendatacommunities.org/id/london-borough-council/ealing,PLACE,6,LEISURE,HEALTH & SAFETY,2880,,17/07/2022,41033658,336.82,14065,PHS GROUP LTD
INSERTED DETAIL,,Ealing Council,http://opendatacommunities.org/id/london-borough-council/ealing,PLACE,6,LEISURE,HEALTH & SAFETY,2880,,26/09/2022,41030562,253.05,16840,INTERNATIONAL ZOO VETERINARY GROUP
INSERTED DETAIL,,Ealing Council,http://opendatacommunities.org/id/london-borough-council/ealing,PLACE,6,LEISURE,CIS REPAIRS AND MAINTENANCE,1411,,30/09/2022,41033798,7484,27273,ALPHA BUILD CONSTRUCTION LTD
INSERTED DETAIL,,Ealing Council,http://opendatacommunities.org/id/london-borough-council/ealing,PLACE,6,LEISURE,CIS REPAIRS AND MAINTENANCE,1411,,30/09/2022,41033798,4176,27273,ALPHA BUILD CONSTRUCTION LTD
INSERTED DETAIL,,Ealing Council,http://opendatacommunities.org/id/london-borough-council/ealing,PLACE,6,LEISURE,HEALTH & SAFETY,2880,,17/06/2022,41029336,564.2,28998,H.S. JACKSON & SON (FENCING) LTD
INSERTED DETAIL,,Ealing Council,http://opendatacommunities.org/id/london-borough-council/ealing,PLACE,6,LEISURE,GAS,1090,,24/01/2022,41032235,1347.95,18301,CALOR GAS LTD
INSERTED DETAIL,,Ealing Council,http://opendatacommunities.org/id/london-borough-council/ealing,PLACE,6,LEISURE,PAYMENTS TO CONTRACTORS,4000,,28/03/2022,41009144,1762.4,11538,DRAYTON FENCING COMPANY
INSERTED DETAIL,,Ealing Council,http://opendatacommunities.org/id/london-borough-council/ealing,PLACE,6,LEISURE,CIS REPAIRS AND MAINTENANCE,1411,,03/09/2022,41029399,11250,25871,CENTURIAN SURFACING LTD - T/A CENTURIAN SERVICES
INSERTED DETAIL,,Ealing Council,http://opendatacommunities.org/id/london-borough-council/ealing,PLACE,6,LEISURE,CIS REPAIRS AND MAINTENANCE,1411,,03/09/2022,41029399,7534.08,25871,CENTURIAN SURFACING LTD - T/A CENTURIAN SERVICES
INSERTED DETAIL,,Ealing Council,http://opendatacommunities.org/id/london-borough-council/ealing,PLACE,6,LEISURE,CIS REPAIRS AND MAINTENANCE,1411,,02/10/2022,41032519,500,25871,CENTURIAN SURFACING LTD - T/A CENTURIAN SERVICES
INSERTED DETAIL,,Ealing Council,http://opendatacommunities.org/id/london-borough-council/ealing,PLACE,6,LEISURE,CIS REPAIRS AND MAINTENANCE,1411,,02/10/2022,41032519,1090.83,25871,CENTURIAN SURFACING LTD - T/A CENTURIAN SERVICES
INSERTED DETAIL,,Ealing Council,http://opendatacommunities.org/id/london-borough-council/ealing,PLACE,6,LEISURE,PAYMENTS TO CONTRACTORS,4000,,02/10/2022,41032520,1700,25871,CENTURIAN SURFACING LTD - T/A CENTURIAN SERVICES
INSERTED DETAIL,,Ealing Council,http://opendatacommunities.org/id/london-borough-council/ealing,PLACE,6,LEISURE,PAYMENTS TO CONTRACTORS,4000,,21/09/2022,41030959,1755,12788,KENWARD & SON LIMITED
INSERTED DETAIL,,Ealing Council,http://opendatacommunities.org/id/london-borough-council/ealing,PLACE,6,LEISURE,PAYMENTS TO CONTRACTORS,4000,,21/09/2022,41030998,2730,12788,KENWARD & SON LIMITED
INSERTED DETAIL,,Ealing Council,http://opendatacommunities.org/id/london-borough-council/ealing,CHILDREN & ADULTS,1,BUSINESS MANAGEMENT,PAYMENTS TO OTHER ESTAB.,4350,,01/10/2022,41032969,2790.36,22929,GOODSHAPE UK LIMITED
INSERTED DETAIL,,Ealing Council,http://opendatacommunities.org/id/london-borough-council/ealing,CHILDREN & ADULTS,1,BUSINESS MANAGEMENT,COMP OUTSOURCED SERVICES,3220,,01/10/2022,41032752,5850,29833,INDIGO SMART SOLUTIONS LTD
INSERTED DETAIL,,Ealing Council,http://opendatacommunities.org/id/london-borough-council/ealing,CHILDREN & ADULTS,1,DISABILITIES,RESIDENTIAL HOMES EXTERNAL,4220,,13/10/2022,23228637,2115.64,30095,ST MARYS RESIDENTIAL HOME
INSERTED DETAIL,,Ealing Council,http://opendatacommunities.org/id/london-borough-council/ealing,CHILDREN & ADULTS,1,DISABILITIES,RESIDENTIAL HOMES EXTERNAL-INCOME,8780,,13/10/2022,23228637,-627.8,30095,ST MARYS RESIDENTIAL HOME
INSERTED DETAIL,,Ealing Council,http://opendatacommunities.org/id/london-borough-council/ealing,CHILDREN & ADULTS,1,DISABILITIES,RESIDENTIAL HOMES EXTERNAL,4220,,13/10/2022,23228927,1530,29634,INTEGRATED KARE SOLUTIONS LTD
INSERTED DETAIL,,Ealing Council,http://opendatacommunities.org/id/london-borough-council/ealing,CHILDREN & ADULTS,1,DISABILITIES,DOMICILIARY CARE - BLOCK,4240,,06/10/2022,23228576,403,29634,INTEGRATED KARE SOLUTIONS LTD
INSERTED DETAIL,,Ealing Council,http://opendatacommunities.org/id/london-borough-council/ealing,CHILDREN & ADULTS,1,DISABILITIES,DOMICILIARY CARE - BLOCK,4240,,06/10/2022,23228576,612.12,29634,INTEGRATED KARE SOLUTIONS LTD
INSERTED DETAIL,,Ealing Council,http://opendatacommunities.org/id/london-borough-council/ealing,CHILDREN & ADULTS,1,DISABILITIES,RESIDENTIAL HOMES EXTERNAL,4220,,13/10/2022,23228959,4800,29652,NUTLEY HALL
INSERTED DETAIL,,Ealing Council,http://opendatacommunities.org/id/london-borough-council/ealing,CHILDREN & ADULTS,1,DISABILITIES,RESIDENTIAL HOMES EXTERNAL,4220,,13/10/2022,23228959,1400,29652,NUTLEY HALL
INSERTED DETAIL,,Ealing Council,http://opendatacommunities.org/id/london-borough-council/ealing,CHILDREN & ADULTS,1,DISABILITIES,SOCIAL SERVICES DIRECT PAYMENTS,4231,,04/10/2022,23224611,1638.64,80011,REDACTED SENSITIVE SUPPLIER
INSERTED DETAIL,,Ealing Council,http://opendatacommunities.org/id/london-borough-council/ealing,CHILDREN & ADULTS,1,DISABILITIES,SOCIAL SERVICES DIRECT PAYMENTS,4231,,04/10/2022,23224611,441.04,80011,REDACTED SENSITIVE SUPPLIER
INSERTED DETAIL,,Ealing Council,http://opendatacommunities.org/id/london-borough-council/ealing,CHILDREN & ADULTS,1,DISABILITIES,SOCIAL SERVICES DIRECT PAYMENTS,4231,,04/10/2022,23224635,6562.5,80128,REDACTED SENSITIVE SUPPLIER
INSERTED DETAIL,,Ealing Council,http://opendatacommunities.org/id/london-borough-council/ealing,PLACE,6,CAPITAL DELIVERY,PAYMENTS TO CONTRACTORS,4000,,23/09/2022,41031706,1170,28751,CARTER JONAS SERVICE COMPANY
INSERTED DETAIL,,Ealing Council,http://opendatacommunities.org/id/london-borough-council/ealing,PLACE,6,STREET SERVICES,PAYMENTS TO CONTRACTORS,4000,,30/09/2022,41032131,3073.4,19441,SDK (ENVIROMENTAL) LTD
INSERTED DETAIL,,Ealing Council,http://opendatacommunities.org/id/london-borough-council/ealing,PLACE,6,LEISURE,PAYMENTS TO CONTRACTORS,4000,,20/09/2022,41032378,4917,25875,SPORTS & LEISURE MANAGEMENT LTD T/A EVERYONE ACTIVE
INSERTED DETAIL,,Ealing Council,http://opendatacommunities.org/id/london-borough-council/ealing,PLACE,6,STREET SERVICES,PAYMENTS TO CONTRACTORS,4000,,13/09/2022,41030322,1074.36,28826,GREENER EALING LIMITED
INSERTED DETAIL,,Ealing Council,http://opendatacommunities.org/id/london-borough-council/ealing,PLACE,6,STREET SERVICES,PAYMENTS TO CONTRACTORS,4000,,11/10/2022,41034415,1836,28826,GREENER EALING LIMITED
INSERTED DETAIL,,Ealing Council,http://opendatacommunities.org/id/london-borough-council/ealing,PLACE,6,STREET SERVICES,PAYMENTS TO CONTRACTORS,4000,,11/10/2022,41034417,1836,28826,GREENER EALING LIMITED
INSERTED DETAIL,,Ealing Council,http://opendatacommunities.org/id/london-borough-council/ealing,PLACE,6,STREET SERVICES,PAYMENTS TO CONTRACTORS,4000,,10/10/2022,41034418,1074.36,28826,GREENER EALING LIMITED
INSERTED DETAIL,,Ealing Council,http://opendatacommunities.org/id/london-borough-council/ealing,CHILDREN & ADULTS,1,DISABILITIES,DOMICILIARY CARE EXTERNAL NON PAYROLL,4245,,03/10/2022,41032732,1369.8,12140,GOLDEN LANE HOUSING LTD
INSERTED DETAIL,,Ealing Council,http://opendatacommunities.org/id/london-borough-council/ealing,CHILDREN & ADULTS,1,DISABILITIES,DOMICILIARY CARE EXTERNAL NON PAYROLL,4245,,04/10/2022,41032733,1351.32,12140,GOLDEN LANE HOUSING LTD
INSERTED DETAIL,,Ealing Council,http://opendatacommunities.org/id/london-borough-council/ealing,CHILDREN & ADULTS,1,DISABILITIES,DOMICILIARY CARE EXTERNAL NON PAYROLL,4245,,03/10/2022,41032843,1313.84,12140,GOLDEN LANE HOUSING LTD
INSERTED DETAIL,,Ealing Council,http://opendatacommunities.org/id/london-borough-council/ealing,CHILDREN & ADULTS,1,SAFEGUARDING & SUPPORT - CIC,SECTION 2(16) PAYROLL TRANSACTIONS,4270,,28/09/2022,50001885,296.75,18273,CONTACT PROFESSIONALS LTD
INSERTED DETAIL,,Ealing Council,http://opendatacommunities.org/id/london-borough-council/ealing,CHILDREN & ADULTS,1,SAFEGUARDING & SUPPORT - CIC,SECTION 2(16) PAYROLL TRANSACTIONS,4270,,28/09/2022,50001885,291.7,18273,CONTACT PROFESSIONALS LTD
INSERTED DETAIL,,Ealing Council,http://opendatacommunities.org/id/london-borough-council/ealing,CHILDREN & ADULTS,1,SAFEGUARDING & SUPPORT - CIC,SECTION 2(16) PAYROLL TRANSACTIONS,4270,,21/09/2022,50001886,314.7,18273,CONTACT PROFESSIONALS LTD
INSERTED DETAIL,,Ealing Council,http://opendatacommunities.org/id/london-borough-council/ealing,CHILDREN & ADULTS,1,SAFEGUARDING & SUPPORT - CIC,SECTION 2(16) PAYROLL TRANSACTIONS,4270,,11/10/2022,41034029,1860,13769,NORTH HANWELL BAPTIST CHURCH
INSERTED DETAIL,,Ealing Council,http://opendatacommunities.org/id/london-borough-council/ealing,CHILDREN & ADULTS,1,SAFEGUARDING & SUPPORT - SM,INTERPRETERS,2910,,24/08/2022,41028652,11497.8,16019,LANGUAGE IS EVERYTHING LIMITED
INSERTED DETAIL,,Ealing Council,http://opendatacommunities.org/id/london-borough-council/ealing,CHILDREN & ADULTS,1,SAFEGUARDING & SUPPORT - SM,INTERPRETERS,2910,,20/10/2022,41033590,562.48,16019,LANGUAGE IS EVERYTHING LIMITED
INSERTED DETAIL,,Ealing Council,http://opendatacommunities.org/id/london-borough-council/ealing,CHILDREN & ADULTS,1,SAFEGUARDING & SUPPORT - SM,INTERPRETERS,2910,,20/10/2022,41033596,896,16019,LANGUAGE IS EVERYTHING LIMITED
INSERTED DETAIL,,Ealing Council,http://opendatacommunities.org/id/london-borough-council/ealing,CHILDREN & ADULTS,1,SAFEGUARDING & SUPPORT - SM,INTERPRETERS,2910,,30/09/2022,41030560,261.24,16019,LANGUAGE IS EVERYTHING LIMITED
INSERTED DETAIL,,Ealing Council,http://opendatacommunities.org/id/london-borough-council/ealing,CHILDREN & ADULTS,1,SAFEGUARDING & SUPPORT - SM,INTERPRETERS,2910,,11/10/2022,41032042,261.24,16019,LANGUAGE IS EVERYTHING LIMITED
INSERTED DETAIL,,Ealing Council,http://opendatacommunities.org/id/london-borough-council/ealing,CHILDREN & ADULTS,1,SAFEGUARDING & SUPPORT - SM,INTERPRETERS,2910,,31/03/2022,41024847,670.2,27092,DA LANGUAGES LTD
INSERTED DETAIL,,Ealing Council,http://opendatacommunities.org/id/london-borough-council/ealing,CHILDREN & ADULTS,1,SAFEGUARDING & SUPPORT - SM,INTERPRETERS,2910,,28/02/2022,41028570,594,27092,DA LANGUAGES LTD
INSERTED DETAIL,,Ealing Council,http://opendatacommunities.org/id/london-borough-council/ealing,CHILDREN & ADULTS,1,SAFEGUARDING & SUPPORT - SM,INTERPRETERS,2910,,28/02/2022,41033731,535.8,27092,DA LANGUAGES LTD
INSERTED DETAIL,,Ealing Council,http://opendatacommunities.org/id/london-borough-council/ealing,CHILDREN & ADULTS,1,SAFEGUARDING & SUPPORT - SM,CONFERENCE EXPENSES,3520,,06/09/2022,41030609,1650,19361,MA EDUCATION LIMITED
INSERTED DETAIL,,Ealing Council,http://opendatacommunities.org/id/london-borough-council/ealing,CHILDREN & ADULTS,1,SAFEGUARDING & SUPPORT - SM,COMP OUTSOURCED SERVICES,3220,,30/09/2022,41031341,8400,26815,RAINMAKER PEOPLE LIMITED
INSERTED DETAIL,,Ealing Council,http://opendatacommunities.org/id/london-borough-council/ealing,CHILDREN & ADULTS,1,OLDER PEOPLE,CLIENT EXPENSES,5810,,06/04/2022,41031668,907.35,20412,REDACTED SENSITIVE SUPPLIER
INSERTED DETAIL,,Ealing Council,http://opendatacommunities.org/id/london-borough-council/ealing,CHILDREN & ADULTS,1,SAFEGUARDING & SUPPORT - CIC,CHILDRENS SERVICES -ELIGIBLE CHILDREN ACCOMMODATIO,4281,,10/10/2022,23227262,1100,20842,LITTLE ACORN SERVICES LTD
INSERTED DETAIL,,Ealing Council,http://opendatacommunities.org/id/london-borough-council/ealing,CHILDREN & ADULTS,1,SAFEGUARDING & SUPPORT - CIC,CHILDRENS SERVICES -ELIGIBLE CHILDREN ACCOMMODATIO,4281,,10/10/2022,23227268,2300,20842,LITTLE ACORN SERVICES LTD
INSERTED DETAIL,,Ealing Council,http://opendatacommunities.org/id/london-borough-council/ealing,CHILDREN & ADULTS,1,SAFEGUARDING & SUPPORT - CIC,CHILDRENS SERVICES -ELIGIBLE CHILDREN ACCOMMODATIO,4281,,10/10/2022,23227268,1314.28,20842,LITTLE ACORN SERVICES LTD
INSERTED DETAIL,,Ealing Council,http://opendatacommunities.org/id/london-borough-council/ealing,CHILDREN & ADULTS,1,SAFEGUARDING & SUPPORT - CIC,SOCIAL SERVICES -INDEPENDENT FOSTERING,4221,,10/10/2022,23227213,8057.15,24787,SHARED CARE SERVICES (FOSTERING DIVISION)
INSERTED DETAIL,,Ealing Council,http://opendatacommunities.org/id/london-borough-council/ealing,CHILDREN & ADULTS,1,SAFEGUARDING & SUPPORT - CIC,SOCIAL SERVICES -INDEPENDENT FOSTERING,4221,,10/10/2022,23227213,8057.15,24787,SHARED CARE SERVICES (FOSTERING DIVISION)
INSERTED DETAIL,,Ealing Council,http://opendatacommunities.org/id/london-borough-council/ealing,CHILDREN & ADULTS,1,SAFEGUARDING & SUPPORT - CIC,RESIDENTIAL HOMES EXTERNAL,4220,,10/10/2022,23227190,15798.43,25444,ALICIE ENTERPRISES LIMITED
INSERTED DETAIL,,Ealing Council,http://opendatacommunities.org/id/london-borough-council/ealing,CHILDREN & ADULTS,1,SAFEGUARDING & SUPPORT - CIC,CHILDRENS SERVICES -ELIGIBLE CHILDREN OTHER COSTS,4282,,10/10/2022,23227190,6107.15,25444,ALICIE ENTERPRISES LIMITED
INSERTED DETAIL,,Ealing Council,http://opendatacommunities.org/id/london-borough-council/ealing,CHILDREN & ADULTS,1,SAFEGUARDING & SUPPORT - CIC,SOCIAL SERVICES -INDEPENDENT FOSTERING,4221,,10/10/2022,23227208,3725.35,26035,CONNECT FOSTERING SERVICES LTD
INSERTED DETAIL,,Ealing Council,http://opendatacommunities.org/id/london-borough-council/ealing,CHILDREN & ADULTS,1,OLDER PEOPLE,DOMICILIARY CARE - BLOCK,4240,,06/10/2022,23226699,268.23,25974,SAHAN CARES CIC
INSERTED DETAIL,,Ealing Council,http://opendatacommunities.org/id/london-borough-council/ealing,CHILDREN & ADULTS,1,OLDER PEOPLE,DOMICILIARY CARE - BLOCK,4240,,06/10/2022,23226699,1420.56,25974,SAHAN CARES CIC
INSERTED DETAIL,,Ealing Council,http://opendatacommunities.org/id/london-borough-council/ealing,CHILDREN & ADULTS,1,OLDER PEOPLE,RESIDENTIAL HOMES EXTERNAL,4220,,12/10/2022,23228996,2196,24752,AARAV PROPERTIES LTD
INSERTED DETAIL,,Ealing Council,http://opendatacommunities.org/id/london-borough-council/ealing,CHILDREN & ADULTS,1,OLDER PEOPLE,RESIDENTIAL HOMES EXTERNAL,4220,,12/10/2022,23228996,3050,24752,AARAV PROPERTIES LTD
INSERTED DETAIL,,Ealing Council,http://opendatacommunities.org/id/london-borough-council/ealing,CHILDREN & ADULTS,1,OLDER PEOPLE,EMI RESIDENTIAL,4227,,13/10/2022,23228796,5200,26930,RANC CARE HOMES LTD
INSERTED DETAIL,,Ealing Council,http://opendatacommunities.org/id/london-borough-council/ealing,CHILDREN & ADULTS,1,OLDER PEOPLE,EMI NURSING,4237,,13/10/2022,23228796,5600,26930,RANC CARE HOMES LTD
INSERTED DETAIL,,Ealing Council,http://opendatacommunities.org/id/london-borough-council/ealing,CHILDREN & ADULTS,1,OLDER PEOPLE,EMI NURSING,4237,,13/10/2022,23228796,5757.14,26930,RANC CARE HOMES LTD
INSERTED DETAIL,,Ealing Council,http://opendatacommunities.org/id/london-borough-council/ealing,CHILDREN & ADULTS,1,OLDER PEOPLE,DOMICILIARY CARE - BLOCK,4240,,20/04/2022,23235557,345,27219,THAMES HOMECARE SERVICE LTD
INSERTED DETAIL,,Ealing Council,http://opendatacommunities.org/id/london-borough-council/ealing,CHILDREN & ADULTS,1,OLDER PEOPLE,DOMICILIARY CARE - BLOCK,4240,,24/05/2022,23235557,675,27219,THAMES HOMECARE SERVICE LTD
INSERTED DETAIL,,Ealing Council,http://opendatacommunities.org/id/london-borough-council/ealing,CHILDREN & ADULTS,1,OLDER PEOPLE,DOMICILIARY CARE - BLOCK,4240,,16/06/2022,23235557,840,27219,THAMES HOMECARE SERVICE LTD
INSERTED DETAIL,,Ealing Council,http://opendatacommunities.org/id/london-borough-council/ealing,CHILDREN & ADULTS,1,OLDER PEOPLE,DOMICILIARY CARE - BLOCK,4240,,15/07/2022,23235557,840,27219,THAMES HOMECARE SERVICE LTD
INSERTED DETAIL,,Ealing Council,http://opendatacommunities.org/id/london-borough-council/ealing,CHILDREN & ADULTS,1,OLDER PEOPLE,DOMICILIARY CARE - BLOCK,4240,,04/10/2022,23226692,310.8,27219,THAMES HOMECARE SERVICE LTD
INSERTED DETAIL,,Ealing Council,http://opendatacommunities.org/id/london-borough-council/ealing,CHILDREN & ADULTS,1,OLDER PEOPLE,DOMICILIARY CARE - BLOCK,4240,,04/10/2022,23226692,725.2,27219,THAMES HOMECARE SERVICE LTD
INSERTED DETAIL,,Ealing Council,http://opendatacommunities.org/id/london-borough-council/ealing,CHILDREN & ADULTS,1,OLDER PEOPLE,DOMICILIARY CARE - BLOCK,4240,,04/10/2022,23226692,1450.4,27219,THAMES HOMECARE SERVICE LTD
INSERTED DETAIL,,Ealing Council,http://opendatacommunities.org/id/london-borough-council/ealing,CHILDREN & ADULTS,1,OLDER PEOPLE,DOMICILIARY CARE - BLOCK,4240,,04/10/2022,23226692,1470,27219,THAMES HOMECARE SERVICE LTD
INSERTED DETAIL,,Ealing Council,http://opendatacommunities.org/id/london-borough-council/ealing,CHILDREN & ADULTS,1,OLDER PEOPLE,DOMICILIARY CARE - BLOCK,4240,,04/10/2022,23226692,2704,27219,THAMES HOMECARE SERVICE LTD
INSERTED DETAIL,,Ealing Council,http://opendatacommunities.org/id/london-borough-council/ealing,CHILDREN & ADULTS,1,OLDER PEOPLE,DOMICILIARY CARE - BLOCK,4240,,04/10/2022,23226692,830,27219,THAMES HOMECARE SERVICE LTD
INSERTED DETAIL,,Ealing Council,http://opendatacommunities.org/id/london-borough-council/ealing,CHILDREN & ADULTS,1,OLDER PEOPLE,DOMICILIARY CARE - BLOCK,4240,,04/10/2022,23226692,256,27219,THAMES HOMECARE SERVICE LTD
INSERTED DETAIL,,Ealing Council,http://opendatacommunities.org/id/london-borough-council/ealing,CHILDREN & ADULTS,1,OLDER PEOPLE,DOMICILIARY CARE - BLOCK,4240,,04/10/2022,23226692,266.4,27219,THAMES HOMECARE SERVICE LTD
INSERTED DETAIL,,Ealing Council,http://opendatacommunities.org/id/london-borough-council/ealing,CHILDREN & ADULTS,1,OLDER PEOPLE,DOMICILIARY CARE - BLOCK,4240,,04/10/2022,23226692,518,27219,THAMES HOMECARE SERVICE LTD
INSERTED DETAIL,,Ealing Council,http://opendatacommunities.org/id/london-borough-council/ealing,CHILDREN & ADULTS,1,OLDER PEOPLE,DOMICILIARY CARE - BLOCK,4240,,04/10/2022,23226692,717.8,27219,THAMES HOMECARE SERVICE LTD
INSERTED DETAIL,,Ealing Council,http://opendatacommunities.org/id/london-borough-council/ealing,CHILDREN & ADULTS,1,OLDER PEOPLE,DOMICILIARY CARE - BLOCK,4240,,04/10/2022,23226692,464.8,27219,THAMES HOMECARE SERVICE LTD
INSERTED DETAIL,,Ealing Council,http://opendatacommunities.org/id/london-borough-council/ealing,CHILDREN & ADULTS,1,OLDER PEOPLE,DOMICILIARY CARE - BLOCK,4240,,04/10/2022,23226692,672,27219,THAMES HOMECARE SERVICE LTD
INSERTED DETAIL,,Ealing Council,http://opendatacommunities.org/id/london-borough-council/ealing,CHILDREN & ADULTS,1,OLDER PEOPLE,DOMICILIARY CARE - BLOCK,4240,,04/10/2022,23226692,502.32,27219,THAMES HOMECARE SERVICE LTD
INSERTED DETAIL,,Ealing Council,http://opendatacommunities.org/id/london-borough-council/ealing,CHILDREN & ADULTS,1,OLDER PEOPLE,DOMICILIARY CARE - BLOCK,4240,,04/10/2022,23226692,402.08,27219,THAMES HOMECARE SERVICE LTD
INSERTED DETAIL,,Ealing Council,http://opendatacommunities.org/id/london-borough-council/ealing,CHILDREN & ADULTS,1,OLDER PEOPLE,DOMICILIARY CARE - BLOCK,4240,,04/10/2022,23226692,1480,27219,THAMES HOMECARE SERVICE LTD
INSERTED DETAIL,,Ealing Council,http://opendatacommunities.org/id/london-borough-council/ealing,CHILDREN & ADULTS,1,OLDER PEOPLE,DOMICILIARY CARE - BLOCK,4240,,04/10/2022,23226692,401.8,27219,THAMES HOMECARE SERVICE LTD
INSERTED DETAIL,,Ealing Council,http://opendatacommunities.org/id/london-borough-council/ealing,CHILDREN & ADULTS,1,OLDER PEOPLE,DOMICILIARY CARE - BLOCK,4240,,04/10/2022,23226692,559.72,27219,THAMES HOMECARE SERVICE LTD
INSERTED DETAIL,,Ealing Council,http://opendatacommunities.org/id/london-borough-council/ealing,CHILDREN & ADULTS,1,OLDER PEOPLE,DOMICILIARY CARE - BLOCK,4240,,04/10/2022,23226692,1243.2,27219,THAMES HOMECARE SERVICE LTD
INSERTED DETAIL,,Ealing Council,http://opendatacommunities.org/id/london-borough-council/ealing,CHILDREN & ADULTS,1,OLDER PEOPLE,DOMICILIARY CARE - BLOCK,4240,,04/10/2022,23226692,1346.8,27219,THAMES HOMECARE SERVICE LTD
INSERTED DETAIL,,Ealing Council,http://opendatacommunities.org/id/london-borough-council/ealing,CHILDREN & ADULTS,1,OLDER PEOPLE,DOMICILIARY CARE - BLOCK,4240,,04/10/2022,23226692,310.8,27219,THAMES HOMECARE SERVICE LTD
INSERTED DETAIL,,Ealing Council,http://opendatacommunities.org/id/london-borough-council/ealing,CHILDREN & ADULTS,1,OLDER PEOPLE,DOMICILIARY CARE - BLOCK,4240,,04/10/2022,23226692,430.56,27219,THAMES HOMECARE SERVICE LTD
INSERTED DETAIL,,Ealing Council,http://opendatacommunities.org/id/london-borough-council/ealing,CHILDREN & ADULTS,1,OLDER PEOPLE,DOMICILIARY CARE - BLOCK,4240,,04/10/2022,23226692,1792,27219,THAMES HOMECARE SERVICE LTD
INSERTED DETAIL,,Ealing Council,http://opendatacommunities.org/id/london-borough-council/ealing,CHILDREN & ADULTS,1,OLDER PEOPLE,DOMICILIARY CARE - BLOCK,4240,,04/10/2022,23226692,-256,27219,THAMES HOMECARE SERVICE LTD
INSERTED DETAIL,,Ealing Council,http://opendatacommunities.org/id/london-borough-council/ealing,CHILDREN & ADULTS,1,OLDER PEOPLE,DOMICILIARY CARE - BLOCK,4240,,04/10/2022,23226692,528,27219,THAMES HOMECARE SERVICE LTD
INSERTED DETAIL,,Ealing Council,http://opendatacommunities.org/id/london-borough-council/ealing,CHILDREN & ADULTS,1,OLDER PEOPLE,DOMICILIARY CARE - BLOCK,4240,,04/10/2022,23226692,725.2,27219,THAMES HOMECARE SERVICE LTD
INSERTED DETAIL,,Ealing Council,http://opendatacommunities.org/id/london-borough-council/ealing,CHILDREN & ADULTS,1,SAFEGUARDING & SUPPORT - CIC,CHILDRENS SERVICES -ELIGIBLE CHILDREN ACCOMMODATIO,4281,,04/10/2022,23224904,269.95,200481,REDACTED SENSITIVE SUPPLIER
INSERTED DETAIL,,Ealing Council,http://opendatacommunities.org/id/london-borough-council/ealing,CHILDREN & ADULTS,1,SAFEGUARDING & SUPPORT - CIC,CHILDRENS SERVICES -ELIGIBLE CHILDREN OTHER COSTS,4282,,25/10/2022,23237039,1200,200755,REDACTED SENSITIVE SUPPLIER
INSERTED DETAIL,,Ealing Council,http://opendatacommunities.org/id/london-borough-council/ealing,CHILDREN & ADULTS,1,SAFEGUARDING & SUPPORT - CIC,CHILDRENS SERVICES -ELIGIBLE CHILDREN OTHER COSTS,4282,,11/10/2022,23227585,2166.66,200984,REDACTED SENSITIVE SUPPLIER
INSERTED DETAIL,,Ealing Council,http://opendatacommunities.org/id/london-borough-council/ealing,CHILDREN & ADULTS,1,SAFEGUARDING & SUPPORT - CIC,CHILDRENS SERVICES -ELIGIBLE CHILDREN ACCOMMODATIO,4281,,04/10/2022,23224752,269.95,200344,REDACTED SENSITIVE SUPPLIER
INSERTED DETAIL,,Ealing Council,http://opendatacommunities.org/id/london-borough-council/ealing,CHILDREN & ADULTS,1,SAFEGUARDING & SUPPORT - CIC,CHILDRENS SERVICES -ELIGIBLE CHILDREN ACCOMMODATIO,4281,,11/10/2022,23227442,269.95,200344,REDACTED SENSITIVE SUPPLIER
INSERTED DETAIL,,Ealing Council,http://opendatacommunities.org/id/london-borough-council/ealing,CHILDREN & ADULTS,1,SAFEGUARDING & SUPPORT - CIC,CHILDRENS SERVICES -ELIGIBLE CHILDREN ACCOMMODATIO,4281,,18/10/2022,23229574,269.95,200344,REDACTED SENSITIVE SUPPLIER
INSERTED DETAIL,,Ealing Council,http://opendatacommunities.org/id/london-borough-council/ealing,CHILDREN & ADULTS,1,SAFEGUARDING & SUPPORT - CIC,CHILDRENS SERVICES -ELIGIBLE CHILDREN ACCOMMODATIO,4281,,25/10/2022,23237077,269.95,200344,REDACTED SENSITIVE SUPPLIER
INSERTED DETAIL,,Ealing Council,http://opendatacommunities.org/id/london-borough-council/ealing,CHILDREN & ADULTS,1,SAFEGUARDING & SUPPORT - CIC,CHILDRENS SERVICES -ELIGIBLE CHILDREN ACCOMMODATIO,4281,,25/10/2022,23237078,269.95,200345,REDACTED SENSITIVE SUPPLIER
INSERTED DETAIL,,Ealing Council,http://opendatacommunities.org/id/london-borough-council/ealing,CHILDREN & ADULTS,1,SAFEGUARDING & SUPPORT - CIC,CHILDRENS SERVICES -ELIGIBLE CHILDREN ACCOMMODATIO,4281,,18/10/2022,23229576,269.95,200345,REDACTED SENSITIVE SUPPLIER
INSERTED DETAIL,,Ealing Council,http://opendatacommunities.org/id/london-borough-council/ealing,CHILDREN & ADULTS,1,SAFEGUARDING & SUPPORT - CIC,CHILDRENS SERVICES -ELIGIBLE CHILDREN ACCOMMODATIO,4281,,11/10/2022,23227444,269.95,200345,REDACTED SENSITIVE SUPPLIER
INSERTED DETAIL,,Ealing Council,http://opendatacommunities.org/id/london-borough-council/ealing,CHILDREN & ADULTS,1,SAFEGUARDING & SUPPORT - CIC,CHILDRENS SERVICES -ELIGIBLE CHILDREN ACCOMMODATIO,4281,,04/10/2022,23224754,3856.43,200345,REDACTED SENSITIVE SUPPLIER
INSERTED DETAIL,,Ealing Council,http://opendatacommunities.org/id/london-borough-council/ealing,CHILDREN & ADULTS,1,SAFEGUARDING & SUPPORT - CIC,CHILDRENS SERVICES -ELIGIBLE CHILDREN ACCOMMODATIO,4281,,04/10/2022,23224883,385.65,200448,REDACTED SENSITIVE SUPPLIER
INSERTED DETAIL,,Ealing Council,http://opendatacommunities.org/id/london-borough-council/ealing,CHILDREN & ADULTS,1,SAFEGUARDING & SUPPORT - CIC,CHILDRENS SERVICES -ELIGIBLE CHILDREN ACCOMMODATIO,4281,,05/10/2022,23225199,1195.5,200448,REDACTED SENSITIVE SUPPLIER
INSERTED DETAIL,,Ealing Council,http://opendatacommunities.org/id/london-borough-council/ealing,CHILDREN & ADULTS,1,SAFEGUARDING & SUPPORT - CIC,CHILDRENS SERVICES -ELIGIBLE CHILDREN ACCOMMODATIO,4281,,11/10/2022,23227573,269.95,200448,REDACTED SENSITIVE SUPPLIER
INSERTED DETAIL,,Ealing Council,http://opendatacommunities.org/id/london-borough-council/ealing,CHILDREN & ADULTS,1,SAFEGUARDING & SUPPORT - CIC,CHILDRENS SERVICES -ELIGIBLE CHILDREN OTHER COSTS,4282,,11/10/2022,23227556,2464,200856,REDACTED SENSITIVE SUPPLIER
INSERTED DETAIL,,Ealing Council,http://opendatacommunities.org/id/london-borough-council/ealing,CHILDREN & ADULTS,1,SAFEGUARDING & SUPPORT - CIC,CHILDRENS SERVICES -ELIGIBLE CHILDREN OTHER COSTS,4282,,25/10/2022,23237222,1330,201002,REDACTED SENSITIVE SUPPLIER
INSERTED DETAIL,,Ealing Council,http://opendatacommunities.org/id/london-borough-council/ealing,CHILDREN & ADULTS,1,SAFEGUARDING & SUPPORT - CIC,CHILDRENS SERVICES -ELIGIBLE CHILDREN OTHER COSTS,4282,,04/10/2022,23224781,331.42,201025,REDACTED SENSITIVE SUPPLIER
INSERTED DETAIL,,Ealing Council,http://opendatacommunities.org/id/london-borough-council/ealing,CHILDREN & ADULTS,1,SAFEGUARDING & SUPPORT - CIC,CHILDRENS SERVICES -ELIGIBLE CHILDREN ACCOMMODATIO,4281,,11/10/2022,23227704,269.95,200270,REDACTED SENSITIVE SUPPLIER
INSERTED DETAIL,,Ealing Council,http://opendatacommunities.org/id/london-borough-council/ealing,CHILDREN & ADULTS,1,SAFEGUARDING & SUPPORT - CIC,CHILDRENS SERVICES -ELIGIBLE CHILDREN OTHER COSTS,4282,,05/10/2022,23225193,1625,200982,REDACTED SENSITIVE SUPPLIER
INSERTED DETAIL,,Ealing Council,http://opendatacommunities.org/id/london-borough-council/ealing,CHILDREN & ADULTS,1,SAFEGUARDING & SUPPORT - CIC,CHILDRENS SERVICES -ELIGIBLE CHILDREN ACCOMMODATIO,4281,,10/10/2022,23227304,4500,29141,WYF VENTURES LTD T/A TOTAL CARE
INSERTED DETAIL,,Ealing Council,http://opendatacommunities.org/id/london-borough-council/ealing,PLACE,6,ECONOMIC GROWTH,PAYMENTS TO CONTRACTORS,4000,,30/09/2022,41030522,3000,25174,BLACKSTOCK PARTNERSHIP LIMITED
INSERTED DETAIL,,Ealing Council,http://opendatacommunities.org/id/london-borough-council/ealing,PLACE,6,ECONOMIC GROWTH,PAYMENTS TO CONTRACTORS,4000,,30/09/2022,41032578,25125.5,24631,ALLIES AND MORRISON
INSERTED DETAIL,,Ealing Council,http://opendatacommunities.org/id/london-borough-council/ealing,PLACE,6,HOUSING BUSINESS PLANNING,PAYMENTS TO CONTRACTORS,4000,,19/10/2022,41033332,1050,16396,THE OYSTER PARTNERSHIP LTD
INSERTED DETAIL,,Ealing Council,http://opendatacommunities.org/id/london-borough-council/ealing,PLACE,6,HOUSING BUSINESS PLANNING,PAYMENTS TO CONTRACTORS,4000,,12/10/2022,41032298,1750,16396,THE OYSTER PARTNERSHIP LTD
INSERTED DETAIL,,Ealing Council,http://opendatacommunities.org/id/london-borough-council/ealing,PLACE,6,HOUSING BUSINESS PLANNING,PAYMENTS TO CONTRACTORS,4000,,05/10/2022,41031146,1400,16396,THE OYSTER PARTNERSHIP LTD
INSERTED DETAIL,,Ealing Council,http://opendatacommunities.org/id/london-borough-council/ealing,PLACE,6,HOUSING BUSINESS PLANNING,PAYMENTS TO CONTRACTORS,4000,,26/10/2022,41034179,1750,16396,THE OYSTER PARTNERSHIP LTD
INSERTED DETAIL,,Ealing Council,http://opendatacommunities.org/id/london-borough-council/ealing,PLACE,6,HOUSING BUSINESS PLANNING,PAYMENTS TO CONTRACTORS,4000,,05/10/2022,41031134,1750,16396,THE OYSTER PARTNERSHIP LTD
INSERTED DETAIL,,Ealing Council,http://opendatacommunities.org/id/london-borough-council/ealing,PLACE,6,HOUSING BUSINESS PLANNING,RENTS,1200,,30/09/2022,41032780,960.73,23040,ALLPAY.NET
INSERTED DETAIL,,Ealing Council,http://opendatacommunities.org/id/london-borough-council/ealing,PLACE,6,HOUSING BUSINESS PLANNING,RENTS,1200,,30/09/2022,41032785,2525.76,23040,ALLPAY.NET
INSERTED DETAIL,,Ealing Council,http://opendatacommunities.org/id/london-borough-council/ealing,PLACE,6,RESIDENT SERVICES,REPAIR AND MAINTENANCE,1410,,14/09/2022,41032648,445.85,25125,JEWSON LIMITED
INSERTED DETAIL,,Ealing Council,http://opendatacommunities.org/id/london-borough-council/ealing,PLACE,6,RESIDENT SERVICES,PAYMENTS TO CONTRACTORS,4000,,30/09/2022,41032573,1000,28712,RIGHTMOVE GROUP LIMITED
INSERTED DETAIL,,Ealing Council,http://opendatacommunities.org/id/london-borough-council/ealing,PLACE,6,RESIDENT SERVICES,REPAIR AND MAINTENANCE,1410,,11/10/2022,41033868,370.11,26138,CROWN PAINTS LIMITED
INSERTED DETAIL,,Ealing Council,http://opendatacommunities.org/id/london-borough-council/ealing,PLACE,6,HOUSING PROPERTY & ASSETS,CLEANING CONTRACT,1300,,13/09/2022,41030448,1949.17,28826,GREENER EALING LIMITED
INSERTED DETAIL,,Ealing Council,http://opendatacommunities.org/id/london-borough-council/ealing,PLACE,6,HOUSING  DEMAND,FURNITURE,3360,,06/10/2022,41033679,315,12789,KENWAYS FURNITURE
INSERTED DETAIL,,Ealing Council,http://opendatacommunities.org/id/london-borough-council/ealing,PLACE,6,HOUSING  DEMAND,FURNITURE,3360,,06/10/2022,41033681,910,12789,KENWAYS FURNITURE
INSERTED DETAIL,,Ealing Council,http://opendatacommunities.org/id/london-borough-council/ealing,PLACE,6,HOUSING  DEMAND,FURNITURE,3360,,23/09/2022,41031266,315,12789,KENWAYS FURNITURE
INSERTED DETAIL,,Ealing Council,http://opendatacommunities.org/id/london-borough-council/ealing,PLACE,6,HOUSING  DEMAND,FURNITURE,3360,,24/08/2022,41031271,320,12789,KENWAYS FURNITURE
INSERTED DETAIL,,Ealing Council,http://opendatacommunities.org/id/london-borough-council/ealing,PLACE,6,HOUSING  DEMAND,FURNITURE,3360,,12/09/2022,41031276,315,12789,KENWAYS FURNITURE
INSERTED DETAIL,,Ealing Council,http://opendatacommunities.org/id/london-borough-council/ealing,PLACE,6,HOUSING  DEMAND,FURNITURE,3360,,23/06/2022,41031277,450,12789,KENWAYS FURNITURE
INSERTED DETAIL,,Ealing Council,http://opendatacommunities.org/id/london-borough-council/ealing,PLACE,6,HOUSING  DEMAND,RENTS,1200,,30/09/2022,41032196,6996.16,9900017,REDACTED SENSITIVE SUPPLIER
INSERTED DETAIL,,Ealing Council,http://opendatacommunities.org/id/london-borough-council/ealing,PLACE,6,HOUSING  DEMAND,RENTS,1200,,28/09/2022,41034104,969.8,9900017,REDACTED SENSITIVE SUPPLIER
INSERTED DETAIL,,Ealing Council,http://opendatacommunities.org/id/london-borough-council/ealing,PLACE,6,HOUSING  DEMAND,REMOVALS,2680,,21/09/2022,41030927,559.45,16472,CLOCKWORK REMOVALS LTD
INSERTED DETAIL,,Ealing Council,http://opendatacommunities.org/id/london-borough-council/ealing,CHILDREN & ADULTS,1,EARLY YEARS CHILDCARE & SAFE,TRAINING MATERIALS,3350,,12/09/2022,41032343,1000,29999,REDACTED SENSITIVE SUPPLIER
INSERTED DETAIL,,Ealing Council,http://opendatacommunities.org/id/london-borough-council/ealing,CHILDREN & ADULTS,1,EARLY YEARS CHILDCARE & SAFE,HOSPITALITY/ENTERTAINMENT,3530,,13/09/2022,41032388,7752.5,29374,AKSHAYA PATRA U.K. LIMITED
INSERTED DETAIL,,Ealing Council,http://opendatacommunities.org/id/london-borough-council/ealing,CHILDREN & ADULTS,1,EARLY YEARS CHILDCARE & SAFE,HOSPITALITY/ENTERTAINMENT,3530,,13/09/2022,41032388,32666.17,29374,AKSHAYA PATRA U.K. LIMITED
INSERTED DETAIL,,Ealing Council,http://opendatacommunities.org/id/london-borough-council/ealing,CHILDREN & ADULTS,1,EARLY YEARS CHILDCARE & SAFE,TRAINING MATERIALS,3350,,08/07/2022,41031335,540,13809,NSPCC REGISTERED CHARITY
INSERTED DETAIL,,Ealing Council,http://opendatacommunities.org/id/london-borough-council/ealing,CHILDREN & ADULTS,1,SCHOOLS PFI,PAYMENTS TO CONTRACTORS,4000,,03/10/2022,41032716,450380.38,23577,FUTURE EALING (PHASE 1) LIMITED
INSERTED DETAIL,,Ealing Council,http://opendatacommunities.org/id/london-borough-council/ealing,CHILDREN & ADULTS,1,SAFEGUARDING & SUPP - BS &A&F,SPECIAL GUARDIANSHIP ALLOWANCE (SOC SERV),4663,,25/10/2022,23237131,366,200093,REDACTED SENSITIVE SUPPLIER
INSERTED DETAIL,,Ealing Council,http://opendatacommunities.org/id/london-borough-council/ealing,CHILDREN & ADULTS,1,SAFEGUARDING & SUPP - BS &A&F,SPECIAL GUARDIANSHIP ALLOWANCE (SOC SERV),4663,,11/10/2022,23227391,365,200078,REDACTED SENSITIVE SUPPLIER
INSERTED DETAIL,,Ealing Council,http://opendatacommunities.org/id/london-borough-council/ealing,CHILDREN & ADULTS,1,SAFEGUARDING & SUPP - BS &A&F,SPECIAL GUARDIANSHIP ALLOWANCE (SOC SERV),4663,,04/10/2022,23224704,365,200078,REDACTED SENSITIVE SUPPLIER
INSERTED DETAIL,,Ealing Council,http://opendatacommunities.org/id/london-borough-council/ealing,CHILDREN & ADULTS,1,SAFEGUARDING & SUPP - BS &A&F,SPECIAL GUARDIANSHIP ALLOWANCE (SOC SERV),4663,,18/10/2022,23229527,365,200078,REDACTED SENSITIVE SUPPLIER
INSERTED DETAIL,,Ealing Council,http://opendatacommunities.org/id/london-borough-council/ealing,CHILDREN & ADULTS,1,SAFEGUARDING & SUPP - BS &A&F,SPECIAL GUARDIANSHIP ALLOWANCE (SOC SERV),4663,,25/10/2022,23237028,365,200078,REDACTED SENSITIVE SUPPLIER
INSERTED DETAIL,,Ealing Council,http://opendatacommunities.org/id/london-borough-council/ealing,CHILDREN & ADULTS,1,SAFEGUARDING & SUPP - BS &A&F,CHILDRENS SERVICES ADOPTION ALLOWANCE,4387,,18/10/2022,23229762,348.95,200820,REDACTED SENSITIVE SUPPLIER
INSERTED DETAIL,,Ealing Council,http://opendatacommunities.org/id/london-borough-council/ealing,CHILDREN & ADULTS,1,SAFEGUARDING & SUPP - BS &A&F,CHILDRENS SERVICES ADOPTION ALLOWANCE,4387,,18/10/2022,23229762,356.05,200820,REDACTED SENSITIVE SUPPLIER
INSERTED DETAIL,,Ealing Council,http://opendatacommunities.org/id/london-borough-council/ealing,CHILDREN & ADULTS,1,SAFEGUARDING & SUPP - BS &A&F,CHILDRENS SERVICES ADOPTION ALLOWANCE,4387,,25/10/2022,23237271,356.05,200820,REDACTED SENSITIVE SUPPLIER
INSERTED DETAIL,,Ealing Council,http://opendatacommunities.org/id/london-borough-council/ealing,CHILDREN & ADULTS,1,SAFEGUARDING & SUPP - BS &A&F,CHILDRENS SERVICES ADOPTION ALLOWANCE,4387,,25/10/2022,23237271,348.95,200820,REDACTED SENSITIVE SUPPLIER
INSERTED DETAIL,,Ealing Council,http://opendatacommunities.org/id/london-borough-council/ealing,CHILDREN & ADULTS,1,SAFEGUARDING & SUPP - BS &A&F,CHILDRENS SERVICES ADOPTION ALLOWANCE,4387,,25/10/2022,23237271,356.05,200820,REDACTED SENSITIVE SUPPLIER
INSERTED DETAIL,,Ealing Council,http://opendatacommunities.org/id/london-borough-council/ealing,CHILDREN & ADULTS,1,SAFEGUARDING & SUPP - BS &A&F,SUBSCRIPTIONS,3600,,12/08/2022,41032047,4000,20578,SIGNIS LIMITED
INSERTED DETAIL,,Ealing Council,http://opendatacommunities.org/id/london-borough-council/ealing,CHILDREN & ADULTS,1,SAFEGUARDING & SUPP - BS &A&F,PAYMENTS TO CONTRACTORS,4000,,12/09/2022,41033456,592.5,9900014,REDACTED SENSITIVE SUPPLIER
INSERTED DETAIL,,Ealing Council,http://opendatacommunities.org/id/london-borough-council/ealing,CHILDREN & ADULTS,1,SAFEGUARDING & SUPP - BS &A&F,SUBSCRIPTIONS,3600,,16/09/2022,41030631,6600,13929,PACT
INSERTED DETAIL,,Ealing Council,http://opendatacommunities.org/id/london-borough-council/ealing,CHILDREN & ADULTS,1,STRATEGIC COMMISSIONING,PAYMENTS TO CONTRACTORS,4000,,07/09/2022,41029375,6230,24546,VOICEABILITY ADVOCACY
INSERTED DETAIL,,Ealing Council,http://opendatacommunities.org/id/london-borough-council/ealing,CHILDREN & ADULTS,1,STRATEGIC COMMISSIONING,PAYMENTS TO CONTRACTORS,4000,,21/09/2022,41031752,50000,27052,YOUR VOICE IN HEALTH AND SOCIAL CARE
INSERTED DETAIL,,Ealing Council,http://opendatacommunities.org/id/london-borough-council/ealing,CHILDREN & ADULTS,1,STRATEGIC COMMISSIONING,PAYMENTS TO CONTRACTORS,4000,,02/09/2022,41028950,25000,27052,YOUR VOICE IN HEALTH AND SOCIAL CARE
INSERTED DETAIL,,Ealing Council,http://opendatacommunities.org/id/london-borough-council/ealing,CHILDREN & ADULTS,1,ILT,RESIDENTIAL HOMES EXTERNAL,4220,,13/10/2022,23228804,764.4,27070,YOUTH ENGAGEMENT PROGRAMME CIC
INSERTED DETAIL,,Ealing Council,http://opendatacommunities.org/id/london-borough-council/ealing,CHILDREN & ADULTS,1,ILT,RESIDENTIAL HOMES EXTERNAL,4220,,13/10/2022,23228804,422.4,27070,YOUTH ENGAGEMENT PROGRAMME CIC
INSERTED DETAIL,,Ealing Council,http://opendatacommunities.org/id/london-borough-council/ealing,CHILDREN & ADULTS,1,ILT,RESIDENTIAL HOMES EXTERNAL,4220,,13/10/2022,23228804,290,27070,YOUTH ENGAGEMENT PROGRAMME CIC
INSERTED DETAIL,,Ealing Council,http://opendatacommunities.org/id/london-borough-council/ealing,CHILDREN & ADULTS,1,ILT,SOCIAL SERVICES DIRECT PAYMENTS,4231,,04/10/2022,23224623,755.36,80210,REDACTED SENSITIVE SUPPLIER
INSERTED DETAIL,,Ealing Council,http://opendatacommunities.org/id/london-borough-council/ealing,CHILDREN & ADULTS,1,ILT,SOCIAL SERVICES DIRECT PAYMENTS,4231,,04/10/2022,23224620,639.48,80424,REDACTED SENSITIVE SUPPLIER
INSERTED DETAIL,,Ealing Council,http://opendatacommunities.org/id/london-borough-council/ealing,CHILDREN & ADULTS,1,ILT,SOCIAL SERVICES DIRECT PAYMENTS,4231,,04/10/2022,23224657,1440,81033,REDACTED SENSITIVE SUPPLIER
INSERTED DETAIL,,Ealing Council,http://opendatacommunities.org/id/london-borough-council/ealing,CHILDREN & ADULTS,1,ILT,SOCIAL SERVICES DIRECT PAYMENTS,4231,,04/10/2022,23224657,4554.64,81033,REDACTED SENSITIVE SUPPLIER
INSERTED DETAIL,,Ealing Council,http://opendatacommunities.org/id/london-borough-council/ealing,CHILDREN & ADULTS,1,ILT,SOCIAL SERVICES DIRECT PAYMENTS,4231,,04/10/2022,23224677,3315.2,81035,REDACTED SENSITIVE SUPPLIER
INSERTED DETAIL,,Ealing Council,http://opendatacommunities.org/id/london-borough-council/ealing,CHILDREN & ADULTS,1,ILT,DOMICILIARY CARE - BLOCK,4240,,25/10/2022,23237002,540,27201,BRIGHT STAR CARE SERVICE LTD
INSERTED DETAIL,,Ealing Council,http://opendatacommunities.org/id/london-borough-council/ealing,CHILDREN & ADULTS,1,EALING SERVICE FOR CHILDREN WITH ADDITIONAL NEEDS,DOMICILIARY CARE - BLOCK,4240,,10/10/2022,23227362,574,29634,INTEGRATED KARE SOLUTIONS LTD
INSERTED DETAIL,,Ealing Council,http://opendatacommunities.org/id/london-borough-council/ealing,CHILDREN & ADULTS,1,EALING SERVICE FOR CHILDREN WITH ADDITIONAL NEEDS,DOMICILIARY CARE - BLOCK,4240,,10/10/2022,23227362,616,29634,INTEGRATED KARE SOLUTIONS LTD
INSERTED DETAIL,,Ealing Council,http://opendatacommunities.org/id/london-borough-council/ealing,CHILDREN & ADULTS,1,EALING SERVICE FOR CHILDREN WITH ADDITIONAL NEEDS,CHILDRENS SERVICE -RESPITE CARE SCHEME,4661,,10/10/2022,23227354,1800,26027,SUPPORT DIRECT LIMITED
INSERTED DETAIL,,Ealing Council,http://opendatacommunities.org/id/london-borough-council/ealing,CHILDREN & ADULTS,1,EALING SERVICE FOR CHILDREN WITH ADDITIONAL NEEDS,CHILDRENS SERVICE -RESPITE CARE SCHEME,4661,,10/10/2022,23227354,465,26027,SUPPORT DIRECT LIMITED
INSERTED DETAIL,,Ealing Council,http://opendatacommunities.org/id/london-borough-council/ealing,CHILDREN & ADULTS,1,EALING SERVICE FOR CHILDREN WITH ADDITIONAL NEEDS,DOMICILIARY CARE - BLOCK,4240,,10/10/2022,23227354,288,26027,SUPPORT DIRECT LIMITED
INSERTED DETAIL,,Ealing Council,http://opendatacommunities.org/id/london-borough-council/ealing,CHILDREN & ADULTS,1,EALING SERVICE FOR CHILDREN WITH ADDITIONAL NEEDS,DOMICILIARY CARE - BLOCK,4240,,10/10/2022,23227354,624,26027,SUPPORT DIRECT LIMITED
INSERTED DETAIL,,Ealing Council,http://opendatacommunities.org/id/london-borough-council/ealing,CHILDREN & ADULTS,1,EALING SERVICE FOR CHILDREN WITH ADDITIONAL NEEDS,DOMICILIARY CARE - BLOCK,4240,,10/10/2022,23227354,651,26027,SUPPORT DIRECT LIMITED
INSERTED DETAIL,,Ealing Council,http://opendatacommunities.org/id/london-borough-council/ealing,CHILDREN & ADULTS,1,EALING SERVICE FOR CHILDREN WITH ADDITIONAL NEEDS,DOMICILIARY CARE - BLOCK,4240,,10/10/2022,23227354,2016,26027,SUPPORT DIRECT LIMITED
INSERTED DETAIL,,Ealing Council,http://opendatacommunities.org/id/london-borough-council/ealing,CHILDREN & ADULTS,1,EALING SERVICE FOR CHILDREN WITH ADDITIONAL NEEDS,DOMICILIARY CARE - BLOCK,4240,,10/10/2022,23227354,349.8,26027,SUPPORT DIRECT LIMITED
INSERTED DETAIL,,Ealing Council,http://opendatacommunities.org/id/london-borough-council/ealing,CHILDREN & ADULTS,1,EALING SERVICE FOR CHILDREN WITH ADDITIONAL NEEDS,DOMICILIARY CARE - BLOCK,4240,,10/10/2022,23227354,480,26027,SUPPORT DIRECT LIMITED
INSERTED DETAIL,,Ealing Council,http://opendatacommunities.org/id/london-borough-council/ealing,CHILDREN & ADULTS,1,EALING SERVICE FOR CHILDREN WITH ADDITIONAL NEEDS,DOMICILIARY CARE - BLOCK,4240,,10/10/2022,23227348,291.84,24099,AVANT HEALTHCARE SERVICES LIMITED
INSERTED DETAIL,,Ealing Council,http://opendatacommunities.org/id/london-borough-council/ealing,CHILDREN & ADULTS,1,EALING SERVICE FOR CHILDREN WITH ADDITIONAL NEEDS,DOMICILIARY CARE - BLOCK,4240,,10/10/2022,23227348,505.92,24099,AVANT HEALTHCARE SERVICES LIMITED
INSERTED DETAIL,,Ealing Council,http://opendatacommunities.org/id/london-borough-council/ealing,CHILDREN & ADULTS,1,EALING SERVICE FOR CHILDREN WITH ADDITIONAL NEEDS,DOMICILIARY CARE - BLOCK,4240,,10/10/2022,23227348,267.04,24099,AVANT HEALTHCARE SERVICES LIMITED
INSERTED DETAIL,,Ealing Council,http://opendatacommunities.org/id/london-borough-council/ealing,CHILDREN & ADULTS,1,EALING SERVICE FOR CHILDREN WITH ADDITIONAL NEEDS,DOMICILIARY CARE - BLOCK,4240,,10/10/2022,23227348,934.64,24099,AVANT HEALTHCARE SERVICES LIMITED
INSERTED DETAIL,,Ealing Council,http://opendatacommunities.org/id/london-borough-council/ealing,CHILDREN & ADULTS,1,EALING SERVICE FOR CHILDREN WITH ADDITIONAL NEEDS,DOMICILIARY CARE - BLOCK,4240,,10/10/2022,23227348,701.12,24099,AVANT HEALTHCARE SERVICES LIMITED
INSERTED DETAIL,,Ealing Council,http://opendatacommunities.org/id/london-borough-council/ealing,CHILDREN & ADULTS,1,EALING SERVICE FOR CHILDREN WITH ADDITIONAL NEEDS,DOMICILIARY CARE - BLOCK,4240,,10/10/2022,23227348,807.6,24099,AVANT HEALTHCARE SERVICES LIMITED
INSERTED DETAIL,,Ealing Council,http://opendatacommunities.org/id/london-borough-council/ealing,CHILDREN & ADULTS,1,EALING SERVICE FOR CHILDREN WITH ADDITIONAL NEEDS,DOMICILIARY CARE - BLOCK,4240,,10/10/2022,23227348,341.12,24099,AVANT HEALTHCARE SERVICES LIMITED
INSERTED DETAIL,,Ealing Council,http://opendatacommunities.org/id/london-borough-council/ealing,CHILDREN & ADULTS,1,EALING SERVICE FOR CHILDREN WITH ADDITIONAL NEEDS,DOMICILIARY CARE - BLOCK,4240,,10/10/2022,23227348,936,24099,AVANT HEALTHCARE SERVICES LIMITED
INSERTED DETAIL,,Ealing Council,http://opendatacommunities.org/id/london-borough-council/ealing,CHILDREN & ADULTS,1,EALING SERVICE FOR CHILDREN WITH ADDITIONAL NEEDS,DOMICILIARY CARE - BLOCK,4240,,10/10/2022,23227348,452,24099,AVANT HEALTHCARE SERVICES LIMITED
INSERTED DETAIL,,Ealing Council,http://opendatacommunities.org/id/london-borough-council/ealing,CHILDREN & ADULTS,1,EALING SERVICE FOR CHILDREN WITH ADDITIONAL NEEDS,DOMICILIARY CARE - BLOCK,4240,,10/10/2022,23227348,333.8,24099,AVANT HEALTHCARE SERVICES LIMITED
INSERTED DETAIL,,Ealing Council,http://opendatacommunities.org/id/london-borough-council/ealing,CHILDREN & ADULTS,1,EALING SERVICE FOR CHILDREN WITH ADDITIONAL NEEDS,SOCIAL SERVICES DIRECT PAYMENTS,4231,,05/10/2022,23225210,405.56,80942,REDACTED SENSITIVE SUPPLIER
INSERTED DETAIL,,Ealing Council,http://opendatacommunities.org/id/london-borough-council/ealing,CHILDREN & ADULTS,1,EALING SERVICE FOR CHILDREN WITH ADDITIONAL NEEDS,SOCIAL SERVICES DIRECT PAYMENTS,4231,,05/10/2022,23225214,276.12,80943,REDACTED SENSITIVE SUPPLIER
INSERTED DETAIL,,Ealing Council,http://opendatacommunities.org/id/london-borough-council/ealing,CHILDREN & ADULTS,1,EALING SERVICE FOR CHILDREN WITH ADDITIONAL NEEDS,SOCIAL SERVICES DIRECT PAYMENTS,4231,,05/10/2022,23225209,490,80978,REDACTED SENSITIVE SUPPLIER
INSERTED DETAIL,,Ealing Council,http://opendatacommunities.org/id/london-borough-council/ealing,CHILDREN & ADULTS,1,EALING SERVICE FOR CHILDREN WITH ADDITIONAL NEEDS,RESIDENTIAL RESPITE,4667,,28/09/2022,41032420,50182.5,13676,ACTION FOR  CHILDREN SERVICES LTD
INSERTED DETAIL,,Ealing Council,http://opendatacommunities.org/id/london-borough-council/ealing,CHILDREN & ADULTS,1,EALING SERVICE FOR CHILDREN WITH ADDITIONAL NEEDS,DOMICILIARY CARE - BLOCK,4240,,10/10/2022,23227345,338.87,14755,OASIS CARE & TRAINING AGENCY (OCTA)
INSERTED DETAIL,,Ealing Council,http://opendatacommunities.org/id/london-borough-council/ealing,CHILDREN & ADULTS,1,EALING SERVICE FOR CHILDREN WITH ADDITIONAL NEEDS,DOMICILIARY CARE - BLOCK,4240,,10/10/2022,23227345,519.8,14755,OASIS CARE & TRAINING AGENCY (OCTA)
INSERTED DETAIL,,Ealing Council,http://opendatacommunities.org/id/london-borough-council/ealing,CHILDREN & ADULTS,1,EALING SERVICE FOR CHILDREN WITH ADDITIONAL NEEDS,DOMICILIARY CARE - BLOCK,4240,,10/10/2022,23227345,312,14755,OASIS CARE & TRAINING AGENCY (OCTA)
INSERTED DETAIL,,Ealing Council,http://opendatacommunities.org/id/london-borough-council/ealing,CHILDREN & ADULTS,1,EALING SERVICE FOR CHILDREN WITH ADDITIONAL NEEDS,DOMICILIARY CARE - BLOCK,4240,,10/10/2022,23227345,433.16,14755,OASIS CARE & TRAINING AGENCY (OCTA)
INSERTED DETAIL,,Ealing Council,http://opendatacommunities.org/id/london-borough-council/ealing,CHILDREN & ADULTS,1,EALING SERVICE FOR CHILDREN WITH ADDITIONAL NEEDS,DOMICILIARY CARE - BLOCK,4240,,10/10/2022,23227345,917,14755,OASIS CARE & TRAINING AGENCY (OCTA)
INSERTED DETAIL,,Ealing Council,http://opendatacommunities.org/id/london-borough-council/ealing,CHILDREN & ADULTS,1,SAFEGUARDING & SUPP - BS &A&F,PAYMENTS TO CONTRACTORS,4000,,31/08/2022,41030139,1381.8,11872,FAMILY ACTION LTD T/A PAC-UK
INSERTED DETAIL,,Ealing Council,http://opendatacommunities.org/id/london-borough-council/ealing,CHILDREN & ADULTS,1,SAFEGUARDING & SUPP - BS &A&F,PAYMENTS TO CONTRACTORS,4000,,15/03/2022,41032038,1620,11872,FAMILY ACTION LTD T/A PAC-UK
INSERTED DETAIL,,Ealing Council,http://opendatacommunities.org/id/london-borough-council/ealing,CHILDREN & ADULTS,1,SAFEGUARDING & SUPP - BS &A&F,PAYMENTS TO CONTRACTORS,4000,,18/03/2022,41032039,1073.04,11872,FAMILY ACTION LTD T/A PAC-UK
INSERTED DETAIL,,Ealing Council,http://opendatacommunities.org/id/london-borough-council/ealing,CHILDREN & ADULTS,1,SAFEGUARDING & SUPP - BS &A&F,PAYMENTS TO CONTRACTORS,4000,,14/09/2022,41030373,900,29369,HIRAETH SERVICES LTD T/A COPE COMMUNITY
INSERTED DETAIL,,Ealing Council,http://opendatacommunities.org/id/london-borough-council/ealing,CHILDREN & ADULTS,1,SAFEGUARDING & SUPP - BS &A&F,PAYMENTS TO CONTRACTORS,4000,,07/09/2022,41029801,400,28798,REDACTED SENSITIVE SUPPLIER
INSERTED DETAIL,,Ealing Council,http://opendatacommunities.org/id/london-borough-council/ealing,CHILDREN & ADULTS,1,SAFEGUARDING & SUPP - BS &A&F,PAYMENTS TO CONTRACTORS,4000,,07/09/2022,41029803,700,28798,REDACTED SENSITIVE SUPPLIER
INSERTED DETAIL,,Ealing Council,http://opendatacommunities.org/id/london-borough-council/ealing,CHILDREN & ADULTS,1,SAFEGUARDING & SUPP - BS &A&F,PAYMENTS TO CONTRACTORS,4000,,20/09/2022,41030781,1160,28995,REDACTED SENSITIVE SUPPLIER
INSERTED DETAIL,,Ealing Council,http://opendatacommunities.org/id/london-borough-council/ealing,CHILDREN & ADULTS,1,SAFEGUARDING & SUPP - BS &A&F,PAYMENTS TO CONTRACTORS,4000,,10/09/2022,41032496,280,29645,TMC PSYCHOLOGY LTD
INSERTED DETAIL,,Ealing Council,http://opendatacommunities.org/id/london-borough-council/ealing,CHILDREN & ADULTS,1,SAFEGUARDING & SUPP - BS &A&F,PAYMENTS TO CONTRACTORS,4000,,10/09/2022,41029921,490,29645,TMC PSYCHOLOGY LTD
INSERTED DETAIL,,Ealing Council,http://opendatacommunities.org/id/london-borough-council/ealing,CHILDREN & ADULTS,1,SAFEGUARDING & SUPP - BS &A&F,PAYMENTS TO CONTRACTORS,4000,,02/10/2022,41030477,620,28459,THE PARENT CHILD CLINIC
INSERTED DETAIL,,Ealing Council,http://opendatacommunities.org/id/london-borough-council/ealing,CHILDREN & ADULTS,1,SAFEGUARDING & SUPP - BS &A&F,PAYMENTS TO CONTRACTORS,4000,,02/10/2022,41030478,420,28459,THE PARENT CHILD CLINIC
INSERTED DETAIL,,Ealing Council,http://opendatacommunities.org/id/london-borough-council/ealing,CHILDREN & ADULTS,1,SAFEGUARDING & SUPP - BS &A&F,PAYMENTS TO CONTRACTORS,4000,,02/10/2022,41030479,280,28459,THE PARENT CHILD CLINIC
INSERTED DETAIL,,Ealing Council,http://opendatacommunities.org/id/london-borough-council/ealing,CHILDREN & ADULTS,1,SAFEGUARDING & SUPP - BS &A&F,PAYMENTS TO CONTRACTORS,4000,,30/09/2022,41032163,260,29558,CLAP AND TOOT LTD
INSERTED DETAIL,,Ealing Council,http://opendatacommunities.org/id/london-borough-council/ealing,CHILDREN & ADULTS,1,SAFEGUARDING & SUPP - BS &A&F,PAYMENTS TO CONTRACTORS,4000,,30/09/2022,41032165,390,29558,CLAP AND TOOT LTD
INSERTED DETAIL,,Ealing Council,http://opendatacommunities.org/id/london-borough-council/ealing,CHILDREN & ADULTS,1,SAFEGUARDING & SUPP - BS &A&F,PAYMENTS TO CONTRACTORS,4000,,30/09/2022,41032166,260,29558,CLAP AND TOOT LTD
INSERTED DETAIL,,Ealing Council,http://opendatacommunities.org/id/london-borough-council/ealing,CHILDREN & ADULTS,1,SAFEGUARDING & SUPP - BS &A&F,PAYMENTS TO CONTRACTORS,4000,,30/09/2022,41032167,325,29558,CLAP AND TOOT LTD
INSERTED DETAIL,,Ealing Council,http://opendatacommunities.org/id/london-borough-council/ealing,CHILDREN & ADULTS,1,SAFEGUARDING & SUPP - BS &A&F,PAYMENTS TO CONTRACTORS,4000,,22/09/2022,41029408,975,29862,CHROMA THERAPIES LTD T/A CHROMA
INSERTED DETAIL,,Ealing Council,http://opendatacommunities.org/id/london-borough-council/ealing,CHILDREN & ADULTS,1,SAFEGUARDING & SUPP - BS &A&F,PAYMENTS TO CONTRACTORS,4000,,01/09/2022,41029012,680,29262,REDACTED SENSITIVE SUPPLIER
INSERTED DETAIL,,Ealing Council,http://opendatacommunities.org/id/london-borough-council/ealing,CHILDREN & ADULTS,1,SAFEGUARDING & SUPP - BS &A&F,PAYMENTS TO CONTRACTORS,4000,,01/09/2022,41029013,350,29262,REDACTED SENSITIVE SUPPLIER
INSERTED DETAIL,,Ealing Council,http://opendatacommunities.org/id/london-borough-council/ealing,CHILDREN & ADULTS,1,SAFEGUARDING & SUPP - BS &A&F,PAYMENTS TO CONTRACTORS,4000,,01/09/2022,41029014,560,29262,REDACTED SENSITIVE SUPPLIER
INSERTED DETAIL,,Ealing Council,http://opendatacommunities.org/id/london-borough-council/ealing,CHILDREN & ADULTS,1,SAFEGUARDING & SUPP - BS &A&F,PAYMENTS TO CONTRACTORS,4000,,01/09/2022,41029016,420,29262,REDACTED SENSITIVE SUPPLIER
INSERTED DETAIL,,Ealing Council,http://opendatacommunities.org/id/london-borough-council/ealing,CHILDREN & ADULTS,1,SAFEGUARDING & SUPP - BS &A&F,PAYMENTS TO CONTRACTORS,4000,,03/10/2022,41031651,410,28815,THE PURPLE ELEPHANT PROJECT
INSERTED DETAIL,,Ealing Council,http://opendatacommunities.org/id/london-borough-council/ealing,CHILDREN & ADULTS,1,SAFEGUARDING & SUPP - BS &A&F,PAYMENTS TO CONTRACTORS,4000,,03/10/2022,41031654,420,28815,THE PURPLE ELEPHANT PROJECT
INSERTED DETAIL,,Ealing Council,http://opendatacommunities.org/id/london-borough-council/ealing,CHILDREN & ADULTS,1,SAFEGUARDING & SUPP - BS &A&F,PAYMENTS TO CONTRACTORS,4000,,03/10/2022,41031655,630,28815,THE PURPLE ELEPHANT PROJECT
INSERTED DETAIL,,Ealing Council,http://opendatacommunities.org/id/london-borough-council/ealing,CHILDREN & ADULTS,1,SAFEGUARDING & SUPP - BS &A&F,PAYMENTS TO CONTRACTORS,4000,,24/03/2022,41030484,695,28815,THE PURPLE ELEPHANT PROJECT
INSERTED DETAIL,,Ealing Council,http://opendatacommunities.org/id/london-borough-council/ealing,CHILDREN & ADULTS,1,SAFEGUARDING & SUPP - BS &A&F,PAYMENTS TO CONTRACTORS,4000,,30/06/2022,41030485,315,28815,THE PURPLE ELEPHANT PROJECT
INSERTED DETAIL,,Ealing Council,http://opendatacommunities.org/id/london-borough-council/ealing,CHILDREN & ADULTS,1,SAFEGUARDING & SUPP - BS &A&F,PAYMENTS TO CONTRACTORS,4000,,27/09/2022,41032136,475,29496,REDACTED SENSITIVE SUPPLIER
INSERTED DETAIL,,Ealing Council,http://opendatacommunities.org/id/london-borough-council/ealing,CHILDREN & ADULTS,1,BUSINESS MANAGEMENT,TRANSPORT (BRETS),2060,,30/09/2022,41033444,11109,11305,CRUISE MINIBUS LTD
INSERTED DETAIL,,Ealing Council,http://opendatacommunities.org/id/london-borough-council/ealing,CHILDREN & ADULTS,1,BUSINESS MANAGEMENT,TRANSPORT (BRETS),2060,,30/09/2022,41033004,23256.24,11591,EALING COMMUNITY TRANSPORT
INSERTED DETAIL,,Ealing Council,http://opendatacommunities.org/id/london-borough-council/ealing,CHILDREN & ADULTS,1,BUSINESS MANAGEMENT,TRANSPORT (BRETS),2060,,30/09/2022,41033025,17346,11591,EALING COMMUNITY TRANSPORT
INSERTED DETAIL,,Ealing Council,http://opendatacommunities.org/id/london-borough-council/ealing,CHILDREN & ADULTS,1,OLDER PEOPLE,VEHICLE HIRE,2010,,03/10/2022,41030712,278,28709,INTER-COUNTY AMBULANCE SERVICE LTD
INSERTED DETAIL,,Ealing Council,http://opendatacommunities.org/id/london-borough-council/ealing,CHILDREN & ADULTS,1,ADULT MENTAL HEALTH,SUPPORTED LIVING,4236,,13/10/2022,23228886,3024,28752,DYNASTY CARE SERVICES LTD
INSERTED DETAIL,,Ealing Council,http://opendatacommunities.org/id/london-borough-council/ealing,CHILDREN & ADULTS,1,ADULT MENTAL HEALTH,DOMICILIARY CARE - BLOCK,4240,,28/09/2022,23224359,682.08,29163,TENDA RECOVERY HEALTHCARE LTD C/O TENDA HANDS HOMECARE LTD
INSERTED DETAIL,,Ealing Council,http://opendatacommunities.org/id/london-borough-council/ealing,CHILDREN & ADULTS,1,DISABILITIES,SOCIAL SERVICES DIRECT PAYMENTS,4231,,04/10/2022,23224635,-2165.43,80128,REDACTED SENSITIVE SUPPLIER
INSERTED DETAIL,,Ealing Council,http://opendatacommunities.org/id/london-borough-council/ealing,CHILDREN & ADULTS,1,DISABILITIES,SOCIAL SERVICES DIRECT PAYMENTS,4231,,04/10/2022,23224654,2437.56,80341,REDACTED SENSITIVE SUPPLIER
INSERTED DETAIL,,Ealing Council,http://opendatacommunities.org/id/london-borough-council/ealing,CHILDREN & ADULTS,1,DISABILITIES,SOCIAL SERVICES DIRECT PAYMENTS,4231,,04/10/2022,23224654,311.76,80341,REDACTED SENSITIVE SUPPLIER
INSERTED DETAIL,,Ealing Council,http://opendatacommunities.org/id/london-borough-council/ealing,CHILDREN & ADULTS,1,DISABILITIES,SOCIAL SERVICES DIRECT PAYMENTS,4231,,04/10/2022,23224608,1472.96,80711,REDACTED SENSITIVE SUPPLIER
INSERTED DETAIL,,Ealing Council,http://opendatacommunities.org/id/london-borough-council/ealing,CHILDREN & ADULTS,1,DISABILITIES,SOCIAL SERVICES DIRECT PAYMENTS,4231,,04/10/2022,23224608,288,80711,REDACTED SENSITIVE SUPPLIER
INSERTED DETAIL,,Ealing Council,http://opendatacommunities.org/id/london-borough-council/ealing,CHILDREN & ADULTS,1,DISABILITIES,SOCIAL SERVICES DIRECT PAYMENTS,4231,,04/10/2022,23224641,649.6,80898,REDACTED SENSITIVE SUPPLIER
INSERTED DETAIL,,Ealing Council,http://opendatacommunities.org/id/london-borough-council/ealing,CHILDREN & ADULTS,1,DISABILITIES,RESIDENTIAL HOMES EXTERNAL,4220,,13/10/2022,23228835,4780,27923,WOODLARK WORKSHOP TRUST HOUSING ASS T/A THE WOODLARKS CENTRE
INSERTED DETAIL,,Ealing Council,http://opendatacommunities.org/id/london-borough-council/ealing,CHILDREN & ADULTS,1,DISABILITIES,RESIDENTIAL HOMES EXTERNAL,4220,,13/10/2022,23228845,5663.08,28008,REDACTED SENSITIVE SUPPLIER
INSERTED DETAIL,,Ealing Council,http://opendatacommunities.org/id/london-borough-council/ealing,CHILDREN & ADULTS,1,DISABILITIES,DOMICILIARY CARE - BLOCK,4240,,10/10/2022,23227364,896,28266,SOMCARE AGENCY LIMITED
INSERTED DETAIL,,Ealing Council,http://opendatacommunities.org/id/london-borough-council/ealing,CHILDREN & ADULTS,1,DISABILITIES,DOMICILIARY CARE - BLOCK,4240,,10/10/2022,23227364,2688,28266,SOMCARE AGENCY LIMITED
INSERTED DETAIL,,Ealing Council,http://opendatacommunities.org/id/london-borough-council/ealing,CHILDREN & ADULTS,1,DISABILITIES,DOMICILIARY CARE - BLOCK,4240,,10/10/2022,23227364,2100,28266,SOMCARE AGENCY LIMITED
INSERTED DETAIL,,Ealing Council,http://opendatacommunities.org/id/london-borough-council/ealing,CHILDREN & ADULTS,1,DISABILITIES,DOMICILIARY CARE - BLOCK,4240,,10/10/2022,23227364,1610,28266,SOMCARE AGENCY LIMITED
INSERTED DETAIL,,Ealing Council,http://opendatacommunities.org/id/london-borough-council/ealing,CHILDREN & ADULTS,1,DISABILITIES,DOMICILIARY CARE - BLOCK,4240,,10/10/2022,23227364,1260,28266,SOMCARE AGENCY LIMITED
INSERTED DETAIL,,Ealing Council,http://opendatacommunities.org/id/london-borough-council/ealing,CHILDREN & ADULTS,1,DISABILITIES,DOMICILIARY CARE - BLOCK,4240,,10/10/2022,23227364,945,28266,SOMCARE AGENCY LIMITED
INSERTED DETAIL,,Ealing Council,http://opendatacommunities.org/id/london-borough-council/ealing,CHILDREN & ADULTS,1,DISABILITIES,DOMICILIARY CARE - BLOCK,4240,,10/10/2022,23227364,1680,28266,SOMCARE AGENCY LIMITED
INSERTED DETAIL,,Ealing Council,http://opendatacommunities.org/id/london-borough-council/ealing,CHILDREN & ADULTS,1,DISABILITIES,RESIDENTIAL HOMES EXTERNAL,4220,,13/10/2022,23228856,600,28266,SOMCARE AGENCY LIMITED
INSERTED DETAIL,,Ealing Council,http://opendatacommunities.org/id/london-borough-council/ealing,CHILDREN & ADULTS,1,DISABILITIES,RESIDENTIAL HOMES EXTERNAL,4220,,13/10/2022,23228856,322.2,28266,SOMCARE AGENCY LIMITED
INSERTED DETAIL,,Ealing Council,http://opendatacommunities.org/id/london-borough-council/ealing,CHILDREN & ADULTS,1,DISABILITIES,RESIDENTIAL HOMES EXTERNAL,4220,,13/10/2022,23228869,7988,28573,NOVALIS TRUST R/C T/A CCS PARADISE HOUSE
INSERTED DETAIL,,Ealing Council,http://opendatacommunities.org/id/london-borough-council/ealing,CHILDREN & ADULTS,1,DISABILITIES,DOMICILIARY CARE - BLOCK,4240,,28/09/2022,23224369,1869.28,24099,AVANT HEALTHCARE SERVICES LIMITED
INSERTED DETAIL,,Ealing Council,http://opendatacommunities.org/id/london-borough-council/ealing,CHILDREN & ADULTS,1,DISABILITIES,DOMICILIARY CARE - BLOCK,4240,,28/09/2022,23224369,1134.92,24099,AVANT HEALTHCARE SERVICES LIMITED
INSERTED DETAIL,,Ealing Council,http://opendatacommunities.org/id/london-borough-council/ealing,CHILDREN & ADULTS,1,DISABILITIES,DAY CARE CENTRES,4250,,13/10/2022,23228747,1936.72,24665,ABILITIES DEVELOPEMENT LTD
INSERTED DETAIL,,Ealing Council,http://opendatacommunities.org/id/london-borough-council/ealing,CHILDREN & ADULTS,1,DISABILITIES,DAY CARE CENTRES,4250,,13/10/2022,23228747,1549.36,24665,ABILITIES DEVELOPEMENT LTD
INSERTED DETAIL,,Ealing Council,http://opendatacommunities.org/id/london-borough-council/ealing,CHILDREN & ADULTS,1,DISABILITIES,RESIDENTIAL HOMES EXTERNAL,4220,,13/10/2022,23228693,6574.4,14781,SOUTHDOWN HOUSING ASSOC LTD
INSERTED DETAIL,,Ealing Council,http://opendatacommunities.org/id/london-borough-council/ealing,CHILDREN & ADULTS,1,DISABILITIES,RESIDENTIAL HOMES EXTERNAL-INCOME,8780,,13/10/2022,23228693,-350.2,14781,SOUTHDOWN HOUSING ASSOC LTD
INSERTED DETAIL,,Ealing Council,http://opendatacommunities.org/id/london-borough-council/ealing,CHILDREN & ADULTS,1,DISABILITIES,RESIDENTIAL HOMES EXTERNAL,4220,,13/10/2022,23228696,1320,20622,INDEPENDENT LIVING ALTERNATIVES
INSERTED DETAIL,,Ealing Council,http://opendatacommunities.org/id/london-borough-council/ealing,CHILDREN & ADULTS,1,DISABILITIES,DOMICILIARY CARE - BLOCK,4240,,30/09/2022,23225238,5160,25009,ELEADA LIMITED
INSERTED DETAIL,,Ealing Council,http://opendatacommunities.org/id/london-borough-council/ealing,CHILDREN & ADULTS,1,DISABILITIES,DOMICILIARY CARE - BLOCK,4240,,30/09/2022,23225238,4200,25009,ELEADA LIMITED
INSERTED DETAIL,,Ealing Council,http://opendatacommunities.org/id/london-borough-council/ealing,CHILDREN & ADULTS,1,DISABILITIES,DOMICILIARY CARE - BLOCK,4240,,30/09/2022,23225238,1470,25009,ELEADA LIMITED
INSERTED DETAIL,,Ealing Council,http://opendatacommunities.org/id/london-borough-council/ealing,CHILDREN & ADULTS,1,DISABILITIES,RESIDENTIAL HOMES EXTERNAL,4220,,01/05/2022,23225230,6455.44,25288,HONEYBOURNE HOUSE LTD
INSERTED DETAIL,,Ealing Council,http://opendatacommunities.org/id/london-borough-council/ealing,CHILDREN & ADULTS,1,DISABILITIES,RESIDENTIAL HOMES EXTERNAL,4220,,01/10/2022,23237382,6810.48,25288,HONEYBOURNE HOUSE LTD
INSERTED DETAIL,,Ealing Council,http://opendatacommunities.org/id/london-borough-council/ealing,CHILDREN & ADULTS,1,DISABILITIES,SUPPORTED LIVING,4236,,13/10/2022,23228762,3978.24,25842,THE LANTERN COMMUNITY
INSERTED DETAIL,,Ealing Council,http://opendatacommunities.org/id/london-borough-council/ealing,CHILDREN & ADULTS,1,DISABILITIES,RESIDENTIAL HOMES EXTERNAL,4220,,13/10/2022,23228767,10193.6,26015,GREEN LIGHT PBS LTD
INSERTED DETAIL,,Ealing Council,http://opendatacommunities.org/id/london-borough-council/ealing,CHILDREN & ADULTS,1,DISABILITIES,RESIDENTIAL HOMES EXTERNAL,4220,,13/10/2022,23228804,1573.2,27070,YOUTH ENGAGEMENT PROGRAMME CIC
INSERTED DETAIL,,Ealing Council,http://opendatacommunities.org/id/london-borough-council/ealing,CHILDREN & ADULTS,1,DISABILITIES,RESIDENTIAL HOMES EXTERNAL,4220,,13/10/2022,23228804,1828.2,27070,YOUTH ENGAGEMENT PROGRAMME CIC
INSERTED DETAIL,,Ealing Council,http://opendatacommunities.org/id/london-borough-council/ealing,CHILDREN & ADULTS,1,DISABILITIES,RESIDENTIAL HOMES EXTERNAL,4220,,13/10/2022,23228804,2185,27070,YOUTH ENGAGEMENT PROGRAMME CIC
INSERTED DETAIL,,Ealing Council,http://opendatacommunities.org/id/london-borough-council/ealing,CHILDREN & ADULTS,1,DISABILITIES,RESIDENTIAL HOMES EXTERNAL,4220,,13/10/2022,23228804,349.6,27070,YOUTH ENGAGEMENT PROGRAMME CIC
INSERTED DETAIL,,Ealing Council,http://opendatacommunities.org/id/london-borough-council/ealing,CHILDREN & ADULTS,1,DISABILITIES,RESIDENTIAL HOMES EXTERNAL,4220,,13/10/2022,23228804,616.8,27070,YOUTH ENGAGEMENT PROGRAMME CIC
INSERTED DETAIL,,Ealing Council,http://opendatacommunities.org/id/london-borough-council/ealing,CHILDREN & ADULTS,1,DISABILITIES,RESIDENTIAL HOMES EXTERNAL,4220,,13/10/2022,23228804,1311,27070,YOUTH ENGAGEMENT PROGRAMME CIC
INSERTED DETAIL,,Ealing Council,http://opendatacommunities.org/id/london-borough-council/ealing,CHILDREN & ADULTS,1,DISABILITIES,RESIDENTIAL HOMES EXTERNAL,4220,,13/10/2022,23228804,2447.2,27070,YOUTH ENGAGEMENT PROGRAMME CIC
INSERTED DETAIL,,Ealing Council,http://opendatacommunities.org/id/london-borough-council/ealing,CHILDREN & ADULTS,1,DISABILITIES,RESIDENTIAL HOMES EXTERNAL,4220,,13/10/2022,23228804,3059,27070,YOUTH ENGAGEMENT PROGRAMME CIC
INSERTED DETAIL,,Ealing Council,http://opendatacommunities.org/id/london-borough-council/ealing,CHILDREN & ADULTS,1,DISABILITIES,RESIDENTIAL HOMES EXTERNAL,4220,,13/10/2022,23228804,3059,27070,YOUTH ENGAGEMENT PROGRAMME CIC
INSERTED DETAIL,,Ealing Council,http://opendatacommunities.org/id/london-borough-council/ealing,CHILDREN & ADULTS,1,DISABILITIES,RESIDENTIAL HOMES EXTERNAL,4220,,13/10/2022,23228804,874,27070,YOUTH ENGAGEMENT PROGRAMME CIC
INSERTED DETAIL,,Ealing Council,http://opendatacommunities.org/id/london-borough-council/ealing,CHILDREN & ADULTS,1,DISABILITIES,RESIDENTIAL HOMES EXTERNAL,4220,,13/10/2022,23228804,524.4,27070,YOUTH ENGAGEMENT PROGRAMME CIC
INSERTED DETAIL,,Ealing Council,http://opendatacommunities.org/id/london-borough-council/ealing,CHILDREN & ADULTS,1,DISABILITIES,RESIDENTIAL HOMES EXTERNAL,4220,,13/10/2022,23228804,1835.4,27070,YOUTH ENGAGEMENT PROGRAMME CIC
INSERTED DETAIL,,Ealing Council,http://opendatacommunities.org/id/london-borough-council/ealing,CHILDREN & ADULTS,1,DISABILITIES,RESIDENTIAL HOMES EXTERNAL,4220,,13/10/2022,23228804,1376.55,27070,YOUTH ENGAGEMENT PROGRAMME CIC
INSERTED DETAIL,,Ealing Council,http://opendatacommunities.org/id/london-borough-council/ealing,CHILDREN & ADULTS,1,DISABILITIES,RESIDENTIAL HOMES EXTERNAL,4220,,13/10/2022,23228804,305.92,27070,YOUTH ENGAGEMENT PROGRAMME CIC
INSERTED DETAIL,,Ealing Council,http://opendatacommunities.org/id/london-borough-council/ealing,CHILDREN & ADULTS,1,DISABILITIES,RESIDENTIAL HOMES EXTERNAL,4220,,13/10/2022,23228804,1223.6,27070,YOUTH ENGAGEMENT PROGRAMME CIC
INSERTED DETAIL,,Ealing Council,http://opendatacommunities.org/id/london-borough-council/ealing,CHILDREN & ADULTS,1,DISABILITIES,RESIDENTIAL HOMES EXTERNAL,4220,,13/10/2022,23228945,9408,27307,NEW HORIZON CARE HOME
INSERTED DETAIL,,Ealing Council,http://opendatacommunities.org/id/london-borough-council/ealing,CHILDREN & ADULTS,1,DISABILITIES,SUPPORTED LIVING,4236,,13/10/2022,23228945,4374,27307,NEW HORIZON CARE HOME
INSERTED DETAIL,,Ealing Council,http://opendatacommunities.org/id/london-borough-council/ealing,CHILDREN & ADULTS,1,DISABILITIES,DAY CARE CENTRES,4250,,11/09/2022,23225049,870.56,27741,SALUTEM LD BIDCO IV LTD T/A AMBITO CARE AND EDUCATION
INSERTED DETAIL,,Ealing Council,http://opendatacommunities.org/id/london-borough-council/ealing,CHILDREN & ADULTS,1,DISABILITIES,DOMICILIARY CARE - BLOCK,4240,,27/09/2022,23224362,1680,27926,INFINITY CARE SERVICES LIMITED
INSERTED DETAIL,,Ealing Council,http://opendatacommunities.org/id/london-borough-council/ealing,CHILDREN & ADULTS,1,DISABILITIES,DOMICILIARY CARE - BLOCK,4240,,27/09/2022,23224362,690,27926,INFINITY CARE SERVICES LIMITED
INSERTED DETAIL,,Ealing Council,http://opendatacommunities.org/id/london-borough-council/ealing,CHILDREN & ADULTS,1,DISABILITIES,DOMICILIARY CARE - BLOCK,4240,,27/09/2022,23224362,1200,27926,INFINITY CARE SERVICES LIMITED
INSERTED DETAIL,,Ealing Council,http://opendatacommunities.org/id/london-borough-council/ealing,CHILDREN & ADULTS,1,DISABILITIES,RESIDENTIAL HOMES EXTERNAL,4220,,13/10/2022,23228849,3240,28091,MATTHEW RESIDENTIAL CARE LTD
INSERTED DETAIL,,Ealing Council,http://opendatacommunities.org/id/london-borough-council/ealing,CHILDREN & ADULTS,1,DISABILITIES,RESIDENTIAL HOMES EXTERNAL,4220,,13/10/2022,23228849,16128,28091,MATTHEW RESIDENTIAL CARE LTD
INSERTED DETAIL,,Ealing Council,http://opendatacommunities.org/id/london-borough-council/ealing,CHILDREN & ADULTS,1,DISABILITIES,RESIDENTIAL HOMES EXTERNAL,4220,,13/10/2022,23228851,1008,28131,REDACTED SENSITIVE SUPPLIER
INSERTED DETAIL,,Ealing Council,http://opendatacommunities.org/id/london-borough-council/ealing,CHILDREN & ADULTS,1,DISABILITIES,DOMICILIARY CARE - BLOCK,4240,,04/10/2022,23226695,1232,28344,TRUE QUALITY SERVICES LTD
INSERTED DETAIL,,Ealing Council,http://opendatacommunities.org/id/london-borough-council/ealing,CHILDREN & ADULTS,1,DISABILITIES,DOMICILIARY CARE - BLOCK,4240,,04/10/2022,23226695,1260,28344,TRUE QUALITY SERVICES LTD
INSERTED DETAIL,,Ealing Council,http://opendatacommunities.org/id/london-borough-council/ealing,CHILDREN & ADULTS,1,DISABILITIES,DOMICILIARY CARE - BLOCK,4240,,04/10/2022,23226695,3360,28344,TRUE QUALITY SERVICES LTD
INSERTED DETAIL,,Ealing Council,http://opendatacommunities.org/id/london-borough-council/ealing,CHILDREN & ADULTS,1,DISABILITIES,DOMICILIARY CARE - BLOCK,4240,,04/10/2022,23226695,1680,28344,TRUE QUALITY SERVICES LTD
INSERTED DETAIL,,Ealing Council,http://opendatacommunities.org/id/london-borough-council/ealing,CHILDREN & ADULTS,1,DISABILITIES,DOMICILIARY CARE - BLOCK,4240,,04/10/2022,23226695,1260,28344,TRUE QUALITY SERVICES LTD
INSERTED DETAIL,,Ealing Council,http://opendatacommunities.org/id/london-borough-council/ealing,CHILDREN & ADULTS,1,DISABILITIES,NURSING HOMES EXTERNAL,4230,,13/10/2022,23228640,5941.6,28600,BONDCARE (LONDON) LTD THE GRANGE CARE CENTRE
INSERTED DETAIL,,Ealing Council,http://opendatacommunities.org/id/london-borough-council/ealing,CHILDREN & ADULTS,1,DISABILITIES,NURSING HOMES EXTERNAL,4230,,13/10/2022,23228640,2781.68,28600,BONDCARE (LONDON) LTD THE GRANGE CARE CENTRE
INSERTED DETAIL,,Ealing Council,http://opendatacommunities.org/id/london-borough-council/ealing,CHILDREN & ADULTS,1,DISABILITIES,RESIDENTIAL HOMES EXTERNAL,4220,,13/10/2022,23228880,1276,28727,AKM CARE
INSERTED DETAIL,,Ealing Council,http://opendatacommunities.org/id/london-borough-council/ealing,CHILDREN & ADULTS,1,DISABILITIES,RESIDENTIAL HOMES EXTERNAL,4220,,13/10/2022,23228880,1785.71,28727,AKM CARE
INSERTED DETAIL,,Ealing Council,http://opendatacommunities.org/id/london-borough-council/ealing,CHILDREN & ADULTS,1,OLDER PEOPLE,DOMICILIARY CARE - BLOCK,4240,,04/10/2022,23226692,735,27219,THAMES HOMECARE SERVICE LTD
INSERTED DETAIL,,Ealing Council,http://opendatacommunities.org/id/london-borough-council/ealing,CHILDREN & ADULTS,1,OLDER PEOPLE,DOMICILIARY CARE - BLOCK,4240,,04/10/2022,23226692,725.2,27219,THAMES HOMECARE SERVICE LTD
INSERTED DETAIL,,Ealing Council,http://opendatacommunities.org/id/london-borough-council/ealing,CHILDREN & ADULTS,1,OLDER PEOPLE,DOMICILIARY CARE - BLOCK,4240,,04/10/2022,23226692,675,27219,THAMES HOMECARE SERVICE LTD
INSERTED DETAIL,,Ealing Council,http://opendatacommunities.org/id/london-borough-council/ealing,CHILDREN & ADULTS,1,OLDER PEOPLE,DOMICILIARY CARE - BLOCK,4240,,04/10/2022,23226692,319.2,27219,THAMES HOMECARE SERVICE LTD
INSERTED DETAIL,,Ealing Council,http://opendatacommunities.org/id/london-borough-council/ealing,CHILDREN & ADULTS,1,OLDER PEOPLE,EMI NURSING,4237,,13/10/2022,23228607,2758.6,27687,HC-ONE OVAL LTD
INSERTED DETAIL,,Ealing Council,http://opendatacommunities.org/id/london-borough-council/ealing,CHILDREN & ADULTS,1,OLDER PEOPLE,EMI NURSING,4237,,13/10/2022,23228607,2970.8,27687,HC-ONE OVAL LTD
INSERTED DETAIL,,Ealing Council,http://opendatacommunities.org/id/london-borough-council/ealing,CHILDREN & ADULTS,1,OLDER PEOPLE,EMI NURSING,4237,,13/10/2022,23228822,2951.6,27687,HC-ONE OVAL LTD
INSERTED DETAIL,,Ealing Council,http://opendatacommunities.org/id/london-borough-council/ealing,CHILDREN & ADULTS,1,OLDER PEOPLE,DOMICILIARY CARE - BLOCK,4240,,29/09/2022,23224373,634.2,19913,LONDON CARE LTD
INSERTED DETAIL,,Ealing Council,http://opendatacommunities.org/id/london-borough-council/ealing,CHILDREN & ADULTS,1,OLDER PEOPLE,DOMICILIARY CARE - BLOCK,4240,,29/09/2022,23224373,1041.73,19913,LONDON CARE LTD
INSERTED DETAIL,,Ealing Council,http://opendatacommunities.org/id/london-borough-council/ealing,CHILDREN & ADULTS,1,OLDER PEOPLE,DOMICILIARY CARE - BLOCK,4240,,29/09/2022,23224373,269.79,19913,LONDON CARE LTD
INSERTED DETAIL,,Ealing Council,http://opendatacommunities.org/id/london-borough-council/ealing,CHILDREN & ADULTS,1,OLDER PEOPLE,DOMICILIARY CARE - BLOCK,4240,,29/09/2022,23224373,408.96,19913,LONDON CARE LTD
INSERTED DETAIL,,Ealing Council,http://opendatacommunities.org/id/london-borough-council/ealing,CHILDREN & ADULTS,1,OLDER PEOPLE,DOMICILIARY CARE - BLOCK,4240,,29/09/2022,23224373,310.8,19913,LONDON CARE LTD
INSERTED DETAIL,,Ealing Council,http://opendatacommunities.org/id/london-borough-council/ealing,CHILDREN & ADULTS,1,OLDER PEOPLE,DOMICILIARY CARE - BLOCK,4240,,04/10/2022,23226698,533.96,23111,ELEANOR NURSING & SOCIAL CARE LTD
INSERTED DETAIL,,Ealing Council,http://opendatacommunities.org/id/london-borough-council/ealing,CHILDREN & ADULTS,1,OLDER PEOPLE,DOMICILIARY CARE - BLOCK,4240,,04/10/2022,23226691,820.8,19668,MNA HOME CARE SERVICES LTD
INSERTED DETAIL,,Ealing Council,http://opendatacommunities.org/id/london-borough-council/ealing,CHILDREN & ADULTS,1,OLDER PEOPLE,DOMICILIARY CARE - BLOCK,4240,,04/10/2022,23226691,319.2,19668,MNA HOME CARE SERVICES LTD
INSERTED DETAIL,,Ealing Council,http://opendatacommunities.org/id/london-borough-council/ealing,CHILDREN & ADULTS,1,OLDER PEOPLE,DOMICILIARY CARE - BLOCK,4240,,04/10/2022,23226691,425.6,19668,MNA HOME CARE SERVICES LTD
INSERTED DETAIL,,Ealing Council,http://opendatacommunities.org/id/london-borough-council/ealing,CHILDREN & ADULTS,1,OLDER PEOPLE,DOMICILIARY CARE - BLOCK,4240,,04/10/2022,23226691,957.6,19668,MNA HOME CARE SERVICES LTD
INSERTED DETAIL,,Ealing Council,http://opendatacommunities.org/id/london-borough-council/ealing,CHILDREN & ADULTS,1,OLDER PEOPLE,DOMICILIARY CARE - BLOCK,4240,,04/10/2022,23226691,456.5,19668,MNA HOME CARE SERVICES LTD
INSERTED DETAIL,,Ealing Council,http://opendatacommunities.org/id/london-borough-council/ealing,CHILDREN & ADULTS,1,OLDER PEOPLE,DOMICILIARY CARE - BLOCK,4240,,04/10/2022,23226691,295.2,19668,MNA HOME CARE SERVICES LTD
INSERTED DETAIL,,Ealing Council,http://opendatacommunities.org/id/london-borough-council/ealing,CHILDREN & ADULTS,1,OLDER PEOPLE,DOMICILIARY CARE - BLOCK,4240,,04/10/2022,23226691,1915.2,19668,MNA HOME CARE SERVICES LTD
INSERTED DETAIL,,Ealing Council,http://opendatacommunities.org/id/london-borough-council/ealing,CHILDREN & ADULTS,1,OLDER PEOPLE,DOMICILIARY CARE - BLOCK,4240,,04/10/2022,23226691,319.2,19668,MNA HOME CARE SERVICES LTD
INSERTED DETAIL,,Ealing Council,http://opendatacommunities.org/id/london-borough-council/ealing,CHILDREN & ADULTS,1,OLDER PEOPLE,DOMICILIARY CARE - BLOCK,4240,,04/10/2022,23226691,450,19668,MNA HOME CARE SERVICES LTD
INSERTED DETAIL,,Ealing Council,http://opendatacommunities.org/id/london-borough-council/ealing,CHILDREN & ADULTS,1,OLDER PEOPLE,DOMICILIARY CARE - BLOCK,4240,,04/10/2022,23226691,315,19668,MNA HOME CARE SERVICES LTD
INSERTED DETAIL,,Ealing Council,http://opendatacommunities.org/id/london-borough-council/ealing,CHILDREN & ADULTS,1,OLDER PEOPLE,DOMICILIARY CARE - BLOCK,4240,,04/10/2022,23226691,630,19668,MNA HOME CARE SERVICES LTD
INSERTED DETAIL,,Ealing Council,http://opendatacommunities.org/id/london-borough-council/ealing,CHILDREN & ADULTS,1,OLDER PEOPLE,DOMICILIARY CARE - BLOCK,4240,,04/10/2022,23226691,1995,19668,MNA HOME CARE SERVICES LTD
INSERTED DETAIL,,Ealing Council,http://opendatacommunities.org/id/london-borough-council/ealing,CHILDREN & ADULTS,1,OLDER PEOPLE,DOMICILIARY CARE - BLOCK,4240,,04/10/2022,23226691,1383.2,19668,MNA HOME CARE SERVICES LTD
INSERTED DETAIL,,Ealing Council,http://opendatacommunities.org/id/london-borough-council/ealing,CHILDREN & ADULTS,1,OLDER PEOPLE,DOMICILIARY CARE - BLOCK,4240,,04/10/2022,23226691,315,19668,MNA HOME CARE SERVICES LTD
INSERTED DETAIL,,Ealing Council,http://opendatacommunities.org/id/london-borough-council/ealing,CHILDREN & ADULTS,1,OLDER PEOPLE,DOMICILIARY CARE - BLOCK,4240,,04/10/2022,23226691,328,19668,MNA HOME CARE SERVICES LTD
INSERTED DETAIL,,Ealing Council,http://opendatacommunities.org/id/london-borough-council/ealing,CHILDREN & ADULTS,1,OLDER PEOPLE,DOMICILIARY CARE - BLOCK,4240,,04/10/2022,23226691,680.6,19668,MNA HOME CARE SERVICES LTD
INSERTED DETAIL,,Ealing Council,http://opendatacommunities.org/id/london-borough-council/ealing,CHILDREN & ADULTS,1,OLDER PEOPLE,DOMICILIARY CARE - BLOCK,4240,,04/10/2022,23226691,418,19668,MNA HOME CARE SERVICES LTD
INSERTED DETAIL,,Ealing Council,http://opendatacommunities.org/id/london-borough-council/ealing,CHILDREN & ADULTS,1,OLDER PEOPLE,DOMICILIARY CARE - BLOCK,4240,,04/10/2022,23226691,1976,19668,MNA HOME CARE SERVICES LTD
INSERTED DETAIL,,Ealing Council,http://opendatacommunities.org/id/london-borough-council/ealing,CHILDREN & ADULTS,1,OLDER PEOPLE,DOMICILIARY CARE - BLOCK,4240,,04/10/2022,23226691,3960,19668,MNA HOME CARE SERVICES LTD
INSERTED DETAIL,,Ealing Council,http://opendatacommunities.org/id/london-borough-council/ealing,CHILDREN & ADULTS,1,OLDER PEOPLE,DOMICILIARY CARE - BLOCK,4240,,04/10/2022,23226691,840,19668,MNA HOME CARE SERVICES LTD
INSERTED DETAIL,,Ealing Council,http://opendatacommunities.org/id/london-borough-council/ealing,CHILDREN & ADULTS,1,OLDER PEOPLE,DOMICILIARY CARE - BLOCK,4240,,04/10/2022,23226691,525,19668,MNA HOME CARE SERVICES LTD
INSERTED DETAIL,,Ealing Council,http://opendatacommunities.org/id/london-borough-council/ealing,CHILDREN & ADULTS,1,OLDER PEOPLE,DOMICILIARY CARE - BLOCK,4240,,04/10/2022,23226691,1915.2,19668,MNA HOME CARE SERVICES LTD
INSERTED DETAIL,,Ealing Council,http://opendatacommunities.org/id/london-borough-council/ealing,CHILDREN & ADULTS,1,OLDER PEOPLE,DOMICILIARY CARE - BLOCK,4240,,04/10/2022,23226691,1890,19668,MNA HOME CARE SERVICES LTD
INSERTED DETAIL,,Ealing Council,http://opendatacommunities.org/id/london-borough-council/ealing,CHILDREN & ADULTS,1,SAFEGUARDING & SUPPORT - CIC,CHILDRENS SERVICES -ELIGIBLE CHILDREN ACCOMMODATIO,4281,,10/10/2022,23227304,1821.43,29141,WYF VENTURES LTD T/A TOTAL CARE
INSERTED DETAIL,,Ealing Council,http://opendatacommunities.org/id/london-borough-council/ealing,CHILDREN & ADULTS,1,SAFEGUARDING & SUPPORT - CIC,CHILDRENS SERVICES -ELIGIBLE CHILDREN ACCOMMODATIO,4281,,10/10/2022,23227311,535.72,29141,WYF VENTURES LTD T/A TOTAL CARE
INSERTED DETAIL,,Ealing Council,http://opendatacommunities.org/id/london-borough-council/ealing,CHILDREN & ADULTS,1,SAFEGUARDING & SUPPORT - CIC,CHILDRENS SERVICES -ELIGIBLE CHILDREN ACCOMMODATIO,4281,,10/10/2022,23227311,1821.43,29141,WYF VENTURES LTD T/A TOTAL CARE
INSERTED DETAIL,,Ealing Council,http://opendatacommunities.org/id/london-borough-council/ealing,CHILDREN & ADULTS,1,SAFEGUARDING & SUPPORT - CIC,CHILDRENS SERVICES -ELIGIBLE CHILDREN ACCOMMODATIO,4281,,10/10/2022,23227331,2142.85,29673,GROWHAUS LTD
INSERTED DETAIL,,Ealing Council,http://opendatacommunities.org/id/london-borough-council/ealing,CHILDREN & ADULTS,1,SAFEGUARDING & SUPPORT - CIC,CHILDRENS SERVICES -ELIGIBLE CHILDREN ACCOMMODATIO,4281,,10/10/2022,23227331,428.57,29673,GROWHAUS LTD
INSERTED DETAIL,,Ealing Council,http://opendatacommunities.org/id/london-borough-council/ealing,CHILDREN & ADULTS,1,SAFEGUARDING & SUPPORT - CIC,CHILDRENS SERVICES -ELIGIBLE CHILDREN ACCOMMODATIO,4281,,10/10/2022,23227331,-986.32,29673,GROWHAUS LTD
INSERTED DETAIL,,Ealing Council,http://opendatacommunities.org/id/london-borough-council/ealing,CHILDREN & ADULTS,1,SAFEGUARDING & SUPPORT - CIC,CHILDRENS SERVICES -ELIGIBLE CHILDREN OTHER COSTS,4282,,05/10/2022,23225200,2166.66,200512,REDACTED SENSITIVE SUPPLIER
INSERTED DETAIL,,Ealing Council,http://opendatacommunities.org/id/london-borough-council/ealing,CHILDREN & ADULTS,1,SAFEGUARDING & SUPPORT - CIC,CHILDRENS SERVICES -ELIGIBLE CHILDREN ACCOMMODATIO,4281,,11/10/2022,23227627,269.95,200671,REDACTED SENSITIVE SUPPLIER
INSERTED DETAIL,,Ealing Council,http://opendatacommunities.org/id/london-borough-council/ealing,CHILDREN & ADULTS,1,SAFEGUARDING & SUPPORT - CIC,CHILDRENS SERVICES -ELIGIBLE CHILDREN ACCOMMODATIO,4281,,04/10/2022,23224936,269.95,200671,REDACTED SENSITIVE SUPPLIER
INSERTED DETAIL,,Ealing Council,http://opendatacommunities.org/id/london-borough-council/ealing,CHILDREN & ADULTS,1,SAFEGUARDING & SUPPORT - CIC,CHILDRENS SERVICES -ELIGIBLE CHILDREN ACCOMMODATIO,4281,,18/10/2022,23229754,269.95,200671,REDACTED SENSITIVE SUPPLIER
INSERTED DETAIL,,Ealing Council,http://opendatacommunities.org/id/london-borough-council/ealing,CHILDREN & ADULTS,1,SAFEGUARDING & SUPPORT - CIC,CHILDRENS SERVICES -ELIGIBLE CHILDREN ACCOMMODATIO,4281,,25/10/2022,23237263,269.95,200671,REDACTED SENSITIVE SUPPLIER
INSERTED DETAIL,,Ealing Council,http://opendatacommunities.org/id/london-borough-council/ealing,CHILDREN & ADULTS,1,SAFEGUARDING & SUPPORT - CIC,CHILDRENS SERVICES -ELIGIBLE CHILDREN OTHER COSTS,4282,,11/10/2022,23227417,3973,200673,REDACTED SENSITIVE SUPPLIER
INSERTED DETAIL,,Ealing Council,http://opendatacommunities.org/id/london-borough-council/ealing,CHILDREN & ADULTS,1,SAFEGUARDING & SUPPORT - CIC,CHILDRENS SERVICES -ELIGIBLE CHILDREN OTHER COSTS,4282,,19/10/2022,23229873,2000,200858,REDACTED SENSITIVE SUPPLIER
INSERTED DETAIL,,Ealing Council,http://opendatacommunities.org/id/london-borough-council/ealing,CHILDREN & ADULTS,1,SAFEGUARDING & SUPPORT - CIC,CHILDRENS SERVICES -ELIGIBLE CHILDREN OTHER COSTS,4282,,19/10/2022,23229875,1000,200974,REDACTED SENSITIVE SUPPLIER
INSERTED DETAIL,,Ealing Council,http://opendatacommunities.org/id/london-borough-council/ealing,CHILDREN & ADULTS,1,SAFEGUARDING & SUPPORT - CIC,CHILDRENS SERVICES -ELIGIBLE CHILDREN OTHER COSTS,4282,,25/10/2022,23237173,458.33,201019,REDACTED SENSITIVE SUPPLIER
INSERTED DETAIL,,Ealing Council,http://opendatacommunities.org/id/london-borough-council/ealing,CHILDREN & ADULTS,1,SAFEGUARDING & SUPPORT - CIC,CHILDRENS SERVICES -ELIGIBLE CHILDREN OTHER COSTS,4282,,04/10/2022,23224849,458.33,201019,REDACTED SENSITIVE SUPPLIER
INSERTED DETAIL,,Ealing Council,http://opendatacommunities.org/id/london-borough-council/ealing,CHILDREN & ADULTS,1,SAFEGUARDING & SUPPORT - CIC,CHILDRENS SERVICES -ELIGIBLE CHILDREN ACCOMMODATIO,4281,,18/10/2022,23229702,269.95,200448,REDACTED SENSITIVE SUPPLIER
INSERTED DETAIL,,Ealing Council,http://opendatacommunities.org/id/london-borough-council/ealing,CHILDREN & ADULTS,1,SAFEGUARDING & SUPPORT - CIC,CHILDRENS SERVICES -ELIGIBLE CHILDREN ACCOMMODATIO,4281,,25/10/2022,23237207,269.95,200448,REDACTED SENSITIVE SUPPLIER
INSERTED DETAIL,,Ealing Council,http://opendatacommunities.org/id/london-borough-council/ealing,CHILDREN & ADULTS,1,SAFEGUARDING & SUPPORT - CIC,CHILDRENS SERVICES -ELIGIBLE CHILDREN ACCOMMODATIO,4281,,25/10/2022,23237230,269.95,200634,REDACTED SENSITIVE SUPPLIER
INSERTED DETAIL,,Ealing Council,http://opendatacommunities.org/id/london-borough-council/ealing,CHILDREN & ADULTS,1,SAFEGUARDING & SUPPORT - CIC,CHILDRENS SERVICES -ELIGIBLE CHILDREN ACCOMMODATIO,4281,,18/10/2022,23229724,269.95,200634,REDACTED SENSITIVE SUPPLIER
INSERTED DETAIL,,Ealing Council,http://opendatacommunities.org/id/london-borough-council/ealing,CHILDREN & ADULTS,1,SAFEGUARDING & SUPPORT - CIC,CHILDRENS SERVICES -ELIGIBLE CHILDREN ACCOMMODATIO,4281,,11/10/2022,23227595,269.95,200634,REDACTED SENSITIVE SUPPLIER
INSERTED DETAIL,,Ealing Council,http://opendatacommunities.org/id/london-borough-council/ealing,CHILDREN & ADULTS,1,SAFEGUARDING & SUPPORT - CIC,CHILDRENS SERVICES -ELIGIBLE CHILDREN ACCOMMODATIO,4281,,05/10/2022,23225202,655.6,200634,REDACTED SENSITIVE SUPPLIER
INSERTED DETAIL,,Ealing Council,http://opendatacommunities.org/id/london-borough-council/ealing,CHILDREN & ADULTS,1,SAFEGUARDING & SUPPORT - CIC,CHILDRENS SERVICES -ELIGIBLE CHILDREN OTHER COSTS,4282,,05/10/2022,23225195,1625,200781,REDACTED SENSITIVE SUPPLIER
INSERTED DETAIL,,Ealing Council,http://opendatacommunities.org/id/london-borough-council/ealing,CHILDREN & ADULTS,1,SAFEGUARDING & SUPPORT - CIC,CHILDRENS SERVICES -ELIGIBLE CHILDREN OTHER COSTS,4282,,05/10/2022,23225207,1338.19,200889,REDACTED SENSITIVE SUPPLIER
INSERTED DETAIL,,Ealing Council,http://opendatacommunities.org/id/london-borough-council/ealing,CHILDREN & ADULTS,1,SAFEGUARDING & SUPPORT - CIC,CHILDRENS SERVICES -ELIGIBLE CHILDREN OTHER COSTS,4282,,11/10/2022,23227403,380,200972,REDACTED SENSITIVE SUPPLIER
INSERTED DETAIL,,Ealing Council,http://opendatacommunities.org/id/london-borough-council/ealing,CHILDREN & ADULTS,1,SAFEGUARDING & SUPPORT - CIC,CHILDRENS SERVICES -ELIGIBLE CHILDREN OTHER COSTS,4282,,11/10/2022,23227407,6500,201067,REDACTED SENSITIVE SUPPLIER
INSERTED DETAIL,,Ealing Council,http://opendatacommunities.org/id/london-borough-council/ealing,CHILDREN & ADULTS,1,SAFEGUARDING & SUPPORT - CIC,CHILDRENS SERVICES -ELIGIBLE CHILDREN OTHER COSTS,4282,,05/10/2022,23225194,6500,201072,REDACTED SENSITIVE SUPPLIER
INSERTED DETAIL,,Ealing Council,http://opendatacommunities.org/id/london-borough-council/ealing,CHILDREN & ADULTS,1,SAFEGUARDING & SUPPORT - CIC,CHILDRENS SERVICES -ELIGIBLE CHILDREN ACCOMMODATIO,4281,,11/10/2022,23227561,269.95,200414,REDACTED SENSITIVE SUPPLIER
INSERTED DETAIL,,Ealing Council,http://opendatacommunities.org/id/london-borough-council/ealing,CHILDREN & ADULTS,1,SAFEGUARDING & SUPPORT - CIC,CHILDRENS SERVICES -ELIGIBLE CHILDREN ACCOMMODATIO,4281,,05/10/2022,23225198,1195.5,200414,REDACTED SENSITIVE SUPPLIER
INSERTED DETAIL,,Ealing Council,http://opendatacommunities.org/id/london-borough-council/ealing,CHILDREN & ADULTS,1,SAFEGUARDING & SUPPORT - CIC,CHILDRENS SERVICES -ELIGIBLE CHILDREN ACCOMMODATIO,4281,,18/10/2022,23229690,269.95,200414,REDACTED SENSITIVE SUPPLIER
INSERTED DETAIL,,Ealing Council,http://opendatacommunities.org/id/london-borough-council/ealing,CHILDREN & ADULTS,1,SAFEGUARDING & SUPPORT - CIC,CHILDRENS SERVICES -ELIGIBLE CHILDREN ACCOMMODATIO,4281,,25/10/2022,23237195,269.95,200414,REDACTED SENSITIVE SUPPLIER
INSERTED DETAIL,,Ealing Council,http://opendatacommunities.org/id/london-borough-council/ealing,CHILDREN & ADULTS,1,SAFEGUARDING & SUPPORT - CIC,CHILDRENS SERVICES -ELIGIBLE CHILDREN ACCOMMODATIO,4281,,25/10/2022,23237333,269.95,200241,REDACTED SENSITIVE SUPPLIER
INSERTED DETAIL,,Ealing Council,http://opendatacommunities.org/id/london-borough-council/ealing,CHILDREN & ADULTS,1,SAFEGUARDING & SUPPORT - CIC,CHILDRENS SERVICES -ELIGIBLE CHILDREN ACCOMMODATIO,4281,,25/10/2022,23237202,269.95,200523,REDACTED SENSITIVE SUPPLIER
INSERTED DETAIL,,Ealing Council,http://opendatacommunities.org/id/london-borough-council/ealing,CHILDREN & ADULTS,1,SAFEGUARDING & SUPPORT - CIC,CHILDRENS SERVICES -ELIGIBLE CHILDREN OTHER COSTS,4282,,11/10/2022,23227590,1834,200543,REDACTED SENSITIVE SUPPLIER
INSERTED DETAIL,,Ealing Council,http://opendatacommunities.org/id/london-borough-council/ealing,CHILDREN & ADULTS,1,SAFEGUARDING & SUPPORT - CIC,CHILDRENS SERVICES -ELIGIBLE CHILDREN OTHER COSTS,4282,,25/10/2022,23237186,1512,200568,REDACTED SENSITIVE SUPPLIER
INSERTED DETAIL,,Ealing Council,http://opendatacommunities.org/id/london-borough-council/ealing,CHILDREN & ADULTS,1,SAFEGUARDING & SUPPORT - CIC,CHILDRENS SERVICES -ELIGIBLE CHILDREN OTHER COSTS,4282,,05/10/2022,23225197,1000,200568,REDACTED SENSITIVE SUPPLIER
INSERTED DETAIL,,Ealing Council,http://opendatacommunities.org/id/london-borough-council/ealing,CHILDREN & ADULTS,1,SAFEGUARDING & SUPPORT - CIC,CHILDRENS SERVICES -ELIGIBLE CHILDREN ACCOMMODATIO,4281,,25/10/2022,23237089,269.95,200588,REDACTED SENSITIVE SUPPLIER
INSERTED DETAIL,,Ealing Council,http://opendatacommunities.org/id/london-borough-council/ealing,CHILDREN & ADULTS,1,SAFEGUARDING & SUPPORT - CIC,CHILDRENS SERVICES -ELIGIBLE CHILDREN ACCOMMODATIO,4281,,18/10/2022,23229587,269.95,200588,REDACTED SENSITIVE SUPPLIER
INSERTED DETAIL,,Ealing Council,http://opendatacommunities.org/id/london-borough-council/ealing,CHILDREN & ADULTS,1,SAFEGUARDING & SUPPORT - CIC,CHILDRENS SERVICES -ELIGIBLE CHILDREN ACCOMMODATIO,4281,,11/10/2022,23227455,1504.01,200588,REDACTED SENSITIVE SUPPLIER
INSERTED DETAIL,,Ealing Council,http://opendatacommunities.org/id/london-borough-council/ealing,CHILDREN & ADULTS,1,SAFEGUARDING & SUPPORT - CIC,CHILDRENS SERVICES -ELIGIBLE CHILDREN ACCOMMODATIO,4281,,11/10/2022,23227586,269.95,200608,REDACTED SENSITIVE SUPPLIER
INSERTED DETAIL,,Ealing Council,http://opendatacommunities.org/id/london-borough-council/ealing,CHILDREN & ADULTS,1,SAFEGUARDING & SUPPORT - CIC,CHILDRENS SERVICES -ELIGIBLE CHILDREN ACCOMMODATIO,4281,,18/10/2022,23229716,269.95,200608,REDACTED SENSITIVE SUPPLIER
INSERTED DETAIL,,Ealing Council,http://opendatacommunities.org/id/london-borough-council/ealing,CHILDREN & ADULTS,1,SAFEGUARDING & SUPPORT - CIC,CHILDRENS SERVICES -ELIGIBLE CHILDREN ACCOMMODATIO,4281,,25/10/2022,23237220,269.95,200608,REDACTED SENSITIVE SUPPLIER
INSERTED DETAIL,,Ealing Council,http://opendatacommunities.org/id/london-borough-council/ealing,CHILDREN & ADULTS,1,SAFEGUARDING & SUPPORT - CIC,CHILDRENS SERVICES -ELIGIBLE CHILDREN ACCOMMODATIO,4281,,04/10/2022,23224895,269.95,200608,REDACTED SENSITIVE SUPPLIER
INSERTED DETAIL,,Ealing Council,http://opendatacommunities.org/id/london-borough-council/ealing,CHILDREN & ADULTS,1,SAFEGUARDING & SUPPORT - CIC,CHILDRENS SERVICES -ELIGIBLE CHILDREN OTHER COSTS,4282,,05/10/2022,23225192,541.66,200798,REDACTED SENSITIVE SUPPLIER
INSERTED DETAIL,,Ealing Council,http://opendatacommunities.org/id/london-borough-council/ealing,CHILDREN & ADULTS,1,SAFEGUARDING & SUPPORT - CIC,CHILDRENS SERVICES -ELIGIBLE CHILDREN ACCOMMODATIO,4281,,04/10/2022,23225043,269.95,200211,REDACTED SENSITIVE SUPPLIER
INSERTED DETAIL,,Ealing Council,http://opendatacommunities.org/id/london-borough-council/ealing,CHILDREN & ADULTS,1,SAFEGUARDING & SUPPORT - CIC,CHILDRENS SERVICES -ELIGIBLE CHILDREN ACCOMMODATIO,4281,,25/10/2022,23237377,269.95,200211,REDACTED SENSITIVE SUPPLIER
INSERTED DETAIL,,Ealing Council,http://opendatacommunities.org/id/london-borough-council/ealing,CHILDREN & ADULTS,1,SAFEGUARDING & SUPPORT - CIC,CHILDRENS SERVICES -ELIGIBLE CHILDREN ACCOMMODATIO,4281,,18/10/2022,23229868,269.95,200211,REDACTED SENSITIVE SUPPLIER
INSERTED DETAIL,,Ealing Council,http://opendatacommunities.org/id/london-borough-council/ealing,CHILDREN & ADULTS,1,SAFEGUARDING & SUPPORT - CIC,CHILDRENS SERVICES -ELIGIBLE CHILDREN ACCOMMODATIO,4281,,11/10/2022,23227738,269.95,200211,REDACTED SENSITIVE SUPPLIER
INSERTED DETAIL,,Ealing Council,http://opendatacommunities.org/id/london-borough-council/ealing,CHILDREN & ADULTS,1,SAFEGUARDING & SUPPORT - CIC,CHILDRENS SERVICES -ELIGIBLE CHILDREN ACCOMMODATIO,4281,,18/10/2022,23229832,269.95,200270,REDACTED SENSITIVE SUPPLIER
INSERTED DETAIL,,Ealing Council,http://opendatacommunities.org/id/london-borough-council/ealing,CHILDREN & ADULTS,1,SAFEGUARDING & SUPPORT - CIC,CHILDRENS SERVICES -ELIGIBLE CHILDREN ACCOMMODATIO,4281,,04/10/2022,23225010,269.95,200270,REDACTED SENSITIVE SUPPLIER
INSERTED DETAIL,,Ealing Council,http://opendatacommunities.org/id/london-borough-council/ealing,CHILDREN & ADULTS,1,SAFEGUARDING & SUPPORT - CIC,CHILDRENS SERVICES -ELIGIBLE CHILDREN OTHER COSTS,4282,,19/10/2022,23229871,849.92,200596,REDACTED SENSITIVE SUPPLIER
INSERTED DETAIL,,Ealing Council,http://opendatacommunities.org/id/london-borough-council/ealing,CHILDREN & ADULTS,1,SAFEGUARDING & SUPPORT - CIC,CHILDRENS SERVICES -ELIGIBLE CHILDREN OTHER COSTS,4282,,05/10/2022,23225204,6500,200892,REDACTED SENSITIVE SUPPLIER
INSERTED DETAIL,,Ealing Council,http://opendatacommunities.org/id/london-borough-council/ealing,CHILDREN & ADULTS,1,SAFEGUARDING & SUPPORT - CIC,CHILDRENS SERVICES -ELIGIBLE CHILDREN ACCOMMODATIO,4281,,04/10/2022,23224934,269.95,200934,REDACTED SENSITIVE SUPPLIER
INSERTED DETAIL,,Ealing Council,http://opendatacommunities.org/id/london-borough-council/ealing,CHILDREN & ADULTS,1,EALING SERVICE FOR CHILDREN WITH ADDITIONAL NEEDS,DOMICILIARY CARE - BLOCK,4240,,10/10/2022,23227345,1847.44,14755,OASIS CARE & TRAINING AGENCY (OCTA)
INSERTED DETAIL,,Ealing Council,http://opendatacommunities.org/id/london-borough-council/ealing,CHILDREN & ADULTS,1,EALING SERVICE FOR CHILDREN WITH ADDITIONAL NEEDS,DOMICILIARY CARE - BLOCK,4240,,10/10/2022,23227345,640,14755,OASIS CARE & TRAINING AGENCY (OCTA)
INSERTED DETAIL,,Ealing Council,http://opendatacommunities.org/id/london-borough-council/ealing,CHILDREN & ADULTS,1,EALING SERVICE FOR CHILDREN WITH ADDITIONAL NEEDS,DOMICILIARY CARE - BLOCK,4240,,10/10/2022,23227345,288.72,14755,OASIS CARE & TRAINING AGENCY (OCTA)
INSERTED DETAIL,,Ealing Council,http://opendatacommunities.org/id/london-borough-council/ealing,CHILDREN & ADULTS,1,EALING SERVICE FOR CHILDREN WITH ADDITIONAL NEEDS,DOMICILIARY CARE - BLOCK,4240,,10/10/2022,23227345,481.2,14755,OASIS CARE & TRAINING AGENCY (OCTA)
INSERTED DETAIL,,Ealing Council,http://opendatacommunities.org/id/london-borough-council/ealing,CHILDREN & ADULTS,1,EALING SERVICE FOR CHILDREN WITH ADDITIONAL NEEDS,DOMICILIARY CARE - BLOCK,4240,,10/10/2022,23227345,303.04,14755,OASIS CARE & TRAINING AGENCY (OCTA)
INSERTED DETAIL,,Ealing Council,http://opendatacommunities.org/id/london-borough-council/ealing,CHILDREN & ADULTS,1,EALING SERVICE FOR CHILDREN WITH ADDITIONAL NEEDS,DOMICILIARY CARE - BLOCK,4240,,10/10/2022,23227345,404.88,14755,OASIS CARE & TRAINING AGENCY (OCTA)
INSERTED DETAIL,,Ealing Council,http://opendatacommunities.org/id/london-borough-council/ealing,CHILDREN & ADULTS,1,EALING SERVICE FOR CHILDREN WITH ADDITIONAL NEEDS,DOMICILIARY CARE - BLOCK,4240,,10/10/2022,23227345,578.4,14755,OASIS CARE & TRAINING AGENCY (OCTA)
INSERTED DETAIL,,Ealing Council,http://opendatacommunities.org/id/london-borough-council/ealing,CHILDREN & ADULTS,1,EALING SERVICE FOR CHILDREN WITH ADDITIONAL NEEDS,DOMICILIARY CARE - BLOCK,4240,,10/10/2022,23227345,452,14755,OASIS CARE & TRAINING AGENCY (OCTA)
INSERTED DETAIL,,Ealing Council,http://opendatacommunities.org/id/london-borough-council/ealing,CHILDREN & ADULTS,1,EALING SERVICE FOR CHILDREN WITH ADDITIONAL NEEDS,DOMICILIARY CARE - BLOCK,4240,,10/10/2022,23227345,406.8,14755,OASIS CARE & TRAINING AGENCY (OCTA)
INSERTED DETAIL,,Ealing Council,http://opendatacommunities.org/id/london-borough-council/ealing,CHILDREN & ADULTS,1,EALING SERVICE FOR CHILDREN WITH ADDITIONAL NEEDS,DOMICILIARY CARE - BLOCK,4240,,10/10/2022,23227345,274.04,14755,OASIS CARE & TRAINING AGENCY (OCTA)
INSERTED DETAIL,,Ealing Council,http://opendatacommunities.org/id/london-borough-council/ealing,CHILDREN & ADULTS,1,EALING SERVICE FOR CHILDREN WITH ADDITIONAL NEEDS,DOMICILIARY CARE - BLOCK,4240,,10/10/2022,23227345,459.06,14755,OASIS CARE & TRAINING AGENCY (OCTA)
INSERTED DETAIL,,Ealing Council,http://opendatacommunities.org/id/london-borough-council/ealing,CHILDREN & ADULTS,1,EALING SERVICE FOR CHILDREN WITH ADDITIONAL NEEDS,DOMICILIARY CARE - BLOCK,4240,,10/10/2022,23227345,405,14755,OASIS CARE & TRAINING AGENCY (OCTA)
INSERTED DETAIL,,Ealing Council,http://opendatacommunities.org/id/london-borough-council/ealing,CHILDREN & ADULTS,1,EALING SERVICE FOR CHILDREN WITH ADDITIONAL NEEDS,DOMICILIARY CARE - BLOCK,4240,,10/10/2022,23227345,347.04,14755,OASIS CARE & TRAINING AGENCY (OCTA)
INSERTED DETAIL,,Ealing Council,http://opendatacommunities.org/id/london-borough-council/ealing,CHILDREN & ADULTS,1,EALING SERVICE FOR CHILDREN WITH ADDITIONAL NEEDS,DOMICILIARY CARE - BLOCK,4240,,10/10/2022,23227345,1898.96,14755,OASIS CARE & TRAINING AGENCY (OCTA)
INSERTED DETAIL,,Ealing Council,http://opendatacommunities.org/id/london-borough-council/ealing,CHILDREN & ADULTS,1,EALING SERVICE FOR CHILDREN WITH ADDITIONAL NEEDS,DOMICILIARY CARE - BLOCK,4240,,10/10/2022,23227345,1166.2,14755,OASIS CARE & TRAINING AGENCY (OCTA)
INSERTED DETAIL,,Ealing Council,http://opendatacommunities.org/id/london-borough-council/ealing,CHILDREN & ADULTS,1,EALING SERVICE FOR CHILDREN WITH ADDITIONAL NEEDS,DOMICILIARY CARE - BLOCK,4240,,10/10/2022,23227345,885.28,14755,OASIS CARE & TRAINING AGENCY (OCTA)
INSERTED DETAIL,,Ealing Council,http://opendatacommunities.org/id/london-borough-council/ealing,CHILDREN & ADULTS,1,EALING SERVICE FOR CHILDREN WITH ADDITIONAL NEEDS,DOMICILIARY CARE - BLOCK,4240,,10/10/2022,23227345,1224.16,14755,OASIS CARE & TRAINING AGENCY (OCTA)
INSERTED DETAIL,,Ealing Council,http://opendatacommunities.org/id/london-borough-council/ealing,CHILDREN & ADULTS,1,EALING SERVICE FOR CHILDREN WITH ADDITIONAL NEEDS,DOMICILIARY CARE - BLOCK,4240,,10/10/2022,23227345,451.36,14755,OASIS CARE & TRAINING AGENCY (OCTA)
INSERTED DETAIL,,Ealing Council,http://opendatacommunities.org/id/london-borough-council/ealing,CHILDREN & ADULTS,1,EALING SERVICE FOR CHILDREN WITH ADDITIONAL NEEDS,DOMICILIARY CARE - BLOCK,4240,,10/10/2022,23227345,386.88,14755,OASIS CARE & TRAINING AGENCY (OCTA)
INSERTED DETAIL,,Ealing Council,http://opendatacommunities.org/id/london-borough-council/ealing,CHILDREN & ADULTS,1,EALING SERVICE FOR CHILDREN WITH ADDITIONAL NEEDS,DOMICILIARY CARE - BLOCK,4240,,10/10/2022,23227345,360,14755,OASIS CARE & TRAINING AGENCY (OCTA)
INSERTED DETAIL,,Ealing Council,http://opendatacommunities.org/id/london-borough-council/ealing,CHILDREN & ADULTS,1,EALING SERVICE FOR CHILDREN WITH ADDITIONAL NEEDS,DOMICILIARY CARE - BLOCK,4240,,10/10/2022,23227345,325.71,14755,OASIS CARE & TRAINING AGENCY (OCTA)
INSERTED DETAIL,,Ealing Council,http://opendatacommunities.org/id/london-borough-council/ealing,CHILDREN & ADULTS,1,EALING SERVICE FOR CHILDREN WITH ADDITIONAL NEEDS,DOMICILIARY CARE - BLOCK,4240,,10/10/2022,23227345,688.48,14755,OASIS CARE & TRAINING AGENCY (OCTA)
INSERTED DETAIL,,Ealing Council,http://opendatacommunities.org/id/london-borough-council/ealing,CHILDREN & ADULTS,1,EALING SERVICE FOR CHILDREN WITH ADDITIONAL NEEDS,DOMICILIARY CARE - BLOCK,4240,,10/10/2022,23227345,268.3,14755,OASIS CARE & TRAINING AGENCY (OCTA)
INSERTED DETAIL,,Ealing Council,http://opendatacommunities.org/id/london-borough-council/ealing,CHILDREN & ADULTS,1,EALING SERVICE FOR CHILDREN WITH ADDITIONAL NEEDS,DOMICILIARY CARE - BLOCK,4240,,10/10/2022,23227345,620.4,14755,OASIS CARE & TRAINING AGENCY (OCTA)
INSERTED DETAIL,,Ealing Council,http://opendatacommunities.org/id/london-borough-council/ealing,CHILDREN & ADULTS,1,EALING SERVICE FOR CHILDREN WITH ADDITIONAL NEEDS,DOMICILIARY CARE - BLOCK,4240,,10/10/2022,23227345,266.24,14755,OASIS CARE & TRAINING AGENCY (OCTA)
INSERTED DETAIL,,Ealing Council,http://opendatacommunities.org/id/london-borough-council/ealing,CHILDREN & ADULTS,1,EALING SERVICE FOR CHILDREN WITH ADDITIONAL NEEDS,DOMICILIARY CARE - BLOCK,4240,,10/10/2022,23227345,1364,14755,OASIS CARE & TRAINING AGENCY (OCTA)
INSERTED DETAIL,,Ealing Council,http://opendatacommunities.org/id/london-borough-council/ealing,CHILDREN & ADULTS,1,EALING SERVICE FOR CHILDREN WITH ADDITIONAL NEEDS,DOMICILIARY CARE - BLOCK,4240,,10/10/2022,23227345,512,14755,OASIS CARE & TRAINING AGENCY (OCTA)
INSERTED DETAIL,,Ealing Council,http://opendatacommunities.org/id/london-borough-council/ealing,CHILDREN & ADULTS,1,EALING SERVICE FOR CHILDREN WITH ADDITIONAL NEEDS,DOMICILIARY CARE - BLOCK,4240,,10/10/2022,23227345,1861.2,14755,OASIS CARE & TRAINING AGENCY (OCTA)
INSERTED DETAIL,,Ealing Council,http://opendatacommunities.org/id/london-borough-council/ealing,CHILDREN & ADULTS,1,EALING SERVICE FOR CHILDREN WITH ADDITIONAL NEEDS,DOMICILIARY CARE - BLOCK,4240,,10/10/2022,23227345,361.6,14755,OASIS CARE & TRAINING AGENCY (OCTA)
INSERTED DETAIL,,Ealing Council,http://opendatacommunities.org/id/london-borough-council/ealing,CHILDREN & ADULTS,1,OLDER PEOPLE,DOMICILIARY CARE - BLOCK,4240,,04/10/2022,23226691,1890,19668,MNA HOME CARE SERVICES LTD
INSERTED DETAIL,,Ealing Council,http://opendatacommunities.org/id/london-borough-council/ealing,CHILDREN & ADULTS,1,OLDER PEOPLE,DOMICILIARY CARE - BLOCK,4240,,04/10/2022,23226691,1778.4,19668,MNA HOME CARE SERVICES LTD
INSERTED DETAIL,,Ealing Council,http://opendatacommunities.org/id/london-borough-council/ealing,CHILDREN & ADULTS,1,OLDER PEOPLE,EMI RESIDENTIAL,4227,,13/10/2022,23228583,2824,18161,BONDCARE (LONDON) ASHWOOD MAIN
INSERTED DETAIL,,Ealing Council,http://opendatacommunities.org/id/london-borough-council/ealing,CHILDREN & ADULTS,1,OLDER PEOPLE,EMI RESIDENTIAL,4227,,13/10/2022,23228583,2824,18161,BONDCARE (LONDON) ASHWOOD MAIN
INSERTED DETAIL,,Ealing Council,http://opendatacommunities.org/id/london-borough-council/ealing,CHILDREN & ADULTS,1,OLDER PEOPLE,NURSING HOMES EXTERNAL,4230,,13/10/2022,23228589,2668,18007,BARCHESTER HEALTHCARE HOMES LTD RE BROOK HOUSE
INSERTED DETAIL,,Ealing Council,http://opendatacommunities.org/id/london-borough-council/ealing,CHILDREN & ADULTS,1,OLDER PEOPLE,RESIDENTIAL HOMES EXTERNAL,4220,,13/10/2022,23228599,1958.56,11600,EALING EVENTIDE HOMES LTD
INSERTED DETAIL,,Ealing Council,http://opendatacommunities.org/id/london-borough-council/ealing,CHILDREN & ADULTS,1,OLDER PEOPLE,EMI RESIDENTIAL,4227,,13/10/2022,23228929,2520,26904,SOMERSET CARE LTD
INSERTED DETAIL,,Ealing Council,http://opendatacommunities.org/id/london-borough-council/ealing,CHILDREN & ADULTS,1,OLDER PEOPLE,DOMICILIARY CARE - BLOCK,4240,,06/09/2022,23226684,3247.25,27225,DEVINE CARE LTD
INSERTED DETAIL,,Ealing Council,http://opendatacommunities.org/id/london-borough-council/ealing,CHILDREN & ADULTS,1,OLDER PEOPLE,DOMICILIARY CARE - BLOCK,4240,,06/10/2022,23226684,-3247.25,27225,DEVINE CARE LTD
INSERTED DETAIL,,Ealing Council,http://opendatacommunities.org/id/london-borough-council/ealing,CHILDREN & ADULTS,1,OLDER PEOPLE,NURSING HOMES EXTERNAL,4230,,13/10/2022,23228825,2668,27445,ST CLOUD CARE LTD
INSERTED DETAIL,,Ealing Council,http://opendatacommunities.org/id/london-borough-council/ealing,CHILDREN & ADULTS,1,OLDER PEOPLE,EMI NURSING,4237,,20/10/2022,23235548,-12006,27458,BONDCARE(LONDON)LTD CONISTON lODGE
INSERTED DETAIL,,Ealing Council,http://opendatacommunities.org/id/london-borough-council/ealing,CHILDREN & ADULTS,1,OLDER PEOPLE,EMI NURSING,4237,,20/10/2022,23235548,12744,27458,BONDCARE(LONDON)LTD CONISTON lODGE
INSERTED DETAIL,,Ealing Council,http://opendatacommunities.org/id/london-borough-council/ealing,CHILDREN & ADULTS,1,OLDER PEOPLE,EMI NURSING,4237,,24/10/2022,23235560,-3292.75,27458,BONDCARE(LONDON)LTD CONISTON lODGE
INSERTED DETAIL,,Ealing Council,http://opendatacommunities.org/id/london-borough-council/ealing,CHILDREN & ADULTS,1,OLDER PEOPLE,EMI NURSING,4237,,13/10/2022,23228684,2634.2,27458,BONDCARE(LONDON)LTD CONISTON lODGE
INSERTED DETAIL,,Ealing Council,http://opendatacommunities.org/id/london-borough-council/ealing,CHILDREN & ADULTS,1,OLDER PEOPLE,EMI NURSING,4237,,13/10/2022,23228684,2668,27458,BONDCARE(LONDON)LTD CONISTON lODGE
INSERTED DETAIL,,Ealing Council,http://opendatacommunities.org/id/london-borough-council/ealing,CHILDREN & ADULTS,1,OLDER PEOPLE,DOMICILIARY CARE - BLOCK,4240,,27/09/2022,23224360,397.5,27955,EAGER HEALTH LTD T/A CARE24SEVEN
INSERTED DETAIL,,Ealing Council,http://opendatacommunities.org/id/london-borough-council/ealing,CHILDREN & ADULTS,1,OLDER PEOPLE,DOMICILIARY CARE - BLOCK,4240,,27/09/2022,23224360,551.25,27955,EAGER HEALTH LTD T/A CARE24SEVEN
INSERTED DETAIL,,Ealing Council,http://opendatacommunities.org/id/london-borough-council/ealing,CHILDREN & ADULTS,1,OLDER PEOPLE,DOMICILIARY CARE - BLOCK,4240,,27/09/2022,23224360,336,27955,EAGER HEALTH LTD T/A CARE24SEVEN
INSERTED DETAIL,,Ealing Council,http://opendatacommunities.org/id/london-borough-council/ealing,CHILDREN & ADULTS,1,OLDER PEOPLE,DOMICILIARY CARE - BLOCK,4240,,27/09/2022,23224360,412.5,27955,EAGER HEALTH LTD T/A CARE24SEVEN
INSERTED DETAIL,,Ealing Council,http://opendatacommunities.org/id/london-borough-council/ealing,CHILDREN & ADULTS,1,OLDER PEOPLE,DOMICILIARY CARE - BLOCK,4240,,27/09/2022,23224360,375,27955,EAGER HEALTH LTD T/A CARE24SEVEN
INSERTED DETAIL,,Ealing Council,http://opendatacommunities.org/id/london-borough-council/ealing,CHILDREN & ADULTS,1,OLDER PEOPLE,DOMICILIARY CARE - BLOCK,4240,,27/09/2022,23224360,840,27955,EAGER HEALTH LTD T/A CARE24SEVEN
INSERTED DETAIL,,Ealing Council,http://opendatacommunities.org/id/london-borough-council/ealing,CHILDREN & ADULTS,1,OLDER PEOPLE,DOMICILIARY CARE - BLOCK,4240,,27/09/2022,23224360,575.17,27955,EAGER HEALTH LTD T/A CARE24SEVEN
INSERTED DETAIL,,Ealing Council,http://opendatacommunities.org/id/london-borough-council/ealing,CHILDREN & ADULTS,1,OLDER PEOPLE,DOMICILIARY CARE - BLOCK,4240,,27/09/2022,23224360,300,27955,EAGER HEALTH LTD T/A CARE24SEVEN
INSERTED DETAIL,,Ealing Council,http://opendatacommunities.org/id/london-borough-council/ealing,CHILDREN & ADULTS,1,OLDER PEOPLE,DOMICILIARY CARE - BLOCK,4240,,27/09/2022,23226706,681.5,27955,EAGER HEALTH LTD T/A CARE24SEVEN
INSERTED DETAIL,,Ealing Council,http://opendatacommunities.org/id/london-borough-council/ealing,CHILDREN & ADULTS,1,OLDER PEOPLE,SUPPORTED LIVING,4236,,13/10/2022,23228742,1680,10057,THE ABBEYFIELD LONDON POLISH SOCIETY
INSERTED DETAIL,,Ealing Council,http://opendatacommunities.org/id/london-borough-council/ealing,CHILDREN & ADULTS,1,OLDER PEOPLE,SUPPORTED LIVING,4236,,13/10/2022,23228742,1860,10057,THE ABBEYFIELD LONDON POLISH SOCIETY
INSERTED DETAIL,,Ealing Council,http://opendatacommunities.org/id/london-borough-council/ealing,CHILDREN & ADULTS,1,OLDER PEOPLE,DOMICILIARY CARE - BLOCK,4240,,06/10/2022,23226702,2100,28295,UNITE CARE LTD
INSERTED DETAIL,,Ealing Council,http://opendatacommunities.org/id/london-borough-council/ealing,CHILDREN & ADULTS,1,OLDER PEOPLE,DOMICILIARY CARE - BLOCK,4240,,06/10/2022,23226702,2730,28295,UNITE CARE LTD
INSERTED DETAIL,,Ealing Council,http://opendatacommunities.org/id/london-borough-council/ealing,CHILDREN & ADULTS,1,OLDER PEOPLE,DOMICILIARY CARE - BLOCK,4240,,06/10/2022,23226702,1606.92,28295,UNITE CARE LTD
INSERTED DETAIL,,Ealing Council,http://opendatacommunities.org/id/london-borough-council/ealing,CHILDREN & ADULTS,1,OLDER PEOPLE,DOMICILIARY CARE - BLOCK,4240,,06/10/2022,23228568,1606.92,28295,UNITE CARE LTD
INSERTED DETAIL,,Ealing Council,http://opendatacommunities.org/id/london-borough-council/ealing,CHILDREN & ADULTS,1,OLDER PEOPLE,DOMICILIARY CARE - BLOCK,4240,,06/10/2022,23228568,2100,28295,UNITE CARE LTD
INSERTED DETAIL,,Ealing Council,http://opendatacommunities.org/id/london-borough-council/ealing,CHILDREN & ADULTS,1,OLDER PEOPLE,DOMICILIARY CARE - BLOCK,4240,,06/10/2022,23228568,2730,28295,UNITE CARE LTD
INSERTED DETAIL,,Ealing Council,http://opendatacommunities.org/id/london-borough-council/ealing,CHILDREN & ADULTS,1,OLDER PEOPLE,EMI RESIDENTIAL,4227,,13/10/2022,23228897,2294.76,28900,BURLINGTON CARE HOMES LTD
INSERTED DETAIL,,Ealing Council,http://opendatacommunities.org/id/london-borough-council/ealing,CHILDREN & ADULTS,1,OLDER PEOPLE,DOMICILIARY CARE - BLOCK,4240,,06/10/2022,23228573,780,29038,ALAND HEALTHCARE CONSULTING LIMITED
INSERTED DETAIL,,Ealing Council,http://opendatacommunities.org/id/london-borough-council/ealing,CHILDREN & ADULTS,1,OLDER PEOPLE,DOMICILIARY CARE - BLOCK,4240,,06/10/2022,23228573,847.5,29038,ALAND HEALTHCARE CONSULTING LIMITED
INSERTED DETAIL,,Ealing Council,http://opendatacommunities.org/id/london-borough-council/ealing,CHILDREN & ADULTS,1,OLDER PEOPLE,DOMICILIARY CARE - BLOCK,4240,,06/10/2022,23228573,840,29038,ALAND HEALTHCARE CONSULTING LIMITED
INSERTED DETAIL,,Ealing Council,http://opendatacommunities.org/id/london-borough-council/ealing,CHILDREN & ADULTS,1,ADULT MENTAL HEALTH,DOMICILIARY CARE - BLOCK,4240,,28/09/2022,23224359,840,29163,TENDA RECOVERY HEALTHCARE LTD C/O TENDA HANDS HOMECARE LTD
INSERTED DETAIL,,Ealing Council,http://opendatacommunities.org/id/london-borough-council/ealing,CHILDREN & ADULTS,1,ADULT MENTAL HEALTH,DOMICILIARY CARE - BLOCK,4240,,28/09/2022,23224359,450,29163,TENDA RECOVERY HEALTHCARE LTD C/O TENDA HANDS HOMECARE LTD
INSERTED DETAIL,,Ealing Council,http://opendatacommunities.org/id/london-borough-council/ealing,CHILDREN & ADULTS,1,ADULT MENTAL HEALTH,DOMICILIARY CARE - BLOCK,4240,,28/09/2022,23224359,315,29163,TENDA RECOVERY HEALTHCARE LTD C/O TENDA HANDS HOMECARE LTD
INSERTED DETAIL,,Ealing Council,http://opendatacommunities.org/id/london-borough-council/ealing,CHILDREN & ADULTS,1,ADULT MENTAL HEALTH,DOMICILIARY CARE - BLOCK,4240,,28/09/2022,23224359,525,29163,TENDA RECOVERY HEALTHCARE LTD C/O TENDA HANDS HOMECARE LTD
INSERTED DETAIL,,Ealing Council,http://opendatacommunities.org/id/london-borough-council/ealing,CHILDREN & ADULTS,1,ADULT MENTAL HEALTH,SUPPORTED LIVING,4236,,13/10/2022,23228934,2216.64,29301,MANSELL HOUSE HEALTHCARE LTD T/A HILL RISE HOUSE
INSERTED DETAIL,,Ealing Council,http://opendatacommunities.org/id/london-borough-council/ealing,CHILDREN & ADULTS,1,ADULT MENTAL HEALTH,SUPPORTED LIVING,4236,,13/10/2022,23228934,2380,29301,MANSELL HOUSE HEALTHCARE LTD T/A HILL RISE HOUSE
INSERTED DETAIL,,Ealing Council,http://opendatacommunities.org/id/london-borough-council/ealing,CHILDREN & ADULTS,1,ADULT MENTAL HEALTH,SUPPORTED LIVING,4236,,13/10/2022,23228934,2380,29301,MANSELL HOUSE HEALTHCARE LTD T/A HILL RISE HOUSE
INSERTED DETAIL,,Ealing Council,http://opendatacommunities.org/id/london-borough-council/ealing,CHILDREN & ADULTS,1,ADULT MENTAL HEALTH,RESIDENTIAL HOMES EXTERNAL,4220,,13/10/2022,23228939,3600,29334,HILTON LODGE LIMITED T/A HILTON LODGE RESIDENTIAL CARE
INSERTED DETAIL,,Ealing Council,http://opendatacommunities.org/id/london-borough-council/ealing,CHILDREN & ADULTS,1,ADULT MENTAL HEALTH,RESIDENTIAL HOMES EXTERNAL,4220,,13/10/2022,23228873,4752,28630,HIVES LODGES LTD
INSERTED DETAIL,,Ealing Council,http://opendatacommunities.org/id/london-borough-council/ealing,CHILDREN & ADULTS,1,ADULT MENTAL HEALTH,RESIDENTIAL HOMES EXTERNAL,4220,,13/10/2022,23228873,3024,28630,HIVES LODGES LTD
INSERTED DETAIL,,Ealing Council,http://opendatacommunities.org/id/london-borough-council/ealing,CHILDREN & ADULTS,1,ADULT MENTAL HEALTH,RESIDENTIAL HOMES EXTERNAL,4220,,13/10/2022,23228873,-2160,28630,HIVES LODGES LTD
INSERTED DETAIL,,Ealing Council,http://opendatacommunities.org/id/london-borough-council/ealing,CHILDREN & ADULTS,1,ADULT MENTAL HEALTH,SUPPORTED LIVING,4236,,13/10/2022,23228873,1714.29,28630,HIVES LODGES LTD
INSERTED DETAIL,,Ealing Council,http://opendatacommunities.org/id/london-borough-council/ealing,CHILDREN & ADULTS,1,ADULT MENTAL HEALTH,SUPPORTED LIVING,4236,,13/10/2022,23228873,3200,28630,HIVES LODGES LTD
INSERTED DETAIL,,Ealing Council,http://opendatacommunities.org/id/london-borough-council/ealing,CHILDREN & ADULTS,1,ADULT MENTAL HEALTH,SUPPORTED LIVING,4236,,13/10/2022,23228873,3200,28630,HIVES LODGES LTD
INSERTED DETAIL,,Ealing Council,http://opendatacommunities.org/id/london-borough-council/ealing,CHILDREN & ADULTS,1,ADULT MENTAL HEALTH,DOMICILIARY CARE - BLOCK,4240,,14/10/2022,23229502,990,27968,INVICTA CARE AND TRAINING LTD
INSERTED DETAIL,,Ealing Council,http://opendatacommunities.org/id/london-borough-council/ealing,CHILDREN & ADULTS,1,ADULT MENTAL HEALTH,DOMICILIARY CARE - BLOCK,4240,,14/10/2022,23229502,1260,27968,INVICTA CARE AND TRAINING LTD
INSERTED DETAIL,,Ealing Council,http://opendatacommunities.org/id/london-borough-council/ealing,CHILDREN & ADULTS,1,ADULT MENTAL HEALTH,DOMICILIARY CARE - BLOCK,4240,,14/10/2022,23229502,420,27968,INVICTA CARE AND TRAINING LTD
INSERTED DETAIL,,Ealing Council,http://opendatacommunities.org/id/london-borough-council/ealing,CHILDREN & ADULTS,1,ADULT MENTAL HEALTH,DOMICILIARY CARE - BLOCK,4240,,14/10/2022,23229502,630,27968,INVICTA CARE AND TRAINING LTD
INSERTED DETAIL,,Ealing Council,http://opendatacommunities.org/id/london-borough-council/ealing,CHILDREN & ADULTS,1,ADULT MENTAL HEALTH,DOMICILIARY CARE - BLOCK,4240,,04/10/2022,23226697,315,28265,SALUS CARE LTD
INSERTED DETAIL,,Ealing Council,http://opendatacommunities.org/id/london-borough-council/ealing,CHILDREN & ADULTS,1,ADULT MENTAL HEALTH,DOMICILIARY CARE - BLOCK,4240,,27/09/2022,23224361,401.8,28304,GOLDCREST HEALTHCARE SERVICE LIMITED
INSERTED DETAIL,,Ealing Council,http://opendatacommunities.org/id/london-borough-council/ealing,CHILDREN & ADULTS,1,ADULT MENTAL HEALTH,RESIDENTIAL HOMES EXTERNAL,4220,,13/10/2022,23228892,360,28839,ABS UK LTD T/A LOTUS COMMUNITY CARE SERVICES
INSERTED DETAIL,,Ealing Council,http://opendatacommunities.org/id/london-borough-council/ealing,CHILDREN & ADULTS,1,ADULT MENTAL HEALTH,RESIDENTIAL HOMES EXTERNAL,4220,,13/10/2022,23228892,1680,28839,ABS UK LTD T/A LOTUS COMMUNITY CARE SERVICES
INSERTED DETAIL,,Ealing Council,http://opendatacommunities.org/id/london-borough-council/ealing,CHILDREN & ADULTS,1,ADULT MENTAL HEALTH,SUPPORTED LIVING,4236,,13/10/2022,23228892,2540,28839,ABS UK LTD T/A LOTUS COMMUNITY CARE SERVICES
INSERTED DETAIL,,Ealing Council,http://opendatacommunities.org/id/london-borough-council/ealing,CHILDREN & ADULTS,1,ADULT MENTAL HEALTH,SUPPORTED LIVING,4236,,13/10/2022,23228735,2346,24022,CARE ASSIST LTD T/A CARE ASSIST LTD HAMILTON ROAD
INSERTED DETAIL,,Ealing Council,http://opendatacommunities.org/id/london-borough-council/ealing,CHILDREN & ADULTS,1,ADULT MENTAL HEALTH,SUPPORTED LIVING,4236,,13/10/2022,23228735,2244,24022,CARE ASSIST LTD T/A CARE ASSIST LTD HAMILTON ROAD
INSERTED DETAIL,,Ealing Council,http://opendatacommunities.org/id/london-borough-council/ealing,CHILDREN & ADULTS,1,ADULT MENTAL HEALTH,SUPPORTED LIVING,4236,,13/10/2022,23228735,2346,24022,CARE ASSIST LTD T/A CARE ASSIST LTD HAMILTON ROAD
INSERTED DETAIL,,Ealing Council,http://opendatacommunities.org/id/london-borough-council/ealing,CHILDREN & ADULTS,1,ADULT MENTAL HEALTH,NURSING HOMES EXTERNAL,4230,,13/10/2022,23228753,7032.04,25271,BARCHESTER HEALTHCARE LTD - WESTGATE HOUSE
INSERTED DETAIL,,Ealing Council,http://opendatacommunities.org/id/london-borough-council/ealing,CHILDREN & ADULTS,1,ADULT MENTAL HEALTH,SUPPORTED LIVING,4236,,13/10/2022,23228788,2133.92,26418,SANCTUARY HOME CARE LTD
INSERTED DETAIL,,Ealing Council,http://opendatacommunities.org/id/london-borough-council/ealing,CHILDREN & ADULTS,1,ADULT MENTAL HEALTH,SUPPORTED LIVING,4236,,13/10/2022,23228788,2044,26418,SANCTUARY HOME CARE LTD
INSERTED DETAIL,,Ealing Council,http://opendatacommunities.org/id/london-borough-council/ealing,CHILDREN & ADULTS,1,ADULT MENTAL HEALTH,DOMICILIARY CARE - BLOCK,4240,,06/10/2022,23228579,600,29699,BRIGHT LONDON CARE LTD
INSERTED DETAIL,,Ealing Council,http://opendatacommunities.org/id/london-borough-council/ealing,CHILDREN & ADULTS,1,ADULT MENTAL HEALTH,RESIDENTIAL HOMES EXTERNAL,4220,,13/10/2022,23228630,6275.88,29855,PURECARE CARE SERVICES LTD T/A PURE CARE
INSERTED DETAIL,,Ealing Council,http://opendatacommunities.org/id/london-borough-council/ealing,CHILDREN & ADULTS,1,ADULT MENTAL HEALTH,DOMICILIARY CARE - BLOCK,4240,,06/10/2022,23228572,840,29040,BIRMINGHAM BUSINESS ASSOCIATE LTD T/A BBA CARE LTD LONDON
INSERTED DETAIL,,Ealing Council,http://opendatacommunities.org/id/london-borough-council/ealing,CHILDREN & ADULTS,1,ADULT MENTAL HEALTH,RESIDENTIAL HOMES EXTERNAL,4220,,13/10/2022,23228944,7929.52,29460,QUALITIES SERVICES LTD
INSERTED DETAIL,,Ealing Council,http://opendatacommunities.org/id/london-borough-council/ealing,CHILDREN & ADULTS,1,OLDER PEOPLE,DOMICILIARY CARE - BLOCK,4240,,06/10/2022,23228573,945,29038,ALAND HEALTHCARE CONSULTING LIMITED
INSERTED DETAIL,,Ealing Council,http://opendatacommunities.org/id/london-borough-council/ealing,CHILDREN & ADULTS,1,OLDER PEOPLE,DOMICILIARY CARE - BLOCK,4240,,06/10/2022,23228573,420,29038,ALAND HEALTHCARE CONSULTING LIMITED
INSERTED DETAIL,,Ealing Council,http://opendatacommunities.org/id/london-borough-council/ealing,CHILDREN & ADULTS,1,OLDER PEOPLE,DOMICILIARY CARE - BLOCK,4240,,06/10/2022,23228573,735,29038,ALAND HEALTHCARE CONSULTING LIMITED
INSERTED DETAIL,,Ealing Council,http://opendatacommunities.org/id/london-borough-council/ealing,CHILDREN & ADULTS,1,OLDER PEOPLE,DOMICILIARY CARE - BLOCK,4240,,06/10/2022,23228573,2100,29038,ALAND HEALTHCARE CONSULTING LIMITED
INSERTED DETAIL,,Ealing Council,http://opendatacommunities.org/id/london-borough-council/ealing,CHILDREN & ADULTS,1,OLDER PEOPLE,DOMICILIARY CARE - BLOCK,4240,,06/10/2022,23228573,336,29038,ALAND HEALTHCARE CONSULTING LIMITED
INSERTED DETAIL,,Ealing Council,http://opendatacommunities.org/id/london-borough-council/ealing,CHILDREN & ADULTS,1,OLDER PEOPLE,DOMICILIARY CARE - BLOCK,4240,,06/10/2022,23228573,1365,29038,ALAND HEALTHCARE CONSULTING LIMITED
INSERTED DETAIL,,Ealing Council,http://opendatacommunities.org/id/london-borough-council/ealing,CHILDREN & ADULTS,1,OLDER PEOPLE,DOMICILIARY CARE - BLOCK,4240,,06/10/2022,23228573,315,29038,ALAND HEALTHCARE CONSULTING LIMITED
INSERTED DETAIL,,Ealing Council,http://opendatacommunities.org/id/london-borough-council/ealing,CHILDREN & ADULTS,1,OLDER PEOPLE,DOMICILIARY CARE - BLOCK,4240,,06/10/2022,23228573,630,29038,ALAND HEALTHCARE CONSULTING LIMITED
INSERTED DETAIL,,Ealing Council,http://opendatacommunities.org/id/london-borough-council/ealing,CHILDREN & ADULTS,1,OLDER PEOPLE,DOMICILIARY CARE - BLOCK,4240,,06/10/2022,23228573,420,29038,ALAND HEALTHCARE CONSULTING LIMITED
INSERTED DETAIL,,Ealing Council,http://opendatacommunities.org/id/london-borough-council/ealing,CHILDREN & ADULTS,1,OLDER PEOPLE,DOMICILIARY CARE - BLOCK,4240,,06/10/2022,23228573,1050,29038,ALAND HEALTHCARE CONSULTING LIMITED
INSERTED DETAIL,,Ealing Council,http://opendatacommunities.org/id/london-borough-council/ealing,CHILDREN & ADULTS,1,OLDER PEOPLE,DOMICILIARY CARE - BLOCK,4240,,06/10/2022,23228573,525,29038,ALAND HEALTHCARE CONSULTING LIMITED
INSERTED DETAIL,,Ealing Council,http://opendatacommunities.org/id/london-borough-council/ealing,CHILDREN & ADULTS,1,OLDER PEOPLE,DOMICILIARY CARE - BLOCK,4240,,06/10/2022,23228573,525,29038,ALAND HEALTHCARE CONSULTING LIMITED
INSERTED DETAIL,,Ealing Council,http://opendatacommunities.org/id/london-borough-council/ealing,CHILDREN & ADULTS,1,OLDER PEOPLE,DOMICILIARY CARE - BLOCK,4240,,06/10/2022,23228573,450,29038,ALAND HEALTHCARE CONSULTING LIMITED
INSERTED DETAIL,,Ealing Council,http://opendatacommunities.org/id/london-borough-council/ealing,CHILDREN & ADULTS,1,OLDER PEOPLE,DOMICILIARY CARE - BLOCK,4240,,06/10/2022,23228573,300,29038,ALAND HEALTHCARE CONSULTING LIMITED
INSERTED DETAIL,,Ealing Council,http://opendatacommunities.org/id/london-borough-council/ealing,CHILDREN & ADULTS,1,OLDER PEOPLE,DOMICILIARY CARE - BLOCK,4240,,06/10/2022,23228573,360,29038,ALAND HEALTHCARE CONSULTING LIMITED
INSERTED DETAIL,,Ealing Council,http://opendatacommunities.org/id/london-borough-council/ealing,CHILDREN & ADULTS,1,OLDER PEOPLE,DOMICILIARY CARE - BLOCK,4240,,08/12/2021,23236997,945,29189,HUMBLE HEALTHCARE LTD
INSERTED DETAIL,,Ealing Council,http://opendatacommunities.org/id/london-borough-council/ealing,CHILDREN & ADULTS,1,OLDER PEOPLE,DOMICILIARY CARE - BLOCK,4240,,28/09/2022,23224365,735,29189,HUMBLE HEALTHCARE LTD
INSERTED DETAIL,,Ealing Council,http://opendatacommunities.org/id/london-borough-council/ealing,CHILDREN & ADULTS,1,OLDER PEOPLE,DOMICILIARY CARE - BLOCK,4240,,28/09/2022,23224365,735,29189,HUMBLE HEALTHCARE LTD
INSERTED DETAIL,,Ealing Council,http://opendatacommunities.org/id/london-borough-council/ealing,CHILDREN & ADULTS,1,OLDER PEOPLE,DOMICILIARY CARE - BLOCK,4240,,28/09/2022,23224365,495,29189,HUMBLE HEALTHCARE LTD
INSERTED DETAIL,,Ealing Council,http://opendatacommunities.org/id/london-borough-council/ealing,CHILDREN & ADULTS,1,OLDER PEOPLE,DOMICILIARY CARE - BLOCK,4240,,22/12/2021,23236997,945,29189,HUMBLE HEALTHCARE LTD
INSERTED DETAIL,,Ealing Council,http://opendatacommunities.org/id/london-borough-council/ealing,CHILDREN & ADULTS,1,OLDER PEOPLE,DOMICILIARY CARE - BLOCK,4240,,26/01/2022,23236997,945,29189,HUMBLE HEALTHCARE LTD
INSERTED DETAIL,,Ealing Council,http://opendatacommunities.org/id/london-borough-council/ealing,CHILDREN & ADULTS,1,OLDER PEOPLE,DOMICILIARY CARE - BLOCK,4240,,23/02/2022,23236997,945,29189,HUMBLE HEALTHCARE LTD
INSERTED DETAIL,,Ealing Council,http://opendatacommunities.org/id/london-borough-council/ealing,CHILDREN & ADULTS,1,OLDER PEOPLE,DOMICILIARY CARE - BLOCK,4240,,22/03/2022,23236997,945,29189,HUMBLE HEALTHCARE LTD
INSERTED DETAIL,,Ealing Council,http://opendatacommunities.org/id/london-borough-council/ealing,CHILDREN & ADULTS,1,OLDER PEOPLE,DOMICILIARY CARE - BLOCK,4240,,19/04/2022,23236997,843.75,29189,HUMBLE HEALTHCARE LTD
INSERTED DETAIL,,Ealing Council,http://opendatacommunities.org/id/london-borough-council/ealing,CHILDREN & ADULTS,1,OLDER PEOPLE,DOMICILIARY CARE - BLOCK,4240,,18/05/2022,23236997,1046.25,29189,HUMBLE HEALTHCARE LTD
INSERTED DETAIL,,Ealing Council,http://opendatacommunities.org/id/london-borough-council/ealing,CHILDREN & ADULTS,1,OLDER PEOPLE,DOMICILIARY CARE - BLOCK,4240,,14/06/2022,23236997,1717.5,29189,HUMBLE HEALTHCARE LTD
